Workbook

Sheet QA
A1: Sheet1 | B1: QA
C2: High | D2: for High Impact enter 1 in Column D
C3: Medium | D3: For medium Medium Impact enter 2 in column D
C4: Low | D4: For Low Impact enter 3 in column D
C7: ="Matters arising from review of Financial Model Filename: “"&MID(CELL("filename",A1),FIND("[",CELL("filename",A1))+1,FIND("]", CELL("filename",A1))-FIND("[",CELL("filename",A1))-1)&" ”" -> Matters arising from review of Financial Model Filename: “Greta Model.xlsm ”
C8: No | D8: Impact level | E8: Category | F8: Reference
C13: No | D13: Impact level | E13: Category | F13: Reference
E18: Four variables in scenario analysis
E20: varApplied
E21: varScenario
E22: varPrior
E23: varBase
E25: Discuss all the steps for time varying variables
E27: Use CNTL K
E31: Include PPA Price
E32: Change NBET Off-taker
E33: Include Interest Rate in Re-set
E34: Add Debt Tenure

Sheet Cover
A1: DISCLAIMER
A18: COLOR CODES
B20: SHEET TABS
C21: Red | D21: Input Sheets
C23: White | D23: Calculation Sheets
C25: Blue | D25: Output Sheets
B26: CELL COLOR CODES
C27: Blue font | D27: Assumptions
C29: Black font & light gray background | D29: Sum total of a row
C31: =D31 -> Empty_Cell | D31: Empty_Cell
C33: 0 | D33: Check
C35: Green font | D35: Links to other sheets
B36: OTHER
C37: White font + Dark red shade + Bold + Capitalised | D37: Section separator

Sheet Diagram 2
L2: Greta Solar Project
K38: Uses of Funds | N38: Sources of Funds
K39: EPC | M39: ='Project Summary'!F8 -> 51439.4 | N39: Sr Debt | P39: ='Project Summary'!F24 -> 47834.006 | Q39: ='Project Summary'!H24 -> 0.75
K40: Other | M40: =M43-M39-M41-M42 -> 851.16 | N40: Mezz Debt | Q40: =P40/P43 -> 0
K41: Development | M41: ='Project Summary'!F10+'Project Summary'!F11 -> 7000 | N41: Equity | P41: ='Project Summary'!F23 -> 15944.66867 | Q41: ='Project Summary'!H23 -> 0.25
K42: Financing | M42: ='Project Summary'!F12+'Project Summary'!F13+'Project Summary'!F14+'Project Summary'!F15+'Project Summary'!F16+'Project Summary'!F17+'Project Summary'!F18+'Project Summary'!F19 -> 4488.114667 | N42: Pre-COD Cash
K43: Total | M43: ='Project Summary'!F20 -> 63778.67467 | N43: Total | P43: =P39+P40+P41 -> 63778.67467 | Q43: =P43/P43 -> 1

Sheet Diagram 1
D3: Off-taker: | F3: NBET | G3: Issue: | I3: Financial Condition of Disco's | M3: PPA Period | O3: ='Input Constant'!G112 -> 20
D4: =D3&F3&CHAR(10)&G3&I3&CHAR(10)&M3&TEXT(O3," ##")& " Years" -> Off-taker: NBET Issue:Financial Condition of Disco's PPA Period 20 Years
D6: Volume Risk from Solar Energy | G6: In Plane Capacity Factor | H6: ='Input Constant'!$G$85 -> 0.317 | I6: Final Capacity Factor | O6: ='Input Constant'!$G$92 -> 0.252966
D7: =D6&TEXT(E6,"")&" "&F6&TEXT(H6,"00.00%")&CHAR(10)&I6&TEXT(O6," 0.00%")&CHAR(10)&P6&TEXT(T6,"") -> Volume Risk from Solar Energy 31.70% Final Capacity Factor 25.30%
D9: PPA Contract: Fixed Price | E9: ='Input Constant'!G116 -> 75 | G9: Inflation Applied | H9: ='Input Constant'!G117 -> FALSE | I9: Post PPA Real Price: USD | O9: ='Input Constant'!G125 -> 25
D10: =D9&TEXT(E9," 00.00")&" "&CHAR(10)&G9&" "&TEXT(H9," 00.00%")&CHAR(10)&I9&TEXT(O9," 0.00")&"/MWH" -> PPA Contract: Fixed Price 75.00 Inflation Applied FALSE Post PPA Real Price: USD 25.00/MWH
D13: SPV Before Financing | F13: Project IRR Pre-tax | H13: ='Project Summary'!D33 -> 0.1291977942 | I13: Project IRR After Tax | O13: ='Project Summary'!D34 -> 0.11750862 | P13: Operating Life | T13: =lifeApplied -> 30
D14: =D13&TEXT(E13,"")&CHAR(10)&F13&TEXT(H13," 0.00%")&CHAR(10)&I13&TEXT(O13," 0.00%")&CHAR(10)&P13&TEXT(T13," ##") -> SPV Before Financing Project IRR Pre-tax 12.92% Project IRR After Tax 11.75% Operating Life 30
D17: EPC Company: | G17: EPC Contractor; PR Guarantee
D18: =D17&CHAR(10)&G17 -> EPC Company: EPC Contractor; PR Guarantee
D20: EPC Contract Cost | E20: ='Project Summary'!G8 -> 780.3307039 | F20: Total Cost USD | H20: ='Project Summary'!G20 -> 967.5163026 | I20: Project IRR After Tax | O20: ='Project Summary'!D41 -> 0.3078629315 | P20: PPA Period IRR
D21: =D20&""&TEXT(E20," 000")&"/kW"&CHAR(10)&F20&TEXT(H20," 00")&"/kW" -> EPC Contract Cost 780/kW Total Cost USD 968/kW
G24: O&M Contractor; Performance Ratio Liquidated Damage
D25: =D24&G24 -> O&M Contractor; Performance Ratio Liquidated Damage
D27: O&M Contract: | F27: Cost | H27: =OMApplied -> 8.34
D28: =D27&""&TEXT(E27,"")&CHAR(10)&F27&TEXT(H27," ###.00")&"/kWy" -> O&M Contract: Cost 8.34/kWy
D30: Aggregate Equity | H30: EIRR Dev Fee as Cost | K30: =IFERROR('Project Summary'!D38,0) -> 0.1056770146 | L30: EIRR with Developmet Fee | P30: ='Project Summary'!D37 -> 0.130900842 | Q30: EIRR After Withholding | T30: ='Project Summary'!D39 -> 0.09644483924
D31: =D30&" "&CHAR(10)&H30&TEXT(K30," 0.00%")&CHAR(10)&L30&TEXT(P30," 0.00%")&CHAR(10)&Q30&TEXT(T30," 0.00%") -> Aggregate Equity EIRR Dev Fee as Cost 10.57% EIRR with Developmet Fee 13.09% EIRR After Withholding 9.64%
D33: Overall Debt | H33: Debt Percent | K33: ='Project Summary'!H24 -> 0.75 | L33: Debt IRR | O33: ='Project Summary'!$D$36 -> 0.07936208546 | P33: DSCR | R33: ='Project Summary'!G33 -> 1.303167456
D34: =D33&CHAR(10)&H33&TEXT(K33," 0.00%")&CHAR(10)&L33&TEXT(O33," 0.00%")&CHAR(10)&P33&TEXT(R33," 0.00") -> Overall Debt Debt Percent 75.00% Debt IRR 7.94% DSCR 1.30
D36: Development Bank | H36: Percent of Debt | K36: =AFDB_pct_applied/100 -> 1 | L36: All-in Rate | O36: ='Project Summary'!E54+'Project Summary'!E55 -> 0.08 | P36: Average Life | R36: ='Project Summary'!E58 -> 11.73034529
D37: =D36&CHAR(10)&H36&TEXT(K36," 0.00%")&CHAR(10)&L36&TEXT(O36," 0.00%")&CHAR(10)&P36&TEXT(R36," 0.00") -> Development Bank Percent of Debt 100.00% All-in Rate 8.00% Average Life 11.73
D39: Concessional Financing | H39: Percent of Debt | K39: ='Project Summary'!F50 -> 0 | L39: All-in Rate | O39: ='Project Summary'!F54+'Project Summary'!F55 -> 0.05 | P39: Average Life | Q39: ='Project Summary'!F58 -> 0
D40: =D39&CHAR(10)&H39&TEXT(K39," 0.00%")&CHAR(10)&L39&TEXT(O39," 0.00%")&CHAR(10)&P39&TEXT(Q39," 0.00") -> Concessional Financing Percent of Debt 0.00% All-in Rate 5.00% Average Life 0.00
D42: DEG Debt | G42: ='Project Summary'!G52 -> 18 | H42: Percent of Debt | K42: ='Project Summary'!G50 -> 0 | L42: All-in Rate | O42: ='Project Summary'!G54+'Project Summary'!G55 -> 0.03 | P42: Average Life | Q42: ='Project Summary'!G58 -> 0
D43: =D42&CHAR(10)&H42&TEXT(K42," 0.00%")&CHAR(10)&L42&TEXT(O42," 0.00%")&CHAR(10)&P42&TEXT(R42," 0.00") -> DEG Debt Percent of Debt 0.00% All-in Rate 3.00% Average Life 0.00
D45: PPA Contract and Estimated Capacity Factor | L45: PPA Rate | O45: ='Project Summary'!E69 -> 0.2531392644
D47: Shareholder Loan | H47: Pct of Equity | K47: ='Input Constant'!G572 -> 0.6666666667 | L47: IRR | O47: ='Input Constant'!G579 -> 0.08 | Q47: ='Project Summary'!G63 -> 0
D48: =D47&CHAR(10)&H47&TEXT(K47," 0.00%")&CHAR(10)&L47&TEXT(O47," 0.00%")&CHAR(10)&P47&TEXT(R47,"") -> Shareholder Loan Pct of Equity 66.67% IRR 8.00%
D50: Common Equity | H50: Pct of Equity | K50: ='Input Constant'!G571 -> 0.3333333333 | L50: IRR | O50: ='Project Summary'!$D$41 -> 0.3078629315
D51: =D50&CHAR(10)&H50&TEXT(K50," 0.00%")&CHAR(10)&L50&TEXT(O50," 0.00%")&CHAR(10)&P50&TEXT(R50,"") -> Common Equity Pct of Equity 33.33% IRR 30.79%

Sheet Project Summary
A1: =UPPER(RIGHT(CELL("filename",A1),LEN(CELL("filename",A1))-SEARCH("]",CELL("filename",A1)))) -> PROJECT SUMMARY
D2: Equity IRR | E2: =D37 -> 0.130900842
D3: DSCR | E3: =G33 -> 1.303167456
A4: SOURCES AND USES OF FUNDS DURING CONSTRUCTION
G6: ='Input Constant'!G73 -> 65.92
B7: Uses of Funds | F7: =units -> $000's | G7: USD/kWp | H7: % of Total
C8: Capital Expenditures | F8: ='Construction Financing'!J53 -> 51439.4 | G8: =F8/$G$6 -> 780.3307039 | H8: =F8/$F$20 -> 0.806529773
C9: Non-Refundable VAT | F9: ='Construction Financing'!J54 -> 851.16 | G9: =F9/$G$6 -> 12.91201456 | H9: =F9/$F$20 -> 0.01334552661
C10: Development Cost | F10: ='Construction Financing'!J55 -> 4000 | G10: 60.67961165 | H10: 0.06271688806
C11: Development Fee | F11: ='Construction Financing'!J56 -> 3000 | G11: 45.50970874 | H11: 0.04703766605
C12: Financing Fees | F12: ='Construction Financing'!J57 -> 636.2516918 | G12: 9.651876393 | H12: 0.009975931535
C13: Interest During Construction - Debt Issues excluding WHT | F13: ='Construction Financing'!J58 -> 2195.478636 | G13: 33.30519775 | H13: 0.03442339697
C14: Interest During Construction - Shareholder Debt Included in Uses | F14: ='Construction Financing'!J59 -> 0 | G14: 0 | H14: 0
C15: Witholding Taxes on Interest and Fees | F15: ='Construction Financing'!J60 -> 229.5997563 | G15: 3.483006012 | H15: 0.003599945554
C16: PRI Premium | F16: ='Construction Financing'!J61 -> 146.7313639 | G16: 2.225900544 | H16: 0.002300633631
C17: PRG Premium | F17: ='Construction Financing'!J62 -> 548.869659 | G17: 8.326299439 | H17: 0.008605849241
C18: DSRA/c Initial Funding | F18: ='Construction Financing'!J63 -> 0 | G18: 0 | H18: 0
C19: Other Reserve Accounts | F19: ='Construction Financing'!J64 -> 731.18356 | G19: 11.09198362 | H19: 0.01146438937
C20: Total | F20: =SUM(F8:F19) -> 63778.67467 | G20: 967.5163026 | H20: 1
B22: Sources of Funds
C23: Total Equity | F23: ='Construction Financing'!J68 -> 15944.66867 | G23: =F23/$G$6 -> 241.8790756 | H23: =F23/$F$20 -> 0.25
C24: Total Senior Debt | F24: ='Construction Financing'!J69 -> 47834.006 | G24: =F24/$G$6 -> 725.6372269 | H24: =F24/$F$20 -> 0.75
C25: Total Sources | F25: =SUM(F23:F24) -> 63778.67467 | G25: =F25/$G$6 -> 967.5163026 | H25: =F25/$F$20 -> 1
C27: NBET Target Cost | G27: 1320
A29: RETURNS
C32: Equity Returns | D32: IRR | F32: Credit Statistics
C33: Project IRR Pre-tax | D33: =IRR!G14 -> 0.1291977942 | F33: Minimum DSCR | G33: =Sculpting!K187 -> 1.303167456
C34: Project IRR After-tax | D34: =IRR!G28 -> 0.11750862 | F34: LLCR at COD | G34: =Sculpting!K204 -> 1.299340028
C35: Debt IRR Pre-tax | D35: =IRR!G40 -> 0.09386497438 | F35: PLCR at COD | G35: =Sculpting!K211 -> 1.458098083
C36: Debt IRR After-tax | D36: =IRR!H45 -> 0.07936208546 | F36: Total Avg Life | G36: ='Financial Statements'!K91 -> 11.81241747
C37: Equity IRR After-tax Dev Fee as Cash | D37: =IRR!G60 -> 0.130900842
C38: Equity IRR After-tax Dev Fee as Cost | D38: =IRR!G63 -> 0.1056770146
C39: Equity IRR After Witholding Tax on Dividends | D39: =IRR!G66 -> 0.09644483924
C40: Shareholder Loan IRR | D40: =IRR!G73 -> 0.07028289735
C41: Common Equity IRR | D41: =IRR!G81 -> 0.3078629315
A44: Financing Plan
C46: Debt to Capital Applied | D46: ='Input Constant'!G424 -> 0.75
C47: Max Gearing Allowed | D47: ='Input Constant'!G427 -> 0.8
E49: Senior Debt: AfDB | F49: Senior Debt: Concessional | G49: Senior Debt: DEG
C50: Percent of Debt | E50: ='Input Constant'!G437 -> 1 | F50: ='Input Constant'!G438 -> 0 | G50: ='Input Constant'!G439 -> 0
C51: Debt Amount
C52: Maturity (Years) | E52: ='Input Constant'!$G$449 -> 18 | F52: ='Input Constant'!$G$484 -> 18 | G52: ='Input Constant'!$G$518 -> 18
C53: Repayment Type | E53: ='Input Constant'!G461 -> 4 | F53: ='Input Constant'!G496 -> 4 | G53: ='Input Constant'!G530 -> 4 | I53: =F53 -> 4
C54: Base Interest Rate | E54: ='Input Time Series'!H212 -> 0.03 | F54: ='Input Time Series'!H222 -> 0.03 | G54: ='Input Time Series'!H237 -> 0.03
C55: Credit Spread | E55: ='Input Time Series'!H216 -> 0.05 | F55: ='Input Time Series'!H231 -> 0.02 | G55: ='Input Time Series'!H246 -> 0
C56: Up-Front Fee | E56: ='Input Constant'!G469 -> 0.01 | F56: ='Input Constant'!G504 -> 0.01 | G56: ='Input Constant'!G538 -> 0.01
C57: Commitment Fee | E57: ='Input Constant'!G472 -> 0.0075 | F57: ='Input Constant'!G506 -> 0.0075 | G57: ='Input Constant'!G540 -> 0.0075
C58: Computed Average Debt Life | E58: ='Debt Repayment'!L55 -> 11.73034529 | F58: ='Debt Repayment'!L95 -> 0 | G58: ='Debt Repayment'!L136 -> 0
C59: PRG Percent | E59: ='Input Constant'!G469 -> 0.01 | F59: ='Input Constant'!G504 -> 0.01 | G59: ='Input Constant'!G538 -> 0.01
A63: Cost Benchmarks
C64: ='Input Constant'!E72 & " (" & 'Input Constant'!F72 & ")" -> AC Capacity (MW) | E64: ='Input Constant'!G72 -> 52.5
C65: ='Input Constant'!E73 & " (" & 'Input Constant'!F73 & ")" -> DC Capacity (MW) | E65: ='Input Constant'!G73 -> 65.92
C67: Energy | E67: P50 | F67: P90
C68: ="Annual Gross Generation " & "(" & 'Input Constant'!F102 & ")" -> Annual Gross Generation (MWh) | E68: ='Input Constant'!G101 -> 146177.5971 | F68: ='Input Constant'!G102 -> 136822.2309
C69: Capacity Factor | E69: =E68/($E$65*8760) -> 0.2531392644 | F69: =F68/($E$65*8760) -> 0.2369383515
C70: P90:P50 Ratio | E70: =F68/E68 -> 0.936
C71: PPA Rate
C73: Milestones | E73: ='Input Constant'!E19 -> Financial Close | F73: ='Input Constant'!E21 -> Construction Start | G73: ='Input Constant'!E25 -> Delay Start Date | H73: ='Input Constant'!E29 -> Pre-Operations | I73: Oper Start
C74: Start Date | D74: =IF(D75=0,"-",'Input Constant'!G15) -> 2020-01-01 | F74: ='Input Constant'!G21 -> 2021-07-01 | G74: =IF(G75=0,"-",'Input Constant'!G25) -> - | H74: =IF(H75=0,"-",'Input Constant'!G29) -> - | I74: ='Input Constant'!G33 -> 2022-06-01
C75: Duration | D75: ='Input Constant'!G16 -> 17 | F75: ='Input Constant'!G22 -> 11 | G75: ='Input Constant'!G26 -> 0 | H75: ='Input Constant'!G30 -> 0 | I75: ='Input Constant'!G34 -> 30
C76: End Date | D76: =IF(D75=0,"-",'Input Constant'!G17) -> 2021-05-31 | E76: ='Input Constant'!G19 -> 2021-06-30 | F76: ='Input Constant'!G23 -> 2022-05-31 | G76: =IF(G75=0,"-",'Input Constant'!G27) -> - | H76: =IF(H75=0,"-",'Input Constant'!G31) -> - | I76: ='Input Constant'!G35 -> 2052-06-01
A78: Summary Financial Statements
B80: Cash Flow Post COD | F80: ='Annual Financial Statements'!H3 -> 2022 | G80: ='Annual Financial Statements'!I3 -> 2023 | H80: ='Annual Financial Statements'!J3 -> 2024 | I80: ='Annual Financial Statements'!K3 -> 2025 | J80: ='Annual Financial Statements'!L3 -> 2026 | K80: ='Annual Financial Statements'!M3 -> 2027 | L80: ='Annual Financial Statements'!N3 -> 2028 | M80: ='Annual Financial Statements'!O3 -> 2029 | N80: ='Annual Financial Statements'!P3 -> 2030 | O80: ='Annual Financial Statements'!Q3 -> 2031
C81: Revenue | E81: =[0]!units -> $000's | F81: ='Annual Financial Statements'!H8 -> 3864.172202 | G81: ='Annual Financial Statements'!I8 -> 10258.11129 | H81: ='Annual Financial Statements'!J8 -> 10226.96217 | I81: ='Annual Financial Statements'!K8 -> 10190.00744 | J81: ='Annual Financial Statements'!L8 -> 10153.02119 | K81: ='Annual Financial Statements'!M8 -> 10115.83391 | L81: ='Annual Financial Statements'!N8 -> 10078.25791 | M81: ='Annual Financial Statements'!O8 -> 10040.45013 | N81: ='Annual Financial Statements'!P8 -> 10002.41746 | O81: ='Annual Financial Statements'!Q8 -> 9964.070743
C82: Less: Fixed Costs | E82: =[0]!units -> $000's | F82: ='Annual Financial Statements'!H10 -> 609.3196333 | G82: ='Annual Financial Statements'!I10 -> 1475.761548 | H82: ='Annual Financial Statements'!J10 -> 1508.229339 | I82: ='Annual Financial Statements'!K10 -> 1541.475812 | J82: ='Annual Financial Statements'!L10 -> 1575.520104 | K82: ='Annual Financial Statements'!M10 -> 1610.381827 | L82: ='Annual Financial Statements'!N10 -> 1646.081081 | M82: ='Annual Financial Statements'!O10 -> 1682.638463 | N82: ='Annual Financial Statements'!P10 -> 1720.075083 | O82: ='Annual Financial Statements'!Q10 -> 1758.412575
C83: Less: Variable Costs | E83: =[0]!units -> $000's | F83: ='Annual Financial Statements'!H11 -> 0 | G83: ='Annual Financial Statements'!I11 -> 0 | H83: ='Annual Financial Statements'!J11 -> 0 | I83: ='Annual Financial Statements'!K11 -> 0 | J83: ='Annual Financial Statements'!L11 -> 0 | K83: ='Annual Financial Statements'!M11 -> 0 | L83: ='Annual Financial Statements'!N11 -> 0 | M83: ='Annual Financial Statements'!O11 -> 0 | N83: ='Annual Financial Statements'!P11 -> 0 | O83: ='Annual Financial Statements'!Q11 -> 0
C84: Gross Margin | E84: =[0]!units -> $000's | F84: ='Annual Financial Statements'!H12 -> 3254.852569 | G84: ='Annual Financial Statements'!I12 -> 8782.349738 | H84: ='Annual Financial Statements'!J12 -> 8718.732833 | I84: ='Annual Financial Statements'!K12 -> 8648.531633 | J84: ='Annual Financial Statements'!L12 -> 8577.501086 | K84: ='Annual Financial Statements'!M12 -> 8505.452086 | L84: ='Annual Financial Statements'!N12 -> 8432.176832 | M84: ='Annual Financial Statements'!O12 -> 8357.811662 | N84: ='Annual Financial Statements'!P12 -> 8282.342372 | O84: ='Annual Financial Statements'!Q12 -> 8205.658168
C85: Less: Working Capital Changes | E85: =units -> $000's | F85: ='Annual Financial Statements'!H15 -> 758.0577568 | G85: ='Annual Financial Statements'!I15 -> -4.005764356 | H85: ='Annual Financial Statements'!J15 -> -5.914263061 | I85: ='Annual Financial Statements'!K15 -> -5.977570183 | J85: ='Annual Financial Statements'!L15 -> -6.054352633 | K85: ='Annual Financial Statements'!M15 -> -6.146578057 | L85: ='Annual Financial Statements'!N15 -> -6.252785406 | M85: ='Annual Financial Statements'!O15 -> -6.338610291 | N85: ='Annual Financial Statements'!P15 -> -6.436587808 | O85: ='Annual Financial Statements'!Q15 -> -6.541241122
C86: Less: PRG | E86: $000's | F86: ='Annual Financial Statements'!H19 -> 486.3123943 | G86: ='Annual Financial Statements'!I19 -> 977.2852471 | H86: ='Annual Financial Statements'!J19 -> 953.7203603 | I86: ='Annual Financial Statements'!K19 -> 922.7472011 | J86: ='Annual Financial Statements'!L19 -> 892.0571075 | K86: ='Annual Financial Statements'!M19 -> 858.8960399 | L86: ='Annual Financial Statements'!N19 -> 825.3949416 | M86: ='Annual Financial Statements'!O19 -> 784.2902202 | N86: ='Annual Financial Statements'!P19 -> 741.9814626 | O86: ='Annual Financial Statements'!Q19 -> 695.91106
C87: Less: PRI | E87: $000's | F87: ='Annual Financial Statements'!H20 -> 127.6570035 | G87: ='Annual Financial Statements'!I20 -> 261.0311219 | H87: ='Annual Financial Statements'!J20 -> 282.3349764 | I87: ='Annual Financial Statements'!K20 -> 303.8083634 | J87: ='Annual Financial Statements'!L20 -> 327.8810874 | K87: ='Annual Financial Statements'!M20 -> 353.8984115 | L87: ='Annual Financial Statements'!N20 -> 118.2403239 | M87: ='Annual Financial Statements'!O20 -> 101.5710304 | N87: ='Annual Financial Statements'!P20 -> 84.03455301 | O87: ='Annual Financial Statements'!Q20 -> 35.21742362
C88: Operating Cash Flow | E88: $000's | F88: ='Annual Financial Statements'!H21 -> 1882.825414 | G88: ='Annual Financial Statements'!I21 -> 7548.039134 | H88: ='Annual Financial Statements'!J21 -> 7488.591759 | I88: ='Annual Financial Statements'!K21 -> 7427.953638 | J88: ='Annual Financial Statements'!L21 -> 7363.617244 | K88: ='Annual Financial Statements'!M21 -> 7298.804213 | L88: ='Annual Financial Statements'!N21 -> 7494.794352 | M88: ='Annual Financial Statements'!O21 -> 7478.289022 | N88: ='Annual Financial Statements'!P21 -> 7462.762944 | O88: ='Annual Financial Statements'!Q21 -> 7481.070925
C89: Less: Income Taxes Paid | E89: $000's | F89: ='Annual Financial Statements'!H22 -> 0 | G89: ='Annual Financial Statements'!I22 -> 0 | H89: ='Annual Financial Statements'!J22 -> 0 | I89: ='Annual Financial Statements'!K22 -> 0 | J89: ='Annual Financial Statements'!L22 -> 0 | K89: ='Annual Financial Statements'!M22 -> 0 | L89: ='Annual Financial Statements'!N22 -> 0 | M89: ='Annual Financial Statements'!O22 -> 0 | N89: ='Annual Financial Statements'!P22 -> 0 | O89: ='Annual Financial Statements'!Q22 -> 0
C90: Cash Flow Available for Debt Service | E90: $000's | F90: ='Annual Financial Statements'!H24 -> 1882.825414 | G90: ='Annual Financial Statements'!I24 -> 7548.039134 | H90: ='Annual Financial Statements'!J24 -> 7488.591759 | I90: ='Annual Financial Statements'!K24 -> 7427.953638 | J90: ='Annual Financial Statements'!L24 -> 7363.617244 | K90: ='Annual Financial Statements'!M24 -> 7298.804213 | L90: ='Annual Financial Statements'!N24 -> 7494.794352 | M90: ='Annual Financial Statements'!O24 -> 7478.289022 | N90: ='Annual Financial Statements'!P24 -> 7462.762944 | O90: ='Annual Financial Statements'!Q24 -> 7481.070925
C91: Less: Interest Expense Paid | E91: $000's | F91: ='Annual Financial Statements'!H25 -> 1945.249577 | G91: ='Annual Financial Statements'!I25 -> 3909.140988 | H91: ='Annual Financial Statements'!J25 -> 3814.881441 | I91: ='Annual Financial Statements'!K25 -> 3690.988804 | J91: ='Annual Financial Statements'!L25 -> 3568.22843 | K91: ='Annual Financial Statements'!M25 -> 3435.584159 | L91: ='Annual Financial Statements'!N25 -> 3301.579767 | M91: ='Annual Financial Statements'!O25 -> 3137.160881 | N91: ='Annual Financial Statements'!P25 -> 2967.925851 | O91: ='Annual Financial Statements'!Q25 -> 2783.64424
C92: Less: Witholding Tax | E92: $000's | F92: ='Annual Financial Statements'!H26 -> 157.7229387 | G92: ='Annual Financial Statements'!I26 -> 316.9573774 | H92: ='Annual Financial Statements'!J26 -> 309.3147115 | I92: ='Annual Financial Statements'!K26 -> 299.2693625 | J92: ='Annual Financial Statements'!L26 -> 289.3158186 | K92: ='Annual Financial Statements'!M26 -> 278.5608778 | L92: ='Annual Financial Statements'!N26 -> 267.6956567 | M92: ='Annual Financial Statements'!O26 -> 254.3643957 | N92: ='Annual Financial Statements'!P26 -> 240.6426365 | O92: ='Annual Financial Statements'!Q26 -> 225.7008843
C93: Less: Fees after COD | E93: $000's | F93: ='Annual Financial Statements'!H27 -> 25 | G93: ='Annual Financial Statements'!I27 -> 50 | H93: ='Annual Financial Statements'!J27 -> 50 | I93: ='Annual Financial Statements'!K27 -> 50 | J93: ='Annual Financial Statements'!L27 -> 50 | K93: ='Annual Financial Statements'!M27 -> 50 | L93: ='Annual Financial Statements'!N27 -> 50 | M93: ='Annual Financial Statements'!O27 -> 50 | N93: ='Annual Financial Statements'!P27 -> 50 | O93: ='Annual Financial Statements'!Q27 -> 50
C94: Less: Repayment | E94: $000's | F94: ='Annual Financial Statements'!H28 -> -812.717029 | G94: ='Annual Financial Statements'!I28 -> 1267.732048 | H94: ='Annual Financial Statements'!J28 -> 1365.949378 | I94: ='Annual Financial Statements'!K28 -> 1485.11626 | J94: ='Annual Financial Statements'!L28 -> 1603.772137 | K94: ='Annual Financial Statements'!M28 -> 1735.563901 | L94: ='Annual Financial Statements'!N28 -> 1869.826917 | M94: ='Annual Financial Statements'!O28 -> 2043.031747 | N94: ='Annual Financial Statements'!P28 -> 2223.626232 | O94: ='Annual Financial Statements'!Q28 -> 2424.417562
C95: Debt Service Reserve Account (DSRA/c) | E95: $000's | F95: ='Annual Financial Statements'!H29 -> 567.5699274 | G95: ='Annual Financial Statements'!I29 -> 2004.20872 | H95: ='Annual Financial Statements'!J29 -> 1948.446228 | I95: ='Annual Financial Statements'!K29 -> 1902.579212 | J95: ='Annual Financial Statements'!L29 -> 1852.300859 | K95: ='Annual Financial Statements'!M29 -> 1799.095274 | L95: ='Annual Financial Statements'!N29 -> 2005.692012 | M95: ='Annual Financial Statements'!O29 -> 1993.731998 | N95: ='Annual Financial Statements'!P29 -> 1980.568225 | O95: ='Annual Financial Statements'!Q29 -> 1997.308239
C96: Less: Repayment from Sweep | E96: $000's | F96: ='Annual Financial Statements'!H35 -> 0 | G96: ='Annual Financial Statements'!I35 -> 1603.366976 | H96: ='Annual Financial Statements'!J35 -> 1558.756983 | I96: ='Annual Financial Statements'!K35 -> 1522.063369 | J96: ='Annual Financial Statements'!L35 -> 1481.840687 | K96: ='Annual Financial Statements'!M35 -> 1439.276219 | L96: ='Annual Financial Statements'!N35 -> 1604.55361 | M96: ='Annual Financial Statements'!O35 -> 1594.985599 | N96: ='Annual Financial Statements'!P35 -> 1584.45458 | O96: ='Annual Financial Statements'!Q35 -> 1597.846591
C97: Dividends Paid Before Witholding | E97: $000's | F97: ='Annual Financial Statements'!H39 -> 567.5699274 | G97: ='Annual Financial Statements'!I39 -> 400.841744 | H97: ='Annual Financial Statements'!J39 -> 389.6892457 | I97: ='Annual Financial Statements'!K39 -> 380.5158423 | J97: ='Annual Financial Statements'!L39 -> 370.4601718 | K97: ='Annual Financial Statements'!M39 -> 359.8190548 | L97: ='Annual Financial Statements'!N39 -> 401.1384024 | M97: ='Annual Financial Statements'!O39 -> 398.7463997 | N97: ='Annual Financial Statements'!P39 -> 396.1136451 | O97: ='Annual Financial Statements'!Q39 -> 399.4616478
A100: Graph of Actual and Forecast
E114: Weighted | F114: Money | H114: IRR for | I114: Wtd ROIC
E115: ROIC | F115: Accumulated | G115: Holding Period | H115: Holding Period | I115: Holding Period
B144: Financial Covenants
C145: Covenant | D145: Limit | E145: Model | F145: Min Date | G145: Check
C146: Min DSCR (In Period) | D146: ='Input Constant'!G547 -> 1.15
C147: Min DSCR (12 Month b/w) | D147: ='Input Constant'!G548 -> 1.1
C148: Min DSCR (12 Month f/w) | D148: ='Input Constant'!G549 -> 1.1
C149: Min LLCR | D149: ='Input Constant'!G550 -> 1.15
C150: Min PLCR | D150: ='Input Constant'!G551 -> 1.15
E151: ='Input Constant'!G424 -> 0.75 | G151: =IF(E151>D47,1,0) -> 0

Sheet Annual Financial Statements
A1: =UPPER(RIGHT(CELL("filename",A1),LEN(CELL("filename",A1))-SEARCH("]",CELL("filename",A1)))) -> ANNUAL FINANCIAL STATEMENTS
C2: Model Test | F2: Active Scenario
C3: Fiscal Year | G3: ='Timing Flags'!L130 -> 2021 | H3: ='Timing Flags'!M130 -> 2022 | I3: ='Timing Flags'!N130 -> 2023 | J3: ='Timing Flags'!O130 -> 2024 | K3: ='Timing Flags'!P130 -> 2025 | L3: ='Timing Flags'!Q130 -> 2026 | M3: ='Timing Flags'!R130 -> 2027 | N3: ='Timing Flags'!S130 -> 2028 | O3: ='Timing Flags'!T130 -> 2029 | P3: ='Timing Flags'!U130 -> 2030 | Q3: ='Timing Flags'!V130 -> 2031 | R3: ='Timing Flags'!W130 -> 2032 | S3: ='Timing Flags'!X130 -> 2033 | T3: ='Timing Flags'!Y130 -> 2034 | U3: ='Timing Flags'!Z130 -> 2035 | V3: ='Timing Flags'!AA130 -> 2036 | W3: ='Timing Flags'!AB130 -> 2037 | X3: ='Timing Flags'!AC130 -> 2038 | Y3: ='Timing Flags'!AD130 -> 2039 | Z3: ='Timing Flags'!AE130 -> 2040 | AA3: ='Timing Flags'!AF130 -> 2041 | AB3: ='Timing Flags'!AG130 -> 2042 | AC3: ='Timing Flags'!AH130 -> 2043 | AD3: ='Timing Flags'!AI130 -> 2044 | AE3: ='Timing Flags'!AJ130 -> 2045 | AF3: ='Timing Flags'!AK130 -> 2046 | AG3: ='Timing Flags'!AL130 -> 2047 | AH3: ='Timing Flags'!AM130 -> 2048 | AI3: ='Timing Flags'!AN130 -> 2049
A6: Cash Flow Waterfall
C7: Cash Flow Post COD
D8: Revenue | F8: =[0]!units -> $000's | G8: =SUMIF('Financial Statements'!$11:$11,'Annual Financial Statements'!G$3,'Financial Statements'!15:15) -> 0 | H8: =SUMIF('Financial Statements'!$11:$11,'Annual Financial Statements'!H$3,'Financial Statements'!15:15) -> 3864.172202 | I8: =SUMIF('Financial Statements'!$11:$11,'Annual Financial Statements'!I$3,'Financial Statements'!15:15) -> 10258.11129 | J8: =SUMIF('Financial Statements'!$11:$11,'Annual Financial Statements'!J$3,'Financial Statements'!15:15) -> 10226.96217 | K8: =SUMIF('Financial Statements'!$11:$11,'Annual Financial Statements'!K$3,'Financial Statements'!15:15) -> 10190.00744 | L8: =SUMIF('Financial Statements'!$11:$11,'Annual Financial Statements'!L$3,'Financial Statements'!15:15) -> 10153.02119 | M8: =SUMIF('Financial Statements'!$11:$11,'Annual Financial Statements'!M$3,'Financial Statements'!15:15) -> 10115.83391 | N8: =SUMIF('Financial Statements'!$11:$11,'Annual Financial Statements'!N$3,'Financial Statements'!15:15) -> 10078.25791 | O8: =SUMIF('Financial Statements'!$11:$11,'Annual Financial Statements'!O$3,'Financial Statements'!15:15) -> 10040.45013 | P8: =SUMIF('Financial Statements'!$11:$11,'Annual Financial Statements'!P$3,'Financial Statements'!15:15) -> 10002.41746 | Q8: =SUMIF('Financial Statements'!$11:$11,'Annual Financial Statements'!Q$3,'Financial Statements'!15:15) -> 9964.070743 | R8: =SUMIF('Financial Statements'!$11:$11,'Annual Financial Statements'!R$3,'Financial Statements'!15:15) -> 9925.309548 | S8: =SUMIF('Financial Statements'!$11:$11,'Annual Financial Statements'!S$3,'Financial Statements'!15:15) -> 9886.270481 | T8: =SUMIF('Financial Statements'!$11:$11,'Annual Financial Statements'!T$3,'Financial Statements'!15:15) -> 9846.960951 | U8: =SUMIF('Financial Statements'!$11:$11,'Annual Financial Statements'!U$3,'Financial Statements'!15:15) -> 9807.332266 | V8: =SUMIF('Financial Statements'!$11:$11,'Annual Financial Statements'!V$3,'Financial Statements'!15:15) -> 9767.26056 | W8: =SUMIF('Financial Statements'!$11:$11,'Annual Financial Statements'!W$3,'Financial Statements'!15:15) -> 9726.98214 | X8: =SUMIF('Financial Statements'!$11:$11,'Annual Financial Statements'!X$3,'Financial Statements'!15:15) -> 9686.568756 | Y8: =SUMIF('Financial Statements'!$11:$11,'Annual Financial Statements'!Y$3,'Financial Statements'!15:15) -> 9646.083229 | Z8: =SUMIF('Financial Statements'!$11:$11,'Annual Financial Statements'!Z$3,'Financial Statements'!15:15) -> 9605.432758 | AA8: =SUMIF('Financial Statements'!$11:$11,'Annual Financial Statements'!AA$3,'Financial Statements'!15:15) -> 9564.876047 | AB8: =SUMIF('Financial Statements'!$11:$11,'Annual Financial Statements'!AB$3,'Financial Statements'!15:15) -> 8116.586758 | AC8: =SUMIF('Financial Statements'!$11:$11,'Annual Financial Statements'!AC$3,'Financial Statements'!15:15) -> 4855.472799 | AD8: =SUMIF('Financial Statements'!$11:$11,'Annual Financial Statements'!AD$3,'Financial Statements'!15:15) -> 4943.194752 | AE8: =SUMIF('Financial Statements'!$11:$11,'Annual Financial Statements'!AE$3,'Financial Statements'!15:15) -> 5035.404097 | AF8: =SUMIF('Financial Statements'!$11:$11,'Annual Financial Statements'!AF$3,'Financial Statements'!15:15) -> 5129.258541 | AG8: =SUMIF('Financial Statements'!$11:$11,'Annual Financial Statements'!AG$3,'Financial Statements'!15:15) -> 5224.844787 | AH8: =SUMIF('Financial Statements'!$11:$11,'Annual Financial Statements'!AH$3,'Financial Statements'!15:15) -> 5322.485855 | AI8: =SUMIF('Financial Statements'!$11:$11,'Annual Financial Statements'!AI$3,'Financial Statements'!15:15) -> 5421.923408
D9: Operational Expenditure | G9: =SUMIF('Financial Statements'!$11:$11,'Annual Financial Statements'!G$3,'Financial Statements'!16:16) -> 0 | H9: =SUMIF('Financial Statements'!$11:$11,'Annual Financial Statements'!H$3,'Financial Statements'!16:16) -> 0 | I9: =SUMIF('Financial Statements'!$11:$11,'Annual Financial Statements'!I$3,'Financial Statements'!16:16) -> 0 | J9: =SUMIF('Financial Statements'!$11:$11,'Annual Financial Statements'!J$3,'Financial Statements'!16:16) -> 0 | K9: =SUMIF('Financial Statements'!$11:$11,'Annual Financial Statements'!K$3,'Financial Statements'!16:16) -> 0 | L9: =SUMIF('Financial Statements'!$11:$11,'Annual Financial Statements'!L$3,'Financial Statements'!16:16) -> 0 | M9: =SUMIF('Financial Statements'!$11:$11,'Annual Financial Statements'!M$3,'Financial Statements'!16:16) -> 0 | N9: =SUMIF('Financial Statements'!$11:$11,'Annual Financial Statements'!N$3,'Financial Statements'!16:16) -> 0 | O9: =SUMIF('Financial Statements'!$11:$11,'Annual Financial Statements'!O$3,'Financial Statements'!16:16) -> 0 | P9: =SUMIF('Financial Statements'!$11:$11,'Annual Financial Statements'!P$3,'Financial Statements'!16:16) -> 0 | Q9: =SUMIF('Financial Statements'!$11:$11,'Annual Financial Statements'!Q$3,'Financial Statements'!16:16) -> 0 | R9: =SUMIF('Financial Statements'!$11:$11,'Annual Financial Statements'!R$3,'Financial Statements'!16:16) -> 0 | S9: =SUMIF('Financial Statements'!$11:$11,'Annual Financial Statements'!S$3,'Financial Statements'!16:16) -> 0 | T9: =SUMIF('Financial Statements'!$11:$11,'Annual Financial Statements'!T$3,'Financial Statements'!16:16) -> 0 | U9: =SUMIF('Financial Statements'!$11:$11,'Annual Financial Statements'!U$3,'Financial Statements'!16:16) -> 0 | V9: =SUMIF('Financial Statements'!$11:$11,'Annual Financial Statements'!V$3,'Financial Statements'!16:16) -> 0 | W9: =SUMIF('Financial Statements'!$11:$11,'Annual Financial Statements'!W$3,'Financial Statements'!16:16) -> 0 | X9: =SUMIF('Financial Statements'!$11:$11,'Annual Financial Statements'!X$3,'Financial Statements'!16:16) -> 0 | Y9: =SUMIF('Financial Statements'!$11:$11,'Annual Financial Statements'!Y$3,'Financial Statements'!16:16) -> 0 | Z9: =SUMIF('Financial Statements'!$11:$11,'Annual Financial Statements'!Z$3,'Financial Statements'!16:16) -> 0 | AA9: =SUMIF('Financial Statements'!$11:$11,'Annual Financial Statements'!AA$3,'Financial Statements'!16:16) -> 0 | AB9: =SUMIF('Financial Statements'!$11:$11,'Annual Financial Statements'!AB$3,'Financial Statements'!16:16) -> 0 | AC9: =SUMIF('Financial Statements'!$11:$11,'Annual Financial Statements'!AC$3,'Financial Statements'!16:16) -> 0 | AD9: =SUMIF('Financial Statements'!$11:$11,'Annual Financial Statements'!AD$3,'Financial Statements'!16:16) -> 0 | AE9: =SUMIF('Financial Statements'!$11:$11,'Annual Financial Statements'!AE$3,'Financial Statements'!16:16) -> 0 | AF9: =SUMIF('Financial Statements'!$11:$11,'Annual Financial Statements'!AF$3,'Financial Statements'!16:16) -> 0 | AG9: =SUMIF('Financial Statements'!$11:$11,'Annual Financial Statements'!AG$3,'Financial Statements'!16:16) -> 0 | AH9: =SUMIF('Financial Statements'!$11:$11,'Annual Financial Statements'!AH$3,'Financial Statements'!16:16) -> 0 | AI9: =SUMIF('Financial Statements'!$11:$11,'Annual Financial Statements'!AI$3,'Financial Statements'!16:16) -> 0
E10: Less: Fixed Costs | F10: =[0]!units -> $000's | G10: =SUMIF('Financial Statements'!$11:$11,'Annual Financial Statements'!G$3,'Financial Statements'!17:17) -> 0 | H10: =SUMIF('Financial Statements'!$11:$11,'Annual Financial Statements'!H$3,'Financial Statements'!17:17) -> 609.3196333 | I10: =SUMIF('Financial Statements'!$11:$11,'Annual Financial Statements'!I$3,'Financial Statements'!17:17) -> 1475.761548 | J10: =SUMIF('Financial Statements'!$11:$11,'Annual Financial Statements'!J$3,'Financial Statements'!17:17) -> 1508.229339 | K10: =SUMIF('Financial Statements'!$11:$11,'Annual Financial Statements'!K$3,'Financial Statements'!17:17) -> 1541.475812 | L10: =SUMIF('Financial Statements'!$11:$11,'Annual Financial Statements'!L$3,'Financial Statements'!17:17) -> 1575.520104 | M10: =SUMIF('Financial Statements'!$11:$11,'Annual Financial Statements'!M$3,'Financial Statements'!17:17) -> 1610.381827 | N10: =SUMIF('Financial Statements'!$11:$11,'Annual Financial Statements'!N$3,'Financial Statements'!17:17) -> 1646.081081 | O10: =SUMIF('Financial Statements'!$11:$11,'Annual Financial Statements'!O$3,'Financial Statements'!17:17) -> 1682.638463 | P10: =SUMIF('Financial Statements'!$11:$11,'Annual Financial Statements'!P$3,'Financial Statements'!17:17) -> 1720.075083 | Q10: =SUMIF('Financial Statements'!$11:$11,'Annual Financial Statements'!Q$3,'Financial Statements'!17:17) -> 1758.412575 | R10: =SUMIF('Financial Statements'!$11:$11,'Annual Financial Statements'!R$3,'Financial Statements'!17:17) -> 1797.673111 | S10: =SUMIF('Financial Statements'!$11:$11,'Annual Financial Statements'!S$3,'Financial Statements'!17:17) -> 1837.879412 | T10: =SUMIF('Financial Statements'!$11:$11,'Annual Financial Statements'!T$3,'Financial Statements'!17:17) -> 1879.054766 | U10: =SUMIF('Financial Statements'!$11:$11,'Annual Financial Statements'!U$3,'Financial Statements'!17:17) -> 1921.223037 | V10: =SUMIF('Financial Statements'!$11:$11,'Annual Financial Statements'!V$3,'Financial Statements'!17:17) -> 1964.408684 | W10: =SUMIF('Financial Statements'!$11:$11,'Annual Financial Statements'!W$3,'Financial Statements'!17:17) -> 2008.636773 | X10: =SUMIF('Financial Statements'!$11:$11,'Annual Financial Statements'!X$3,'Financial Statements'!17:17) -> 2053.932993 | Y10: =SUMIF('Financial Statements'!$11:$11,'Annual Financial Statements'!Y$3,'Financial Statements'!17:17) -> 2100.323671 | Z10: =SUMIF('Financial Statements'!$11:$11,'Annual Financial Statements'!Z$3,'Financial Statements'!17:17) -> 2147.835789 | AA10: =SUMIF('Financial Statements'!$11:$11,'Annual Financial Statements'!AA$3,'Financial Statements'!17:17) -> 2196.497001 | AB10: =SUMIF('Financial Statements'!$11:$11,'Annual Financial Statements'!AB$3,'Financial Statements'!17:17) -> 2246.335647 | AC10: =SUMIF('Financial Statements'!$11:$11,'Annual Financial Statements'!AC$3,'Financial Statements'!17:17) -> 2297.380771 | AD10: =SUMIF('Financial Statements'!$11:$11,'Annual Financial Statements'!AD$3,'Financial Statements'!17:17) -> 2349.66214 | AE10: =SUMIF('Financial Statements'!$11:$11,'Annual Financial Statements'!AE$3,'Financial Statements'!17:17) -> 2403.210262 | AF10: =SUMIF('Financial Statements'!$11:$11,'Annual Financial Statements'!AF$3,'Financial Statements'!17:17) -> 2458.056402 | AG10: =SUMIF('Financial Statements'!$11:$11,'Annual Financial Statements'!AG$3,'Financial Statements'!17:17) -> 2514.232605 | AH10: =SUMIF('Financial Statements'!$11:$11,'Annual Financial Statements'!AH$3,'Financial Statements'!17:17) -> 2571.771711 | AI10: =SUMIF('Financial Statements'!$11:$11,'Annual Financial Statements'!AI$3,'Financial Statements'!17:17) -> 2630.707378
E11: Less: Variable Costs | F11: =[0]!units -> $000's | G11: =SUMIF('Financial Statements'!$11:$11,'Annual Financial Statements'!G$3,'Financial Statements'!18:18) -> 0 | H11: =SUMIF('Financial Statements'!$11:$11,'Annual Financial Statements'!H$3,'Financial Statements'!18:18) -> 0 | I11: =SUMIF('Financial Statements'!$11:$11,'Annual Financial Statements'!I$3,'Financial Statements'!18:18) -> 0 | J11: =SUMIF('Financial Statements'!$11:$11,'Annual Financial Statements'!J$3,'Financial Statements'!18:18) -> 0 | K11: =SUMIF('Financial Statements'!$11:$11,'Annual Financial Statements'!K$3,'Financial Statements'!18:18) -> 0 | L11: =SUMIF('Financial Statements'!$11:$11,'Annual Financial Statements'!L$3,'Financial Statements'!18:18) -> 0 | M11: =SUMIF('Financial Statements'!$11:$11,'Annual Financial Statements'!M$3,'Financial Statements'!18:18) -> 0 | N11: =SUMIF('Financial Statements'!$11:$11,'Annual Financial Statements'!N$3,'Financial Statements'!18:18) -> 0 | O11: =SUMIF('Financial Statements'!$11:$11,'Annual Financial Statements'!O$3,'Financial Statements'!18:18) -> 0 | P11: =SUMIF('Financial Statements'!$11:$11,'Annual Financial Statements'!P$3,'Financial Statements'!18:18) -> 0 | Q11: =SUMIF('Financial Statements'!$11:$11,'Annual Financial Statements'!Q$3,'Financial Statements'!18:18) -> 0 | R11: =SUMIF('Financial Statements'!$11:$11,'Annual Financial Statements'!R$3,'Financial Statements'!18:18) -> 0 | S11: =SUMIF('Financial Statements'!$11:$11,'Annual Financial Statements'!S$3,'Financial Statements'!18:18) -> 0 | T11: =SUMIF('Financial Statements'!$11:$11,'Annual Financial Statements'!T$3,'Financial Statements'!18:18) -> 0 | U11: =SUMIF('Financial Statements'!$11:$11,'Annual Financial Statements'!U$3,'Financial Statements'!18:18) -> 0 | V11: =SUMIF('Financial Statements'!$11:$11,'Annual Financial Statements'!V$3,'Financial Statements'!18:18) -> 0 | W11: =SUMIF('Financial Statements'!$11:$11,'Annual Financial Statements'!W$3,'Financial Statements'!18:18) -> 0 | X11: =SUMIF('Financial Statements'!$11:$11,'Annual Financial Statements'!X$3,'Financial Statements'!18:18) -> 0 | Y11: =SUMIF('Financial Statements'!$11:$11,'Annual Financial Statements'!Y$3,'Financial Statements'!18:18) -> 0 | Z11: =SUMIF('Financial Statements'!$11:$11,'Annual Financial Statements'!Z$3,'Financial Statements'!18:18) -> 0 | AA11: =SUMIF('Financial Statements'!$11:$11,'Annual Financial Statements'!AA$3,'Financial Statements'!18:18) -> 0 | AB11: =SUMIF('Financial Statements'!$11:$11,'Annual Financial Statements'!AB$3,'Financial Statements'!18:18) -> 0 | AC11: =SUMIF('Financial Statements'!$11:$11,'Annual Financial Statements'!AC$3,'Financial Statements'!18:18) -> 0 | AD11: =SUMIF('Financial Statements'!$11:$11,'Annual Financial Statements'!AD$3,'Financial Statements'!18:18) -> 0 | AE11: =SUMIF('Financial Statements'!$11:$11,'Annual Financial Statements'!AE$3,'Financial Statements'!18:18) -> 0 | AF11: =SUMIF('Financial Statements'!$11:$11,'Annual Financial Statements'!AF$3,'Financial Statements'!18:18) -> 0 | AG11: =SUMIF('Financial Statements'!$11:$11,'Annual Financial Statements'!AG$3,'Financial Statements'!18:18) -> 0 | AH11: =SUMIF('Financial Statements'!$11:$11,'Annual Financial Statements'!AH$3,'Financial Statements'!18:18) -> 0 | AI11: =SUMIF('Financial Statements'!$11:$11,'Annual Financial Statements'!AI$3,'Financial Statements'!18:18) -> 0
E12: Gross Margin | F12: =[0]!units -> $000's | G12: =SUMIF('Financial Statements'!$11:$11,'Annual Financial Statements'!G$3,'Financial Statements'!19:19) -> 0 | H12: =SUMIF('Financial Statements'!$11:$11,'Annual Financial Statements'!H$3,'Financial Statements'!19:19) -> 3254.852569 | I12: =SUMIF('Financial Statements'!$11:$11,'Annual Financial Statements'!I$3,'Financial Statements'!19:19) -> 8782.349738 | J12: =SUMIF('Financial Statements'!$11:$11,'Annual Financial Statements'!J$3,'Financial Statements'!19:19) -> 8718.732833 | K12: =SUMIF('Financial Statements'!$11:$11,'Annual Financial Statements'!K$3,'Financial Statements'!19:19) -> 8648.531633 | L12: =SUMIF('Financial Statements'!$11:$11,'Annual Financial Statements'!L$3,'Financial Statements'!19:19) -> 8577.501086 | M12: =SUMIF('Financial Statements'!$11:$11,'Annual Financial Statements'!M$3,'Financial Statements'!19:19) -> 8505.452086 | N12: =SUMIF('Financial Statements'!$11:$11,'Annual Financial Statements'!N$3,'Financial Statements'!19:19) -> 8432.176832 | O12: =SUMIF('Financial Statements'!$11:$11,'Annual Financial Statements'!O$3,'Financial Statements'!19:19) -> 8357.811662 | P12: =SUMIF('Financial Statements'!$11:$11,'Annual Financial Statements'!P$3,'Financial Statements'!19:19) -> 8282.342372 | Q12: =SUMIF('Financial Statements'!$11:$11,'Annual Financial Statements'!Q$3,'Financial Statements'!19:19) -> 8205.658168 | R12: =SUMIF('Financial Statements'!$11:$11,'Annual Financial Statements'!R$3,'Financial Statements'!19:19) -> 8127.636437 | S12: =SUMIF('Financial Statements'!$11:$11,'Annual Financial Statements'!S$3,'Financial Statements'!19:19) -> 8048.391069 | T12: =SUMIF('Financial Statements'!$11:$11,'Annual Financial Statements'!T$3,'Financial Statements'!19:19) -> 7967.906185 | U12: =SUMIF('Financial Statements'!$11:$11,'Annual Financial Statements'!U$3,'Financial Statements'!19:19) -> 7886.109229 | V12: =SUMIF('Financial Statements'!$11:$11,'Annual Financial Statements'!V$3,'Financial Statements'!19:19) -> 7802.851876 | W12: =SUMIF('Financial Statements'!$11:$11,'Annual Financial Statements'!W$3,'Financial Statements'!19:19) -> 7718.345367 | X12: =SUMIF('Financial Statements'!$11:$11,'Annual Financial Statements'!X$3,'Financial Statements'!19:19) -> 7632.635763 | Y12: =SUMIF('Financial Statements'!$11:$11,'Annual Financial Statements'!Y$3,'Financial Statements'!19:19) -> 7545.759558 | Z12: =SUMIF('Financial Statements'!$11:$11,'Annual Financial Statements'!Z$3,'Financial Statements'!19:19) -> 7457.596969 | AA12: =SUMIF('Financial Statements'!$11:$11,'Annual Financial Statements'!AA$3,'Financial Statements'!19:19) -> 7368.379046 | AB12: =SUMIF('Financial Statements'!$11:$11,'Annual Financial Statements'!AB$3,'Financial Statements'!19:19) -> 5870.251111 | AC12: =SUMIF('Financial Statements'!$11:$11,'Annual Financial Statements'!AC$3,'Financial Statements'!19:19) -> 2558.092028 | AD12: =SUMIF('Financial Statements'!$11:$11,'Annual Financial Statements'!AD$3,'Financial Statements'!19:19) -> 2593.532612 | AE12: =SUMIF('Financial Statements'!$11:$11,'Annual Financial Statements'!AE$3,'Financial Statements'!19:19) -> 2632.193835 | AF12: =SUMIF('Financial Statements'!$11:$11,'Annual Financial Statements'!AF$3,'Financial Statements'!19:19) -> 2671.202138 | AG12: =SUMIF('Financial Statements'!$11:$11,'Annual Financial Statements'!AG$3,'Financial Statements'!19:19) -> 2710.612182 | AH12: =SUMIF('Financial Statements'!$11:$11,'Annual Financial Statements'!AH$3,'Financial Statements'!19:19) -> 2750.714144 | AI12: =SUMIF('Financial Statements'!$11:$11,'Annual Financial Statements'!AI$3,'Financial Statements'!19:19) -> 2791.21603
E13: Add: VAT Refunds | F13: =[0]!units -> $000's | G13: =SUMIF('Financial Statements'!$11:$11,'Annual Financial Statements'!G$3,'Financial Statements'!20:20) -> 0 | H13: =SUMIF('Financial Statements'!$11:$11,'Annual Financial Statements'!H$3,'Financial Statements'!20:20) -> 0 | I13: =SUMIF('Financial Statements'!$11:$11,'Annual Financial Statements'!I$3,'Financial Statements'!20:20) -> 0 | J13: =SUMIF('Financial Statements'!$11:$11,'Annual Financial Statements'!J$3,'Financial Statements'!20:20) -> 0 | K13: =SUMIF('Financial Statements'!$11:$11,'Annual Financial Statements'!K$3,'Financial Statements'!20:20) -> 0 | L13: =SUMIF('Financial Statements'!$11:$11,'Annual Financial Statements'!L$3,'Financial Statements'!20:20) -> 0 | M13: =SUMIF('Financial Statements'!$11:$11,'Annual Financial Statements'!M$3,'Financial Statements'!20:20) -> 0 | N13: =SUMIF('Financial Statements'!$11:$11,'Annual Financial Statements'!N$3,'Financial Statements'!20:20) -> 0 | O13: =SUMIF('Financial Statements'!$11:$11,'Annual Financial Statements'!O$3,'Financial Statements'!20:20) -> 0 | P13: =SUMIF('Financial Statements'!$11:$11,'Annual Financial Statements'!P$3,'Financial Statements'!20:20) -> 0 | Q13: =SUMIF('Financial Statements'!$11:$11,'Annual Financial Statements'!Q$3,'Financial Statements'!20:20) -> 0 | R13: =SUMIF('Financial Statements'!$11:$11,'Annual Financial Statements'!R$3,'Financial Statements'!20:20) -> 0 | S13: =SUMIF('Financial Statements'!$11:$11,'Annual Financial Statements'!S$3,'Financial Statements'!20:20) -> 0 | T13: =SUMIF('Financial Statements'!$11:$11,'Annual Financial Statements'!T$3,'Financial Statements'!20:20) -> 0 | U13: =SUMIF('Financial Statements'!$11:$11,'Annual Financial Statements'!U$3,'Financial Statements'!20:20) -> 0 | V13: =SUMIF('Financial Statements'!$11:$11,'Annual Financial Statements'!V$3,'Financial Statements'!20:20) -> 0 | W13: =SUMIF('Financial Statements'!$11:$11,'Annual Financial Statements'!W$3,'Financial Statements'!20:20) -> 0 | X13: =SUMIF('Financial Statements'!$11:$11,'Annual Financial Statements'!X$3,'Financial Statements'!20:20) -> 0 | Y13: =SUMIF('Financial Statements'!$11:$11,'Annual Financial Statements'!Y$3,'Financial Statements'!20:20) -> 0 | Z13: =SUMIF('Financial Statements'!$11:$11,'Annual Financial Statements'!Z$3,'Financial Statements'!20:20) -> 0 | AA13: =SUMIF('Financial Statements'!$11:$11,'Annual Financial Statements'!AA$3,'Financial Statements'!20:20) -> 0 | AB13: =SUMIF('Financial Statements'!$11:$11,'Annual Financial Statements'!AB$3,'Financial Statements'!20:20) -> 0 | AC13: =SUMIF('Financial Statements'!$11:$11,'Annual Financial Statements'!AC$3,'Financial Statements'!20:20) -> 0 | AD13: =SUMIF('Financial Statements'!$11:$11,'Annual Financial Statements'!AD$3,'Financial Statements'!20:20) -> 0 | AE13: =SUMIF('Financial Statements'!$11:$11,'Annual Financial Statements'!AE$3,'Financial Statements'!20:20) -> 0 | AF13: =SUMIF('Financial Statements'!$11:$11,'Annual Financial Statements'!AF$3,'Financial Statements'!20:20) -> 0 | AG13: =SUMIF('Financial Statements'!$11:$11,'Annual Financial Statements'!AG$3,'Financial Statements'!20:20) -> 0 | AH13: =SUMIF('Financial Statements'!$11:$11,'Annual Financial Statements'!AH$3,'Financial Statements'!20:20) -> 0 | AI13: =SUMIF('Financial Statements'!$11:$11,'Annual Financial Statements'!AI$3,'Financial Statements'!20:20) -> 0
E14: Less: LC Fee for DSRA | F14: =[0]!units -> $000's | G14: =SUMIF('Financial Statements'!$11:$11,'Annual Financial Statements'!G$3,'Financial Statements'!21:21) -> 0 | H14: =SUMIF('Financial Statements'!$11:$11,'Annual Financial Statements'!H$3,'Financial Statements'!21:21) -> 0 | I14: =SUMIF('Financial Statements'!$11:$11,'Annual Financial Statements'!I$3,'Financial Statements'!21:21) -> 0 | J14: =SUMIF('Financial Statements'!$11:$11,'Annual Financial Statements'!J$3,'Financial Statements'!21:21) -> 0 | K14: =SUMIF('Financial Statements'!$11:$11,'Annual Financial Statements'!K$3,'Financial Statements'!21:21) -> 0 | L14: =SUMIF('Financial Statements'!$11:$11,'Annual Financial Statements'!L$3,'Financial Statements'!21:21) -> 0 | M14: =SUMIF('Financial Statements'!$11:$11,'Annual Financial Statements'!M$3,'Financial Statements'!21:21) -> 0 | N14: =SUMIF('Financial Statements'!$11:$11,'Annual Financial Statements'!N$3,'Financial Statements'!21:21) -> 0 | O14: =SUMIF('Financial Statements'!$11:$11,'Annual Financial Statements'!O$3,'Financial Statements'!21:21) -> 0 | P14: =SUMIF('Financial Statements'!$11:$11,'Annual Financial Statements'!P$3,'Financial Statements'!21:21) -> 0 | Q14: =SUMIF('Financial Statements'!$11:$11,'Annual Financial Statements'!Q$3,'Financial Statements'!21:21) -> 0 | R14: =SUMIF('Financial Statements'!$11:$11,'Annual Financial Statements'!R$3,'Financial Statements'!21:21) -> 0 | S14: =SUMIF('Financial Statements'!$11:$11,'Annual Financial Statements'!S$3,'Financial Statements'!21:21) -> 0 | T14: =SUMIF('Financial Statements'!$11:$11,'Annual Financial Statements'!T$3,'Financial Statements'!21:21) -> 0 | U14: =SUMIF('Financial Statements'!$11:$11,'Annual Financial Statements'!U$3,'Financial Statements'!21:21) -> 0 | V14: =SUMIF('Financial Statements'!$11:$11,'Annual Financial Statements'!V$3,'Financial Statements'!21:21) -> 0 | W14: =SUMIF('Financial Statements'!$11:$11,'Annual Financial Statements'!W$3,'Financial Statements'!21:21) -> 0 | X14: =SUMIF('Financial Statements'!$11:$11,'Annual Financial Statements'!X$3,'Financial Statements'!21:21) -> 0 | Y14: =SUMIF('Financial Statements'!$11:$11,'Annual Financial Statements'!Y$3,'Financial Statements'!21:21) -> 0 | Z14: =SUMIF('Financial Statements'!$11:$11,'Annual Financial Statements'!Z$3,'Financial Statements'!21:21) -> 0 | AA14: =SUMIF('Financial Statements'!$11:$11,'Annual Financial Statements'!AA$3,'Financial Statements'!21:21) -> 0 | AB14: =SUMIF('Financial Statements'!$11:$11,'Annual Financial Statements'!AB$3,'Financial Statements'!21:21) -> 0 | AC14: =SUMIF('Financial Statements'!$11:$11,'Annual Financial Statements'!AC$3,'Financial Statements'!21:21) -> 0 | AD14: =SUMIF('Financial Statements'!$11:$11,'Annual Financial Statements'!AD$3,'Financial Statements'!21:21) -> 0 | AE14: =SUMIF('Financial Statements'!$11:$11,'Annual Financial Statements'!AE$3,'Financial Statements'!21:21) -> 0 | AF14: =SUMIF('Financial Statements'!$11:$11,'Annual Financial Statements'!AF$3,'Financial Statements'!21:21) -> 0 | AG14: =SUMIF('Financial Statements'!$11:$11,'Annual Financial Statements'!AG$3,'Financial Statements'!21:21) -> 0 | AH14: =SUMIF('Financial Statements'!$11:$11,'Annual Financial Statements'!AH$3,'Financial Statements'!21:21) -> 0 | AI14: =SUMIF('Financial Statements'!$11:$11,'Annual Financial Statements'!AI$3,'Financial Statements'!21:21) -> 0
E15: Less: Working Capital Changes | F15: =units -> $000's | G15: =SUMIF('Financial Statements'!$11:$11,'Annual Financial Statements'!G$3,'Financial Statements'!22:22) -> 0 | H15: =SUMIF('Financial Statements'!$11:$11,'Annual Financial Statements'!H$3,'Financial Statements'!22:22) -> 758.0577568 | I15: =SUMIF('Financial Statements'!$11:$11,'Annual Financial Statements'!I$3,'Financial Statements'!22:22) -> -4.005764356 | J15: =SUMIF('Financial Statements'!$11:$11,'Annual Financial Statements'!J$3,'Financial Statements'!22:22) -> -5.914263061 | K15: =SUMIF('Financial Statements'!$11:$11,'Annual Financial Statements'!K$3,'Financial Statements'!22:22) -> -5.977570183 | L15: =SUMIF('Financial Statements'!$11:$11,'Annual Financial Statements'!L$3,'Financial Statements'!22:22) -> -6.054352633 | M15: =SUMIF('Financial Statements'!$11:$11,'Annual Financial Statements'!M$3,'Financial Statements'!22:22) -> -6.146578057 | N15: =SUMIF('Financial Statements'!$11:$11,'Annual Financial Statements'!N$3,'Financial Statements'!22:22) -> -6.252785406 | O15: =SUMIF('Financial Statements'!$11:$11,'Annual Financial Statements'!O$3,'Financial Statements'!22:22) -> -6.338610291 | P15: =SUMIF('Financial Statements'!$11:$11,'Annual Financial Statements'!P$3,'Financial Statements'!22:22) -> -6.436587808 | Q15: =SUMIF('Financial Statements'!$11:$11,'Annual Financial Statements'!Q$3,'Financial Statements'!22:22) -> -6.541241122 | R15: =SUMIF('Financial Statements'!$11:$11,'Annual Financial Statements'!R$3,'Financial Statements'!22:22) -> -6.657075595 | S15: =SUMIF('Financial Statements'!$11:$11,'Annual Financial Statements'!S$3,'Financial Statements'!22:22) -> -6.754710158 | T15: =SUMIF('Financial Statements'!$11:$11,'Annual Financial Statements'!T$3,'Financial Statements'!22:22) -> -6.862476444 | U15: =SUMIF('Financial Statements'!$11:$11,'Annual Financial Statements'!U$3,'Financial Statements'!22:22) -> -6.976140158 | V15: =SUMIF('Financial Statements'!$11:$11,'Annual Financial Statements'!V$3,'Financial Statements'!22:22) -> -7.099513523 | W15: =SUMIF('Financial Statements'!$11:$11,'Annual Financial Statements'!W$3,'Financial Statements'!22:22) -> -7.196117302 | X15: =SUMIF('Financial Statements'!$11:$11,'Annual Financial Statements'!X$3,'Financial Statements'!22:22) -> -7.296260042 | Y15: =SUMIF('Financial Statements'!$11:$11,'Annual Financial Statements'!Y$3,'Financial Statements'!22:22) -> -7.395184177 | Z15: =SUMIF('Financial Statements'!$11:$11,'Annual Financial Statements'!Z$3,'Financial Statements'!22:22) -> -7.502462466 | AA15: =SUMIF('Financial Statements'!$11:$11,'Annual Financial Statements'!AA$3,'Financial Statements'!22:22) -> -7.583678901 | AB15: =SUMIF('Financial Statements'!$11:$11,'Annual Financial Statements'!AB$3,'Financial Statements'!22:22) -> -410.2125966 | AC15: =SUMIF('Financial Statements'!$11:$11,'Annual Financial Statements'!AC$3,'Financial Statements'!22:22) -> 3.041683804 | AD15: =SUMIF('Financial Statements'!$11:$11,'Annual Financial Statements'!AD$3,'Financial Statements'!22:22) -> 3.365523809 | AE15: =SUMIF('Financial Statements'!$11:$11,'Annual Financial Statements'!AE$3,'Financial Statements'!22:22) -> 3.447782881 | AF15: =SUMIF('Financial Statements'!$11:$11,'Annual Financial Statements'!AF$3,'Financial Statements'!22:22) -> 3.483580075 | AG15: =SUMIF('Financial Statements'!$11:$11,'Annual Financial Statements'!AG$3,'Financial Statements'!22:22) -> 3.524553268 | AH15: =SUMIF('Financial Statements'!$11:$11,'Annual Financial Statements'!AH$3,'Financial Statements'!22:22) -> 3.59517683 | AI15: =SUMIF('Financial Statements'!$11:$11,'Annual Financial Statements'!AI$3,'Financial Statements'!22:22) -> 3.620017324
E16: Less: Future Capital Expenditures | F16: $000's | G16: =SUMIF('Financial Statements'!$11:$11,'Annual Financial Statements'!G$3,'Financial Statements'!23:23) -> 0 | H16: =SUMIF('Financial Statements'!$11:$11,'Annual Financial Statements'!H$3,'Financial Statements'!23:23) -> 0 | I16: =SUMIF('Financial Statements'!$11:$11,'Annual Financial Statements'!I$3,'Financial Statements'!23:23) -> 0 | J16: =SUMIF('Financial Statements'!$11:$11,'Annual Financial Statements'!J$3,'Financial Statements'!23:23) -> 0 | K16: =SUMIF('Financial Statements'!$11:$11,'Annual Financial Statements'!K$3,'Financial Statements'!23:23) -> 0 | L16: =SUMIF('Financial Statements'!$11:$11,'Annual Financial Statements'!L$3,'Financial Statements'!23:23) -> 0 | M16: =SUMIF('Financial Statements'!$11:$11,'Annual Financial Statements'!M$3,'Financial Statements'!23:23) -> 0 | N16: =SUMIF('Financial Statements'!$11:$11,'Annual Financial Statements'!N$3,'Financial Statements'!23:23) -> 0 | O16: =SUMIF('Financial Statements'!$11:$11,'Annual Financial Statements'!O$3,'Financial Statements'!23:23) -> 0 | P16: =SUMIF('Financial Statements'!$11:$11,'Annual Financial Statements'!P$3,'Financial Statements'!23:23) -> 0 | Q16: =SUMIF('Financial Statements'!$11:$11,'Annual Financial Statements'!Q$3,'Financial Statements'!23:23) -> 0 | R16: =SUMIF('Financial Statements'!$11:$11,'Annual Financial Statements'!R$3,'Financial Statements'!23:23) -> 0 | S16: =SUMIF('Financial Statements'!$11:$11,'Annual Financial Statements'!S$3,'Financial Statements'!23:23) -> 0 | T16: =SUMIF('Financial Statements'!$11:$11,'Annual Financial Statements'!T$3,'Financial Statements'!23:23) -> 0 | U16: =SUMIF('Financial Statements'!$11:$11,'Annual Financial Statements'!U$3,'Financial Statements'!23:23) -> 0 | V16: =SUMIF('Financial Statements'!$11:$11,'Annual Financial Statements'!V$3,'Financial Statements'!23:23) -> 0 | W16: =SUMIF('Financial Statements'!$11:$11,'Annual Financial Statements'!W$3,'Financial Statements'!23:23) -> 0 | X16: =SUMIF('Financial Statements'!$11:$11,'Annual Financial Statements'!X$3,'Financial Statements'!23:23) -> 0 | Y16: =SUMIF('Financial Statements'!$11:$11,'Annual Financial Statements'!Y$3,'Financial Statements'!23:23) -> 0 | Z16: =SUMIF('Financial Statements'!$11:$11,'Annual Financial Statements'!Z$3,'Financial Statements'!23:23) -> 0 | AA16: =SUMIF('Financial Statements'!$11:$11,'Annual Financial Statements'!AA$3,'Financial Statements'!23:23) -> 0 | AB16: =SUMIF('Financial Statements'!$11:$11,'Annual Financial Statements'!AB$3,'Financial Statements'!23:23) -> 0 | AC16: =SUMIF('Financial Statements'!$11:$11,'Annual Financial Statements'!AC$3,'Financial Statements'!23:23) -> 0 | AD16: =SUMIF('Financial Statements'!$11:$11,'Annual Financial Statements'!AD$3,'Financial Statements'!23:23) -> 0 | AE16: =SUMIF('Financial Statements'!$11:$11,'Annual Financial Statements'!AE$3,'Financial Statements'!23:23) -> 0 | AF16: =SUMIF('Financial Statements'!$11:$11,'Annual Financial Statements'!AF$3,'Financial Statements'!23:23) -> 0 | AG16: =SUMIF('Financial Statements'!$11:$11,'Annual Financial Statements'!AG$3,'Financial Statements'!23:23) -> 0 | AH16: =SUMIF('Financial Statements'!$11:$11,'Annual Financial Statements'!AH$3,'Financial Statements'!23:23) -> 0 | AI16: =SUMIF('Financial Statements'!$11:$11,'Annual Financial Statements'!AI$3,'Financial Statements'!23:23) -> 0
E17: Less: Net Change in Operating Reserve | F17: $000's | G17: =SUMIF('Financial Statements'!$11:$11,'Annual Financial Statements'!G$3,'Financial Statements'!24:24) -> 0 | H17: =SUMIF('Financial Statements'!$11:$11,'Annual Financial Statements'!H$3,'Financial Statements'!24:24) -> 0 | I17: =SUMIF('Financial Statements'!$11:$11,'Annual Financial Statements'!I$3,'Financial Statements'!24:24) -> 0 | J17: =SUMIF('Financial Statements'!$11:$11,'Annual Financial Statements'!J$3,'Financial Statements'!24:24) -> 0 | K17: =SUMIF('Financial Statements'!$11:$11,'Annual Financial Statements'!K$3,'Financial Statements'!24:24) -> 0 | L17: =SUMIF('Financial Statements'!$11:$11,'Annual Financial Statements'!L$3,'Financial Statements'!24:24) -> 0 | M17: =SUMIF('Financial Statements'!$11:$11,'Annual Financial Statements'!M$3,'Financial Statements'!24:24) -> 0 | N17: =SUMIF('Financial Statements'!$11:$11,'Annual Financial Statements'!N$3,'Financial Statements'!24:24) -> 0 | O17: =SUMIF('Financial Statements'!$11:$11,'Annual Financial Statements'!O$3,'Financial Statements'!24:24) -> 0 | P17: =SUMIF('Financial Statements'!$11:$11,'Annual Financial Statements'!P$3,'Financial Statements'!24:24) -> 0 | Q17: =SUMIF('Financial Statements'!$11:$11,'Annual Financial Statements'!Q$3,'Financial Statements'!24:24) -> 0 | R17: =SUMIF('Financial Statements'!$11:$11,'Annual Financial Statements'!R$3,'Financial Statements'!24:24) -> 0 | S17: =SUMIF('Financial Statements'!$11:$11,'Annual Financial Statements'!S$3,'Financial Statements'!24:24) -> 0 | T17: =SUMIF('Financial Statements'!$11:$11,'Annual Financial Statements'!T$3,'Financial Statements'!24:24) -> 0 | U17: =SUMIF('Financial Statements'!$11:$11,'Annual Financial Statements'!U$3,'Financial Statements'!24:24) -> 0 | V17: =SUMIF('Financial Statements'!$11:$11,'Annual Financial Statements'!V$3,'Financial Statements'!24:24) -> 0 | W17: =SUMIF('Financial Statements'!$11:$11,'Annual Financial Statements'!W$3,'Financial Statements'!24:24) -> 0 | X17: =SUMIF('Financial Statements'!$11:$11,'Annual Financial Statements'!X$3,'Financial Statements'!24:24) -> 0 | Y17: =SUMIF('Financial Statements'!$11:$11,'Annual Financial Statements'!Y$3,'Financial Statements'!24:24) -> 0 | Z17: =SUMIF('Financial Statements'!$11:$11,'Annual Financial Statements'!Z$3,'Financial Statements'!24:24) -> 0 | AA17: =SUMIF('Financial Statements'!$11:$11,'Annual Financial Statements'!AA$3,'Financial Statements'!24:24) -> 0 | AB17: =SUMIF('Financial Statements'!$11:$11,'Annual Financial Statements'!AB$3,'Financial Statements'!24:24) -> 0 | AC17: =SUMIF('Financial Statements'!$11:$11,'Annual Financial Statements'!AC$3,'Financial Statements'!24:24) -> 0 | AD17: =SUMIF('Financial Statements'!$11:$11,'Annual Financial Statements'!AD$3,'Financial Statements'!24:24) -> 0 | AE17: =SUMIF('Financial Statements'!$11:$11,'Annual Financial Statements'!AE$3,'Financial Statements'!24:24) -> 0 | AF17: =SUMIF('Financial Statements'!$11:$11,'Annual Financial Statements'!AF$3,'Financial Statements'!24:24) -> 0 | AG17: =SUMIF('Financial Statements'!$11:$11,'Annual Financial Statements'!AG$3,'Financial Statements'!24:24) -> 0 | AH17: =SUMIF('Financial Statements'!$11:$11,'Annual Financial Statements'!AH$3,'Financial Statements'!24:24) -> 0 | AI17: =SUMIF('Financial Statements'!$11:$11,'Annual Financial Statements'!AI$3,'Financial Statements'!24:24) -> 0
E18: Less: Net Change in MRA | F18: $000's | G18: =SUMIF('Financial Statements'!$11:$11,'Annual Financial Statements'!G$3,'Financial Statements'!25:25) -> 0 | H18: =SUMIF('Financial Statements'!$11:$11,'Annual Financial Statements'!H$3,'Financial Statements'!25:25) -> 0 | I18: =SUMIF('Financial Statements'!$11:$11,'Annual Financial Statements'!I$3,'Financial Statements'!25:25) -> 0 | J18: =SUMIF('Financial Statements'!$11:$11,'Annual Financial Statements'!J$3,'Financial Statements'!25:25) -> 0 | K18: =SUMIF('Financial Statements'!$11:$11,'Annual Financial Statements'!K$3,'Financial Statements'!25:25) -> 0 | L18: =SUMIF('Financial Statements'!$11:$11,'Annual Financial Statements'!L$3,'Financial Statements'!25:25) -> 0 | M18: =SUMIF('Financial Statements'!$11:$11,'Annual Financial Statements'!M$3,'Financial Statements'!25:25) -> 0 | N18: =SUMIF('Financial Statements'!$11:$11,'Annual Financial Statements'!N$3,'Financial Statements'!25:25) -> 0 | O18: =SUMIF('Financial Statements'!$11:$11,'Annual Financial Statements'!O$3,'Financial Statements'!25:25) -> 0 | P18: =SUMIF('Financial Statements'!$11:$11,'Annual Financial Statements'!P$3,'Financial Statements'!25:25) -> 0 | Q18: =SUMIF('Financial Statements'!$11:$11,'Annual Financial Statements'!Q$3,'Financial Statements'!25:25) -> 0 | R18: =SUMIF('Financial Statements'!$11:$11,'Annual Financial Statements'!R$3,'Financial Statements'!25:25) -> 0 | S18: =SUMIF('Financial Statements'!$11:$11,'Annual Financial Statements'!S$3,'Financial Statements'!25:25) -> 0 | T18: =SUMIF('Financial Statements'!$11:$11,'Annual Financial Statements'!T$3,'Financial Statements'!25:25) -> 0 | U18: =SUMIF('Financial Statements'!$11:$11,'Annual Financial Statements'!U$3,'Financial Statements'!25:25) -> 0 | V18: =SUMIF('Financial Statements'!$11:$11,'Annual Financial Statements'!V$3,'Financial Statements'!25:25) -> 0 | W18: =SUMIF('Financial Statements'!$11:$11,'Annual Financial Statements'!W$3,'Financial Statements'!25:25) -> 0 | X18: =SUMIF('Financial Statements'!$11:$11,'Annual Financial Statements'!X$3,'Financial Statements'!25:25) -> 0 | Y18: =SUMIF('Financial Statements'!$11:$11,'Annual Financial Statements'!Y$3,'Financial Statements'!25:25) -> 0 | Z18: =SUMIF('Financial Statements'!$11:$11,'Annual Financial Statements'!Z$3,'Financial Statements'!25:25) -> 0 | AA18: =SUMIF('Financial Statements'!$11:$11,'Annual Financial Statements'!AA$3,'Financial Statements'!25:25) -> 0 | AB18: =SUMIF('Financial Statements'!$11:$11,'Annual Financial Statements'!AB$3,'Financial Statements'!25:25) -> 0 | AC18: =SUMIF('Financial Statements'!$11:$11,'Annual Financial Statements'!AC$3,'Financial Statements'!25:25) -> 0 | AD18: =SUMIF('Financial Statements'!$11:$11,'Annual Financial Statements'!AD$3,'Financial Statements'!25:25) -> 0 | AE18: =SUMIF('Financial Statements'!$11:$11,'Annual Financial Statements'!AE$3,'Financial Statements'!25:25) -> 0 | AF18: =SUMIF('Financial Statements'!$11:$11,'Annual Financial Statements'!AF$3,'Financial Statements'!25:25) -> 0 | AG18: =SUMIF('Financial Statements'!$11:$11,'Annual Financial Statements'!AG$3,'Financial Statements'!25:25) -> 0 | AH18: =SUMIF('Financial Statements'!$11:$11,'Annual Financial Statements'!AH$3,'Financial Statements'!25:25) -> 0 | AI18: =SUMIF('Financial Statements'!$11:$11,'Annual Financial Statements'!AI$3,'Financial Statements'!25:25) -> 0
E19: Less: PRG | F19: $000's | G19: =SUMIF('Financial Statements'!$11:$11,'Annual Financial Statements'!G$3,'Financial Statements'!26:26) -> 0 | H19: =SUMIF('Financial Statements'!$11:$11,'Annual Financial Statements'!H$3,'Financial Statements'!26:26) -> 486.3123943 | I19: =SUMIF('Financial Statements'!$11:$11,'Annual Financial Statements'!I$3,'Financial Statements'!26:26) -> 977.2852471 | J19: =SUMIF('Financial Statements'!$11:$11,'Annual Financial Statements'!J$3,'Financial Statements'!26:26) -> 953.7203603 | K19: =SUMIF('Financial Statements'!$11:$11,'Annual Financial Statements'!K$3,'Financial Statements'!26:26) -> 922.7472011 | L19: =SUMIF('Financial Statements'!$11:$11,'Annual Financial Statements'!L$3,'Financial Statements'!26:26) -> 892.0571075 | M19: =SUMIF('Financial Statements'!$11:$11,'Annual Financial Statements'!M$3,'Financial Statements'!26:26) -> 858.8960399 | N19: =SUMIF('Financial Statements'!$11:$11,'Annual Financial Statements'!N$3,'Financial Statements'!26:26) -> 825.3949416 | O19: =SUMIF('Financial Statements'!$11:$11,'Annual Financial Statements'!O$3,'Financial Statements'!26:26) -> 784.2902202 | P19: =SUMIF('Financial Statements'!$11:$11,'Annual Financial Statements'!P$3,'Financial Statements'!26:26) -> 741.9814626 | Q19: =SUMIF('Financial Statements'!$11:$11,'Annual Financial Statements'!Q$3,'Financial Statements'!26:26) -> 695.91106 | R19: =SUMIF('Financial Statements'!$11:$11,'Annual Financial Statements'!R$3,'Financial Statements'!26:26) -> 647.5625837 | S19: =SUMIF('Financial Statements'!$11:$11,'Annual Financial Statements'!S$3,'Financial Statements'!26:26) -> 590.9534372 | T19: =SUMIF('Financial Statements'!$11:$11,'Annual Financial Statements'!T$3,'Financial Statements'!26:26) -> 530.89774 | U19: =SUMIF('Financial Statements'!$11:$11,'Annual Financial Statements'!U$3,'Financial Statements'!26:26) -> 465.0843762 | V19: =SUMIF('Financial Statements'!$11:$11,'Annual Financial Statements'!V$3,'Financial Statements'!26:26) -> 394.0550206 | W19: =SUMIF('Financial Statements'!$11:$11,'Annual Financial Statements'!W$3,'Financial Statements'!26:26) -> 313.6286032 | X19: =SUMIF('Financial Statements'!$11:$11,'Annual Financial Statements'!X$3,'Financial Statements'!26:26) -> 226.4765153 | Y19: =SUMIF('Financial Statements'!$11:$11,'Annual Financial Statements'!Y$3,'Financial Statements'!26:26) -> 130.8306451 | Z19: =SUMIF('Financial Statements'!$11:$11,'Annual Financial Statements'!Z$3,'Financial Statements'!26:26) -> 28.09572782 | AA19: =SUMIF('Financial Statements'!$11:$11,'Annual Financial Statements'!AA$3,'Financial Statements'!26:26) -> 1.786122286e-09 | AB19: =SUMIF('Financial Statements'!$11:$11,'Annual Financial Statements'!AB$3,'Financial Statements'!26:26) -> 1.786122286e-09 | AC19: =SUMIF('Financial Statements'!$11:$11,'Annual Financial Statements'!AC$3,'Financial Statements'!26:26) -> 1.786122286e-09 | AD19: =SUMIF('Financial Statements'!$11:$11,'Annual Financial Statements'!AD$3,'Financial Statements'!26:26) -> 1.791015772e-09 | AE19: =SUMIF('Financial Statements'!$11:$11,'Annual Financial Statements'!AE$3,'Financial Statements'!26:26) -> 1.786122286e-09 | AF19: =SUMIF('Financial Statements'!$11:$11,'Annual Financial Statements'!AF$3,'Financial Statements'!26:26) -> 1.786122286e-09 | AG19: =SUMIF('Financial Statements'!$11:$11,'Annual Financial Statements'!AG$3,'Financial Statements'!26:26) -> 1.786122286e-09 | AH19: =SUMIF('Financial Statements'!$11:$11,'Annual Financial Statements'!AH$3,'Financial Statements'!26:26) -> 1.791015772e-09 | AI19: =SUMIF('Financial Statements'!$11:$11,'Annual Financial Statements'!AI$3,'Financial Statements'!26:26) -> 1.786122286e-09
E20: Less: PRI | F20: $000's | G20: =SUMIF('Financial Statements'!$11:$11,'Annual Financial Statements'!G$3,'Financial Statements'!27:27) -> 0 | H20: =SUMIF('Financial Statements'!$11:$11,'Annual Financial Statements'!H$3,'Financial Statements'!27:27) -> 127.6570035 | I20: =SUMIF('Financial Statements'!$11:$11,'Annual Financial Statements'!I$3,'Financial Statements'!27:27) -> 261.0311219 | J20: =SUMIF('Financial Statements'!$11:$11,'Annual Financial Statements'!J$3,'Financial Statements'!27:27) -> 282.3349764 | K20: =SUMIF('Financial Statements'!$11:$11,'Annual Financial Statements'!K$3,'Financial Statements'!27:27) -> 303.8083634 | L20: =SUMIF('Financial Statements'!$11:$11,'Annual Financial Statements'!L$3,'Financial Statements'!27:27) -> 327.8810874 | M20: =SUMIF('Financial Statements'!$11:$11,'Annual Financial Statements'!M$3,'Financial Statements'!27:27) -> 353.8984115 | N20: =SUMIF('Financial Statements'!$11:$11,'Annual Financial Statements'!N$3,'Financial Statements'!27:27) -> 118.2403239 | O20: =SUMIF('Financial Statements'!$11:$11,'Annual Financial Statements'!O$3,'Financial Statements'!27:27) -> 101.5710304 | P20: =SUMIF('Financial Statements'!$11:$11,'Annual Financial Statements'!P$3,'Financial Statements'!27:27) -> 84.03455301 | Q20: =SUMIF('Financial Statements'!$11:$11,'Annual Financial Statements'!Q$3,'Financial Statements'!27:27) -> 35.21742362 | R20: =SUMIF('Financial Statements'!$11:$11,'Annual Financial Statements'!R$3,'Financial Statements'!27:27) -> 0 | S20: =SUMIF('Financial Statements'!$11:$11,'Annual Financial Statements'!S$3,'Financial Statements'!27:27) -> 0 | T20: =SUMIF('Financial Statements'!$11:$11,'Annual Financial Statements'!T$3,'Financial Statements'!27:27) -> 0 | U20: =SUMIF('Financial Statements'!$11:$11,'Annual Financial Statements'!U$3,'Financial Statements'!27:27) -> 0 | V20: =SUMIF('Financial Statements'!$11:$11,'Annual Financial Statements'!V$3,'Financial Statements'!27:27) -> 0 | W20: =SUMIF('Financial Statements'!$11:$11,'Annual Financial Statements'!W$3,'Financial Statements'!27:27) -> 0 | X20: =SUMIF('Financial Statements'!$11:$11,'Annual Financial Statements'!X$3,'Financial Statements'!27:27) -> 0 | Y20: =SUMIF('Financial Statements'!$11:$11,'Annual Financial Statements'!Y$3,'Financial Statements'!27:27) -> 0 | Z20: =SUMIF('Financial Statements'!$11:$11,'Annual Financial Statements'!Z$3,'Financial Statements'!27:27) -> 0 | AA20: =SUMIF('Financial Statements'!$11:$11,'Annual Financial Statements'!AA$3,'Financial Statements'!27:27) -> 0 | AB20: =SUMIF('Financial Statements'!$11:$11,'Annual Financial Statements'!AB$3,'Financial Statements'!27:27) -> 0 | AC20: =SUMIF('Financial Statements'!$11:$11,'Annual Financial Statements'!AC$3,'Financial Statements'!27:27) -> 0 | AD20: =SUMIF('Financial Statements'!$11:$11,'Annual Financial Statements'!AD$3,'Financial Statements'!27:27) -> 0 | AE20: =SUMIF('Financial Statements'!$11:$11,'Annual Financial Statements'!AE$3,'Financial Statements'!27:27) -> 0 | AF20: =SUMIF('Financial Statements'!$11:$11,'Annual Financial Statements'!AF$3,'Financial Statements'!27:27) -> 0 | AG20: =SUMIF('Financial Statements'!$11:$11,'Annual Financial Statements'!AG$3,'Financial Statements'!27:27) -> 0 | AH20: =SUMIF('Financial Statements'!$11:$11,'Annual Financial Statements'!AH$3,'Financial Statements'!27:27) -> 0 | AI20: =SUMIF('Financial Statements'!$11:$11,'Annual Financial Statements'!AI$3,'Financial Statements'!27:27) -> 0
E21: Operating Cash Flow | F21: $000's | G21: =SUMIF('Financial Statements'!$11:$11,'Annual Financial Statements'!G$3,'Financial Statements'!28:28) -> 0 | H21: =SUMIF('Financial Statements'!$11:$11,'Annual Financial Statements'!H$3,'Financial Statements'!28:28) -> 1882.825414 | I21: =SUMIF('Financial Statements'!$11:$11,'Annual Financial Statements'!I$3,'Financial Statements'!28:28) -> 7548.039134 | J21: =SUMIF('Financial Statements'!$11:$11,'Annual Financial Statements'!J$3,'Financial Statements'!28:28) -> 7488.591759 | K21: =SUMIF('Financial Statements'!$11:$11,'Annual Financial Statements'!K$3,'Financial Statements'!28:28) -> 7427.953638 | L21: =SUMIF('Financial Statements'!$11:$11,'Annual Financial Statements'!L$3,'Financial Statements'!28:28) -> 7363.617244 | M21: =SUMIF('Financial Statements'!$11:$11,'Annual Financial Statements'!M$3,'Financial Statements'!28:28) -> 7298.804213 | N21: =SUMIF('Financial Statements'!$11:$11,'Annual Financial Statements'!N$3,'Financial Statements'!28:28) -> 7494.794352 | O21: =SUMIF('Financial Statements'!$11:$11,'Annual Financial Statements'!O$3,'Financial Statements'!28:28) -> 7478.289022 | P21: =SUMIF('Financial Statements'!$11:$11,'Annual Financial Statements'!P$3,'Financial Statements'!28:28) -> 7462.762944 | Q21: =SUMIF('Financial Statements'!$11:$11,'Annual Financial Statements'!Q$3,'Financial Statements'!28:28) -> 7481.070925 | R21: =SUMIF('Financial Statements'!$11:$11,'Annual Financial Statements'!R$3,'Financial Statements'!28:28) -> 7486.730929 | S21: =SUMIF('Financial Statements'!$11:$11,'Annual Financial Statements'!S$3,'Financial Statements'!28:28) -> 7464.192342 | T21: =SUMIF('Financial Statements'!$11:$11,'Annual Financial Statements'!T$3,'Financial Statements'!28:28) -> 7443.870922 | U21: =SUMIF('Financial Statements'!$11:$11,'Annual Financial Statements'!U$3,'Financial Statements'!28:28) -> 7428.000993 | V21: =SUMIF('Financial Statements'!$11:$11,'Annual Financial Statements'!V$3,'Financial Statements'!28:28) -> 7415.896369 | W21: =SUMIF('Financial Statements'!$11:$11,'Annual Financial Statements'!W$3,'Financial Statements'!28:28) -> 7411.912881 | X21: =SUMIF('Financial Statements'!$11:$11,'Annual Financial Statements'!X$3,'Financial Statements'!28:28) -> 7413.455508 | Y21: =SUMIF('Financial Statements'!$11:$11,'Annual Financial Statements'!Y$3,'Financial Statements'!28:28) -> 7422.324097 | Z21: =SUMIF('Financial Statements'!$11:$11,'Annual Financial Statements'!Z$3,'Financial Statements'!28:28) -> 7437.003703 | AA21: =SUMIF('Financial Statements'!$11:$11,'Annual Financial Statements'!AA$3,'Financial Statements'!28:28) -> 7375.962725 | AB21: =SUMIF('Financial Statements'!$11:$11,'Annual Financial Statements'!AB$3,'Financial Statements'!28:28) -> 6280.463708 | AC21: =SUMIF('Financial Statements'!$11:$11,'Annual Financial Statements'!AC$3,'Financial Statements'!28:28) -> 2555.050345 | AD21: =SUMIF('Financial Statements'!$11:$11,'Annual Financial Statements'!AD$3,'Financial Statements'!28:28) -> 2590.167088 | AE21: =SUMIF('Financial Statements'!$11:$11,'Annual Financial Statements'!AE$3,'Financial Statements'!28:28) -> 2628.746052 | AF21: =SUMIF('Financial Statements'!$11:$11,'Annual Financial Statements'!AF$3,'Financial Statements'!28:28) -> 2667.718558 | AG21: =SUMIF('Financial Statements'!$11:$11,'Annual Financial Statements'!AG$3,'Financial Statements'!28:28) -> 2707.087629 | AH21: =SUMIF('Financial Statements'!$11:$11,'Annual Financial Statements'!AH$3,'Financial Statements'!28:28) -> 2747.118967 | AI21: =SUMIF('Financial Statements'!$11:$11,'Annual Financial Statements'!AI$3,'Financial Statements'!28:28) -> 2787.596013
E22: Less: Income Taxes Paid | F22: $000's | G22: =SUMIF('Financial Statements'!$11:$11,'Annual Financial Statements'!G$3,'Financial Statements'!29:29) -> 0 | H22: =SUMIF('Financial Statements'!$11:$11,'Annual Financial Statements'!H$3,'Financial Statements'!29:29) -> 0 | I22: =SUMIF('Financial Statements'!$11:$11,'Annual Financial Statements'!I$3,'Financial Statements'!29:29) -> 0 | J22: =SUMIF('Financial Statements'!$11:$11,'Annual Financial Statements'!J$3,'Financial Statements'!29:29) -> 0 | K22: =SUMIF('Financial Statements'!$11:$11,'Annual Financial Statements'!K$3,'Financial Statements'!29:29) -> 0 | L22: =SUMIF('Financial Statements'!$11:$11,'Annual Financial Statements'!L$3,'Financial Statements'!29:29) -> 0 | M22: =SUMIF('Financial Statements'!$11:$11,'Annual Financial Statements'!M$3,'Financial Statements'!29:29) -> 0 | N22: =SUMIF('Financial Statements'!$11:$11,'Annual Financial Statements'!N$3,'Financial Statements'!29:29) -> 0 | O22: =SUMIF('Financial Statements'!$11:$11,'Annual Financial Statements'!O$3,'Financial Statements'!29:29) -> 0 | P22: =SUMIF('Financial Statements'!$11:$11,'Annual Financial Statements'!P$3,'Financial Statements'!29:29) -> 0 | Q22: =SUMIF('Financial Statements'!$11:$11,'Annual Financial Statements'!Q$3,'Financial Statements'!29:29) -> 0 | R22: =SUMIF('Financial Statements'!$11:$11,'Annual Financial Statements'!R$3,'Financial Statements'!29:29) -> 0 | S22: =SUMIF('Financial Statements'!$11:$11,'Annual Financial Statements'!S$3,'Financial Statements'!29:29) -> 0 | T22: =SUMIF('Financial Statements'!$11:$11,'Annual Financial Statements'!T$3,'Financial Statements'!29:29) -> 0 | U22: =SUMIF('Financial Statements'!$11:$11,'Annual Financial Statements'!U$3,'Financial Statements'!29:29) -> 0 | V22: =SUMIF('Financial Statements'!$11:$11,'Annual Financial Statements'!V$3,'Financial Statements'!29:29) -> 0 | W22: =SUMIF('Financial Statements'!$11:$11,'Annual Financial Statements'!W$3,'Financial Statements'!29:29) -> 0 | X22: =SUMIF('Financial Statements'!$11:$11,'Annual Financial Statements'!X$3,'Financial Statements'!29:29) -> 1210.150759 | Y22: =SUMIF('Financial Statements'!$11:$11,'Annual Financial Statements'!Y$3,'Financial Statements'!29:29) -> 2132.998189 | Z22: =SUMIF('Financial Statements'!$11:$11,'Annual Financial Statements'!Z$3,'Financial Statements'!29:29) -> 2389.549393 | AA22: =SUMIF('Financial Statements'!$11:$11,'Annual Financial Statements'!AA$3,'Financial Statements'!29:29) -> 2478.429469 | AB22: =SUMIF('Financial Statements'!$11:$11,'Annual Financial Statements'!AB$3,'Financial Statements'!29:29) -> 1969.671135 | AC22: =SUMIF('Financial Statements'!$11:$11,'Annual Financial Statements'!AC$3,'Financial Statements'!29:29) -> 860.0768802 | AD22: =SUMIF('Financial Statements'!$11:$11,'Annual Financial Statements'!AD$3,'Financial Statements'!29:29) -> 872.1487891 | AE22: =SUMIF('Financial Statements'!$11:$11,'Annual Financial Statements'!AE$3,'Financial Statements'!29:29) -> 885.1445093 | AF22: =SUMIF('Financial Statements'!$11:$11,'Annual Financial Statements'!AF$3,'Financial Statements'!29:29) -> 898.2567326 | AG22: =SUMIF('Financial Statements'!$11:$11,'Annual Financial Statements'!AG$3,'Financial Statements'!29:29) -> 911.5038457 | AH22: =SUMIF('Financial Statements'!$11:$11,'Annual Financial Statements'!AH$3,'Financial Statements'!29:29) -> 924.9842458 | AI22: =SUMIF('Financial Statements'!$11:$11,'Annual Financial Statements'!AI$3,'Financial Statements'!29:29) -> 938.5974868
E23: Add: Interest Income | F23: $000's | G23: =SUMIF('Financial Statements'!$11:$11,'Annual Financial Statements'!G$3,'Financial Statements'!30:30) -> 0 | H23: =SUMIF('Financial Statements'!$11:$11,'Annual Financial Statements'!H$3,'Financial Statements'!30:30) -> 0 | I23: =SUMIF('Financial Statements'!$11:$11,'Annual Financial Statements'!I$3,'Financial Statements'!30:30) -> 0 | J23: =SUMIF('Financial Statements'!$11:$11,'Annual Financial Statements'!J$3,'Financial Statements'!30:30) -> 0 | K23: =SUMIF('Financial Statements'!$11:$11,'Annual Financial Statements'!K$3,'Financial Statements'!30:30) -> 0 | L23: =SUMIF('Financial Statements'!$11:$11,'Annual Financial Statements'!L$3,'Financial Statements'!30:30) -> 0 | M23: =SUMIF('Financial Statements'!$11:$11,'Annual Financial Statements'!M$3,'Financial Statements'!30:30) -> 0 | N23: =SUMIF('Financial Statements'!$11:$11,'Annual Financial Statements'!N$3,'Financial Statements'!30:30) -> 0 | O23: =SUMIF('Financial Statements'!$11:$11,'Annual Financial Statements'!O$3,'Financial Statements'!30:30) -> 0 | P23: =SUMIF('Financial Statements'!$11:$11,'Annual Financial Statements'!P$3,'Financial Statements'!30:30) -> 0 | Q23: =SUMIF('Financial Statements'!$11:$11,'Annual Financial Statements'!Q$3,'Financial Statements'!30:30) -> 0 | R23: =SUMIF('Financial Statements'!$11:$11,'Annual Financial Statements'!R$3,'Financial Statements'!30:30) -> 0 | S23: =SUMIF('Financial Statements'!$11:$11,'Annual Financial Statements'!S$3,'Financial Statements'!30:30) -> 0 | T23: =SUMIF('Financial Statements'!$11:$11,'Annual Financial Statements'!T$3,'Financial Statements'!30:30) -> 0 | U23: =SUMIF('Financial Statements'!$11:$11,'Annual Financial Statements'!U$3,'Financial Statements'!30:30) -> 0 | V23: =SUMIF('Financial Statements'!$11:$11,'Annual Financial Statements'!V$3,'Financial Statements'!30:30) -> 0 | W23: =SUMIF('Financial Statements'!$11:$11,'Annual Financial Statements'!W$3,'Financial Statements'!30:30) -> 0 | X23: =SUMIF('Financial Statements'!$11:$11,'Annual Financial Statements'!X$3,'Financial Statements'!30:30) -> 0 | Y23: =SUMIF('Financial Statements'!$11:$11,'Annual Financial Statements'!Y$3,'Financial Statements'!30:30) -> 0 | Z23: =SUMIF('Financial Statements'!$11:$11,'Annual Financial Statements'!Z$3,'Financial Statements'!30:30) -> 0 | AA23: =SUMIF('Financial Statements'!$11:$11,'Annual Financial Statements'!AA$3,'Financial Statements'!30:30) -> 0 | AB23: =SUMIF('Financial Statements'!$11:$11,'Annual Financial Statements'!AB$3,'Financial Statements'!30:30) -> 0 | AC23: =SUMIF('Financial Statements'!$11:$11,'Annual Financial Statements'!AC$3,'Financial Statements'!30:30) -> 0 | AD23: =SUMIF('Financial Statements'!$11:$11,'Annual Financial Statements'!AD$3,'Financial Statements'!30:30) -> 0 | AE23: =SUMIF('Financial Statements'!$11:$11,'Annual Financial Statements'!AE$3,'Financial Statements'!30:30) -> 0 | AF23: =SUMIF('Financial Statements'!$11:$11,'Annual Financial Statements'!AF$3,'Financial Statements'!30:30) -> 0 | AG23: =SUMIF('Financial Statements'!$11:$11,'Annual Financial Statements'!AG$3,'Financial Statements'!30:30) -> 0 | AH23: =SUMIF('Financial Statements'!$11:$11,'Annual Financial Statements'!AH$3,'Financial Statements'!30:30) -> 0 | AI23: =SUMIF('Financial Statements'!$11:$11,'Annual Financial Statements'!AI$3,'Financial Statements'!30:30) -> 0
E24: Cash Flow Available for Debt Service | F24: $000's | G24: =SUMIF('Financial Statements'!$11:$11,'Annual Financial Statements'!G$3,'Financial Statements'!31:31) -> 0 | H24: =SUMIF('Financial Statements'!$11:$11,'Annual Financial Statements'!H$3,'Financial Statements'!31:31) -> 1882.825414 | I24: =SUMIF('Financial Statements'!$11:$11,'Annual Financial Statements'!I$3,'Financial Statements'!31:31) -> 7548.039134 | J24: =SUMIF('Financial Statements'!$11:$11,'Annual Financial Statements'!J$3,'Financial Statements'!31:31) -> 7488.591759 | K24: =SUMIF('Financial Statements'!$11:$11,'Annual Financial Statements'!K$3,'Financial Statements'!31:31) -> 7427.953638 | L24: =SUMIF('Financial Statements'!$11:$11,'Annual Financial Statements'!L$3,'Financial Statements'!31:31) -> 7363.617244 | M24: =SUMIF('Financial Statements'!$11:$11,'Annual Financial Statements'!M$3,'Financial Statements'!31:31) -> 7298.804213 | N24: =SUMIF('Financial Statements'!$11:$11,'Annual Financial Statements'!N$3,'Financial Statements'!31:31) -> 7494.794352 | O24: =SUMIF('Financial Statements'!$11:$11,'Annual Financial Statements'!O$3,'Financial Statements'!31:31) -> 7478.289022 | P24: =SUMIF('Financial Statements'!$11:$11,'Annual Financial Statements'!P$3,'Financial Statements'!31:31) -> 7462.762944 | Q24: =SUMIF('Financial Statements'!$11:$11,'Annual Financial Statements'!Q$3,'Financial Statements'!31:31) -> 7481.070925 | R24: =SUMIF('Financial Statements'!$11:$11,'Annual Financial Statements'!R$3,'Financial Statements'!31:31) -> 7486.730929 | S24: =SUMIF('Financial Statements'!$11:$11,'Annual Financial Statements'!S$3,'Financial Statements'!31:31) -> 7464.192342 | T24: =SUMIF('Financial Statements'!$11:$11,'Annual Financial Statements'!T$3,'Financial Statements'!31:31) -> 7443.870922 | U24: =SUMIF('Financial Statements'!$11:$11,'Annual Financial Statements'!U$3,'Financial Statements'!31:31) -> 7428.000993 | V24: =SUMIF('Financial Statements'!$11:$11,'Annual Financial Statements'!V$3,'Financial Statements'!31:31) -> 7415.896369 | W24: =SUMIF('Financial Statements'!$11:$11,'Annual Financial Statements'!W$3,'Financial Statements'!31:31) -> 7411.912881 | X24: =SUMIF('Financial Statements'!$11:$11,'Annual Financial Statements'!X$3,'Financial Statements'!31:31) -> 6203.304749 | Y24: =SUMIF('Financial Statements'!$11:$11,'Annual Financial Statements'!Y$3,'Financial Statements'!31:31) -> 5289.325909 | Z24: =SUMIF('Financial Statements'!$11:$11,'Annual Financial Statements'!Z$3,'Financial Statements'!31:31) -> 5047.45431 | AA24: =SUMIF('Financial Statements'!$11:$11,'Annual Financial Statements'!AA$3,'Financial Statements'!31:31) -> 4897.533256 | AB24: =SUMIF('Financial Statements'!$11:$11,'Annual Financial Statements'!AB$3,'Financial Statements'!31:31) -> 4310.792573 | AC24: =SUMIF('Financial Statements'!$11:$11,'Annual Financial Statements'!AC$3,'Financial Statements'!31:31) -> 1694.973464 | AD24: =SUMIF('Financial Statements'!$11:$11,'Annual Financial Statements'!AD$3,'Financial Statements'!31:31) -> 1718.018299 | AE24: =SUMIF('Financial Statements'!$11:$11,'Annual Financial Statements'!AE$3,'Financial Statements'!31:31) -> 1743.601543 | AF24: =SUMIF('Financial Statements'!$11:$11,'Annual Financial Statements'!AF$3,'Financial Statements'!31:31) -> 1769.461826 | AG24: =SUMIF('Financial Statements'!$11:$11,'Annual Financial Statements'!AG$3,'Financial Statements'!31:31) -> 1795.583783 | AH24: =SUMIF('Financial Statements'!$11:$11,'Annual Financial Statements'!AH$3,'Financial Statements'!31:31) -> 1822.134721 | AI24: =SUMIF('Financial Statements'!$11:$11,'Annual Financial Statements'!AI$3,'Financial Statements'!31:31) -> 1848.998526
E25: Less: Interest Expense Paid | F25: $000's | G25: =SUMIF('Financial Statements'!$11:$11,'Annual Financial Statements'!G$3,'Financial Statements'!32:32) -> 0 | H25: =SUMIF('Financial Statements'!$11:$11,'Annual Financial Statements'!H$3,'Financial Statements'!32:32) -> 1945.249577 | I25: =SUMIF('Financial Statements'!$11:$11,'Annual Financial Statements'!I$3,'Financial Statements'!32:32) -> 3909.140988 | J25: =SUMIF('Financial Statements'!$11:$11,'Annual Financial Statements'!J$3,'Financial Statements'!32:32) -> 3814.881441 | K25: =SUMIF('Financial Statements'!$11:$11,'Annual Financial Statements'!K$3,'Financial Statements'!32:32) -> 3690.988804 | L25: =SUMIF('Financial Statements'!$11:$11,'Annual Financial Statements'!L$3,'Financial Statements'!32:32) -> 3568.22843 | M25: =SUMIF('Financial Statements'!$11:$11,'Annual Financial Statements'!M$3,'Financial Statements'!32:32) -> 3435.584159 | N25: =SUMIF('Financial Statements'!$11:$11,'Annual Financial Statements'!N$3,'Financial Statements'!32:32) -> 3301.579767 | O25: =SUMIF('Financial Statements'!$11:$11,'Annual Financial Statements'!O$3,'Financial Statements'!32:32) -> 3137.160881 | P25: =SUMIF('Financial Statements'!$11:$11,'Annual Financial Statements'!P$3,'Financial Statements'!32:32) -> 2967.925851 | Q25: =SUMIF('Financial Statements'!$11:$11,'Annual Financial Statements'!Q$3,'Financial Statements'!32:32) -> 2783.64424 | R25: =SUMIF('Financial Statements'!$11:$11,'Annual Financial Statements'!R$3,'Financial Statements'!32:32) -> 2590.250335 | S25: =SUMIF('Financial Statements'!$11:$11,'Annual Financial Statements'!S$3,'Financial Statements'!32:32) -> 2363.813749 | T25: =SUMIF('Financial Statements'!$11:$11,'Annual Financial Statements'!T$3,'Financial Statements'!32:32) -> 2123.59096 | U25: =SUMIF('Financial Statements'!$11:$11,'Annual Financial Statements'!U$3,'Financial Statements'!32:32) -> 1860.337505 | V25: =SUMIF('Financial Statements'!$11:$11,'Annual Financial Statements'!V$3,'Financial Statements'!32:32) -> 1576.220082 | W25: =SUMIF('Financial Statements'!$11:$11,'Annual Financial Statements'!W$3,'Financial Statements'!32:32) -> 1254.514413 | X25: =SUMIF('Financial Statements'!$11:$11,'Annual Financial Statements'!X$3,'Financial Statements'!32:32) -> 905.9060612 | Y25: =SUMIF('Financial Statements'!$11:$11,'Annual Financial Statements'!Y$3,'Financial Statements'!32:32) -> 523.3225805 | Z25: =SUMIF('Financial Statements'!$11:$11,'Annual Financial Statements'!Z$3,'Financial Statements'!32:32) -> 112.3829113 | AA25: =SUMIF('Financial Statements'!$11:$11,'Annual Financial Statements'!AA$3,'Financial Statements'!32:32) -> 7.144489144e-09 | AB25: =SUMIF('Financial Statements'!$11:$11,'Annual Financial Statements'!AB$3,'Financial Statements'!32:32) -> 7.144489144e-09 | AC25: =SUMIF('Financial Statements'!$11:$11,'Annual Financial Statements'!AC$3,'Financial Statements'!32:32) -> 7.144489144e-09 | AD25: =SUMIF('Financial Statements'!$11:$11,'Annual Financial Statements'!AD$3,'Financial Statements'!32:32) -> 7.164063087e-09 | AE25: =SUMIF('Financial Statements'!$11:$11,'Annual Financial Statements'!AE$3,'Financial Statements'!32:32) -> 7.144489144e-09 | AF25: =SUMIF('Financial Statements'!$11:$11,'Annual Financial Statements'!AF$3,'Financial Statements'!32:32) -> 7.144489144e-09 | AG25: =SUMIF('Financial Statements'!$11:$11,'Annual Financial Statements'!AG$3,'Financial Statements'!32:32) -> 7.144489144e-09 | AH25: =SUMIF('Financial Statements'!$11:$11,'Annual Financial Statements'!AH$3,'Financial Statements'!32:32) -> 7.164063087e-09 | AI25: =SUMIF('Financial Statements'!$11:$11,'Annual Financial Statements'!AI$3,'Financial Statements'!32:32) -> 7.144489144e-09
E26: Less: Witholding Tax | F26: $000's | G26: =SUMIF('Financial Statements'!$11:$11,'Annual Financial Statements'!G$3,'Financial Statements'!33:33) -> 0 | H26: =SUMIF('Financial Statements'!$11:$11,'Annual Financial Statements'!H$3,'Financial Statements'!33:33) -> 157.7229387 | I26: =SUMIF('Financial Statements'!$11:$11,'Annual Financial Statements'!I$3,'Financial Statements'!33:33) -> 316.9573774 | J26: =SUMIF('Financial Statements'!$11:$11,'Annual Financial Statements'!J$3,'Financial Statements'!33:33) -> 309.3147115 | K26: =SUMIF('Financial Statements'!$11:$11,'Annual Financial Statements'!K$3,'Financial Statements'!33:33) -> 299.2693625 | L26: =SUMIF('Financial Statements'!$11:$11,'Annual Financial Statements'!L$3,'Financial Statements'!33:33) -> 289.3158186 | M26: =SUMIF('Financial Statements'!$11:$11,'Annual Financial Statements'!M$3,'Financial Statements'!33:33) -> 278.5608778 | N26: =SUMIF('Financial Statements'!$11:$11,'Annual Financial Statements'!N$3,'Financial Statements'!33:33) -> 267.6956567 | O26: =SUMIF('Financial Statements'!$11:$11,'Annual Financial Statements'!O$3,'Financial Statements'!33:33) -> 254.3643957 | P26: =SUMIF('Financial Statements'!$11:$11,'Annual Financial Statements'!P$3,'Financial Statements'!33:33) -> 240.6426365 | Q26: =SUMIF('Financial Statements'!$11:$11,'Annual Financial Statements'!Q$3,'Financial Statements'!33:33) -> 225.7008843 | R26: =SUMIF('Financial Statements'!$11:$11,'Annual Financial Statements'!R$3,'Financial Statements'!33:33) -> 210.0202974 | S26: =SUMIF('Financial Statements'!$11:$11,'Annual Financial Statements'!S$3,'Financial Statements'!33:33) -> 191.6605742 | T26: =SUMIF('Financial Statements'!$11:$11,'Annual Financial Statements'!T$3,'Financial Statements'!33:33) -> 172.1830508 | U26: =SUMIF('Financial Statements'!$11:$11,'Annual Financial Statements'!U$3,'Financial Statements'!33:33) -> 150.8381761 | V26: =SUMIF('Financial Statements'!$11:$11,'Annual Financial Statements'!V$3,'Financial Statements'!33:33) -> 127.8016283 | W26: =SUMIF('Financial Statements'!$11:$11,'Annual Financial Statements'!W$3,'Financial Statements'!33:33) -> 101.7173848 | X26: =SUMIF('Financial Statements'!$11:$11,'Annual Financial Statements'!X$3,'Financial Statements'!33:33) -> 73.4518428 | Y26: =SUMIF('Financial Statements'!$11:$11,'Annual Financial Statements'!Y$3,'Financial Statements'!33:33) -> 42.43156058 | Z26: =SUMIF('Financial Statements'!$11:$11,'Annual Financial Statements'!Z$3,'Financial Statements'!33:33) -> 9.112127942 | AA26: =SUMIF('Financial Statements'!$11:$11,'Annual Financial Statements'!AA$3,'Financial Statements'!33:33) -> 5.792829036e-10 | AB26: =SUMIF('Financial Statements'!$11:$11,'Annual Financial Statements'!AB$3,'Financial Statements'!33:33) -> 5.792829036e-10 | AC26: =SUMIF('Financial Statements'!$11:$11,'Annual Financial Statements'!AC$3,'Financial Statements'!33:33) -> 5.792829036e-10 | AD26: =SUMIF('Financial Statements'!$11:$11,'Annual Financial Statements'!AD$3,'Financial Statements'!33:33) -> 5.808699801e-10 | AE26: =SUMIF('Financial Statements'!$11:$11,'Annual Financial Statements'!AE$3,'Financial Statements'!33:33) -> 5.792829036e-10 | AF26: =SUMIF('Financial Statements'!$11:$11,'Annual Financial Statements'!AF$3,'Financial Statements'!33:33) -> 5.792829036e-10 | AG26: =SUMIF('Financial Statements'!$11:$11,'Annual Financial Statements'!AG$3,'Financial Statements'!33:33) -> 5.792829036e-10 | AH26: =SUMIF('Financial Statements'!$11:$11,'Annual Financial Statements'!AH$3,'Financial Statements'!33:33) -> 5.808699801e-10 | AI26: =SUMIF('Financial Statements'!$11:$11,'Annual Financial Statements'!AI$3,'Financial Statements'!33:33) -> 5.792829036e-10
E27: Less: Fees after COD | F27: $000's | G27: =SUMIF('Financial Statements'!$11:$11,'Annual Financial Statements'!G$3,'Financial Statements'!34:34) -> 0 | H27: =SUMIF('Financial Statements'!$11:$11,'Annual Financial Statements'!H$3,'Financial Statements'!34:34) -> 25 | I27: =SUMIF('Financial Statements'!$11:$11,'Annual Financial Statements'!I$3,'Financial Statements'!34:34) -> 50 | J27: =SUMIF('Financial Statements'!$11:$11,'Annual Financial Statements'!J$3,'Financial Statements'!34:34) -> 50 | K27: =SUMIF('Financial Statements'!$11:$11,'Annual Financial Statements'!K$3,'Financial Statements'!34:34) -> 50 | L27: =SUMIF('Financial Statements'!$11:$11,'Annual Financial Statements'!L$3,'Financial Statements'!34:34) -> 50 | M27: =SUMIF('Financial Statements'!$11:$11,'Annual Financial Statements'!M$3,'Financial Statements'!34:34) -> 50 | N27: =SUMIF('Financial Statements'!$11:$11,'Annual Financial Statements'!N$3,'Financial Statements'!34:34) -> 50 | O27: =SUMIF('Financial Statements'!$11:$11,'Annual Financial Statements'!O$3,'Financial Statements'!34:34) -> 50 | P27: =SUMIF('Financial Statements'!$11:$11,'Annual Financial Statements'!P$3,'Financial Statements'!34:34) -> 50 | Q27: =SUMIF('Financial Statements'!$11:$11,'Annual Financial Statements'!Q$3,'Financial Statements'!34:34) -> 50 | R27: =SUMIF('Financial Statements'!$11:$11,'Annual Financial Statements'!R$3,'Financial Statements'!34:34) -> 50 | S27: =SUMIF('Financial Statements'!$11:$11,'Annual Financial Statements'!S$3,'Financial Statements'!34:34) -> 50 | T27: =SUMIF('Financial Statements'!$11:$11,'Annual Financial Statements'!T$3,'Financial Statements'!34:34) -> 50 | U27: =SUMIF('Financial Statements'!$11:$11,'Annual Financial Statements'!U$3,'Financial Statements'!34:34) -> 50 | V27: =SUMIF('Financial Statements'!$11:$11,'Annual Financial Statements'!V$3,'Financial Statements'!34:34) -> 50 | W27: =SUMIF('Financial Statements'!$11:$11,'Annual Financial Statements'!W$3,'Financial Statements'!34:34) -> 50 | X27: =SUMIF('Financial Statements'!$11:$11,'Annual Financial Statements'!X$3,'Financial Statements'!34:34) -> 50 | Y27: =SUMIF('Financial Statements'!$11:$11,'Annual Financial Statements'!Y$3,'Financial Statements'!34:34) -> 25 | Z27: =SUMIF('Financial Statements'!$11:$11,'Annual Financial Statements'!Z$3,'Financial Statements'!34:34) -> 0 | AA27: =SUMIF('Financial Statements'!$11:$11,'Annual Financial Statements'!AA$3,'Financial Statements'!34:34) -> 0 | AB27: =SUMIF('Financial Statements'!$11:$11,'Annual Financial Statements'!AB$3,'Financial Statements'!34:34) -> 0 | AC27: =SUMIF('Financial Statements'!$11:$11,'Annual Financial Statements'!AC$3,'Financial Statements'!34:34) -> 0 | AD27: =SUMIF('Financial Statements'!$11:$11,'Annual Financial Statements'!AD$3,'Financial Statements'!34:34) -> 0 | AE27: =SUMIF('Financial Statements'!$11:$11,'Annual Financial Statements'!AE$3,'Financial Statements'!34:34) -> 0 | AF27: =SUMIF('Financial Statements'!$11:$11,'Annual Financial Statements'!AF$3,'Financial Statements'!34:34) -> 0 | AG27: =SUMIF('Financial Statements'!$11:$11,'Annual Financial Statements'!AG$3,'Financial Statements'!34:34) -> 0 | AH27: =SUMIF('Financial Statements'!$11:$11,'Annual Financial Statements'!AH$3,'Financial Statements'!34:34) -> 0 | AI27: =SUMIF('Financial Statements'!$11:$11,'Annual Financial Statements'!AI$3,'Financial Statements'!34:34) -> 0
E28: Less: Repayment | F28: $000's | G28: =SUMIF('Financial Statements'!$11:$11,'Annual Financial Statements'!G$3,'Financial Statements'!35:35) -> 0 | H28: =SUMIF('Financial Statements'!$11:$11,'Annual Financial Statements'!H$3,'Financial Statements'!35:35) -> -812.717029 | I28: =SUMIF('Financial Statements'!$11:$11,'Annual Financial Statements'!I$3,'Financial Statements'!35:35) -> 1267.732048 | J28: =SUMIF('Financial Statements'!$11:$11,'Annual Financial Statements'!J$3,'Financial Statements'!35:35) -> 1365.949378 | K28: =SUMIF('Financial Statements'!$11:$11,'Annual Financial Statements'!K$3,'Financial Statements'!35:35) -> 1485.11626 | L28: =SUMIF('Financial Statements'!$11:$11,'Annual Financial Statements'!L$3,'Financial Statements'!35:35) -> 1603.772137 | M28: =SUMIF('Financial Statements'!$11:$11,'Annual Financial Statements'!M$3,'Financial Statements'!35:35) -> 1735.563901 | N28: =SUMIF('Financial Statements'!$11:$11,'Annual Financial Statements'!N$3,'Financial Statements'!35:35) -> 1869.826917 | O28: =SUMIF('Financial Statements'!$11:$11,'Annual Financial Statements'!O$3,'Financial Statements'!35:35) -> 2043.031747 | P28: =SUMIF('Financial Statements'!$11:$11,'Annual Financial Statements'!P$3,'Financial Statements'!35:35) -> 2223.626232 | Q28: =SUMIF('Financial Statements'!$11:$11,'Annual Financial Statements'!Q$3,'Financial Statements'!35:35) -> 2424.417562 | R28: =SUMIF('Financial Statements'!$11:$11,'Annual Financial Statements'!R$3,'Financial Statements'!35:35) -> 2638.141631 | S28: =SUMIF('Financial Statements'!$11:$11,'Annual Financial Statements'!S$3,'Financial Statements'!35:35) -> 2894.951952 | T28: =SUMIF('Financial Statements'!$11:$11,'Annual Financial Statements'!T$3,'Financial Statements'!35:35) -> 3171.288618 | U28: =SUMIF('Financial Statements'!$11:$11,'Annual Financial Statements'!U$3,'Financial Statements'!35:35) -> 3478.895002 | V28: =SUMIF('Financial Statements'!$11:$11,'Annual Financial Statements'!V$3,'Financial Statements'!35:35) -> 3815.332574 | W28: =SUMIF('Financial Statements'!$11:$11,'Annual Financial Statements'!W$3,'Financial Statements'!35:35) -> 4198.732549 | X28: =SUMIF('Financial Statements'!$11:$11,'Annual Financial Statements'!X$3,'Financial Statements'!35:35) -> 4607.175001 | Y28: =SUMIF('Financial Statements'!$11:$11,'Annual Financial Statements'!Y$3,'Financial Statements'!35:35) -> 5059.655309 | Z28: =SUMIF('Financial Statements'!$11:$11,'Annual Financial Statements'!Z$3,'Financial Statements'!35:35) -> 2763.514212 | AA28: =SUMIF('Financial Statements'!$11:$11,'Annual Financial Statements'!AA$3,'Financial Statements'!35:35) -> 0 | AB28: =SUMIF('Financial Statements'!$11:$11,'Annual Financial Statements'!AB$3,'Financial Statements'!35:35) -> 0 | AC28: =SUMIF('Financial Statements'!$11:$11,'Annual Financial Statements'!AC$3,'Financial Statements'!35:35) -> 0 | AD28: =SUMIF('Financial Statements'!$11:$11,'Annual Financial Statements'!AD$3,'Financial Statements'!35:35) -> 0 | AE28: =SUMIF('Financial Statements'!$11:$11,'Annual Financial Statements'!AE$3,'Financial Statements'!35:35) -> 0 | AF28: =SUMIF('Financial Statements'!$11:$11,'Annual Financial Statements'!AF$3,'Financial Statements'!35:35) -> 0 | AG28: =SUMIF('Financial Statements'!$11:$11,'Annual Financial Statements'!AG$3,'Financial Statements'!35:35) -> 0 | AH28: =SUMIF('Financial Statements'!$11:$11,'Annual Financial Statements'!AH$3,'Financial Statements'!35:35) -> 0 | AI28: =SUMIF('Financial Statements'!$11:$11,'Annual Financial Statements'!AI$3,'Financial Statements'!35:35) -> 0
E29: Debt Service Reserve Account (DSRA/c) | F29: $000's | G29: =SUMIF('Financial Statements'!$11:$11,'Annual Financial Statements'!G$3,'Financial Statements'!36:36) -> 0 | H29: =SUMIF('Financial Statements'!$11:$11,'Annual Financial Statements'!H$3,'Financial Statements'!36:36) -> 567.5699274 | I29: =SUMIF('Financial Statements'!$11:$11,'Annual Financial Statements'!I$3,'Financial Statements'!36:36) -> 2004.20872 | J29: =SUMIF('Financial Statements'!$11:$11,'Annual Financial Statements'!J$3,'Financial Statements'!36:36) -> 1948.446228 | K29: =SUMIF('Financial Statements'!$11:$11,'Annual Financial Statements'!K$3,'Financial Statements'!36:36) -> 1902.579212 | L29: =SUMIF('Financial Statements'!$11:$11,'Annual Financial Statements'!L$3,'Financial Statements'!36:36) -> 1852.300859 | M29: =SUMIF('Financial Statements'!$11:$11,'Annual Financial Statements'!M$3,'Financial Statements'!36:36) -> 1799.095274 | N29: =SUMIF('Financial Statements'!$11:$11,'Annual Financial Statements'!N$3,'Financial Statements'!36:36) -> 2005.692012 | O29: =SUMIF('Financial Statements'!$11:$11,'Annual Financial Statements'!O$3,'Financial Statements'!36:36) -> 1993.731998 | P29: =SUMIF('Financial Statements'!$11:$11,'Annual Financial Statements'!P$3,'Financial Statements'!36:36) -> 1980.568225 | Q29: =SUMIF('Financial Statements'!$11:$11,'Annual Financial Statements'!Q$3,'Financial Statements'!36:36) -> 1997.308239 | R29: =SUMIF('Financial Statements'!$11:$11,'Annual Financial Statements'!R$3,'Financial Statements'!36:36) -> 1998.318666 | S29: =SUMIF('Financial Statements'!$11:$11,'Annual Financial Statements'!S$3,'Financial Statements'!36:36) -> 1963.766067 | T29: =SUMIF('Financial Statements'!$11:$11,'Annual Financial Statements'!T$3,'Financial Statements'!36:36) -> 1926.808293 | U29: =SUMIF('Financial Statements'!$11:$11,'Annual Financial Statements'!U$3,'Financial Statements'!36:36) -> 1887.93031 | V29: =SUMIF('Financial Statements'!$11:$11,'Annual Financial Statements'!V$3,'Financial Statements'!36:36) -> 1846.542085 | W29: =SUMIF('Financial Statements'!$11:$11,'Annual Financial Statements'!W$3,'Financial Statements'!36:36) -> 1806.948534 | X29: =SUMIF('Financial Statements'!$11:$11,'Annual Financial Statements'!X$3,'Financial Statements'!36:36) -> 566.7718447 | Y29: =SUMIF('Financial Statements'!$11:$11,'Annual Financial Statements'!Y$3,'Financial Statements'!36:36) -> -361.0835416 | Z29: =SUMIF('Financial Statements'!$11:$11,'Annual Financial Statements'!Z$3,'Financial Statements'!36:36) -> 2162.445059 | AA29: =SUMIF('Financial Statements'!$11:$11,'Annual Financial Statements'!AA$3,'Financial Statements'!36:36) -> 4897.533256 | AB29: =SUMIF('Financial Statements'!$11:$11,'Annual Financial Statements'!AB$3,'Financial Statements'!36:36) -> 4310.792573 | AC29: =SUMIF('Financial Statements'!$11:$11,'Annual Financial Statements'!AC$3,'Financial Statements'!36:36) -> 1694.973464 | AD29: =SUMIF('Financial Statements'!$11:$11,'Annual Financial Statements'!AD$3,'Financial Statements'!36:36) -> 1718.018299 | AE29: =SUMIF('Financial Statements'!$11:$11,'Annual Financial Statements'!AE$3,'Financial Statements'!36:36) -> 1743.601543 | AF29: =SUMIF('Financial Statements'!$11:$11,'Annual Financial Statements'!AF$3,'Financial Statements'!36:36) -> 1769.461826 | AG29: =SUMIF('Financial Statements'!$11:$11,'Annual Financial Statements'!AG$3,'Financial Statements'!36:36) -> 1795.583783 | AH29: =SUMIF('Financial Statements'!$11:$11,'Annual Financial Statements'!AH$3,'Financial Statements'!36:36) -> 1822.134721 | AI29: =SUMIF('Financial Statements'!$11:$11,'Annual Financial Statements'!AI$3,'Financial Statements'!36:36) -> 1848.998526
E30: Add: Release for Shortfall | F30: $000's | G30: =SUMIF('Financial Statements'!$11:$11,'Annual Financial Statements'!G$3,'Financial Statements'!37:37) -> 0 | H30: =SUMIF('Financial Statements'!$11:$11,'Annual Financial Statements'!H$3,'Financial Statements'!37:37) -> 0 | I30: =SUMIF('Financial Statements'!$11:$11,'Annual Financial Statements'!I$3,'Financial Statements'!37:37) -> 0 | J30: =SUMIF('Financial Statements'!$11:$11,'Annual Financial Statements'!J$3,'Financial Statements'!37:37) -> 0 | K30: =SUMIF('Financial Statements'!$11:$11,'Annual Financial Statements'!K$3,'Financial Statements'!37:37) -> 0 | L30: =SUMIF('Financial Statements'!$11:$11,'Annual Financial Statements'!L$3,'Financial Statements'!37:37) -> 0 | M30: =SUMIF('Financial Statements'!$11:$11,'Annual Financial Statements'!M$3,'Financial Statements'!37:37) -> 0 | N30: =SUMIF('Financial Statements'!$11:$11,'Annual Financial Statements'!N$3,'Financial Statements'!37:37) -> 0 | O30: =SUMIF('Financial Statements'!$11:$11,'Annual Financial Statements'!O$3,'Financial Statements'!37:37) -> 0 | P30: =SUMIF('Financial Statements'!$11:$11,'Annual Financial Statements'!P$3,'Financial Statements'!37:37) -> 0 | Q30: =SUMIF('Financial Statements'!$11:$11,'Annual Financial Statements'!Q$3,'Financial Statements'!37:37) -> 0 | R30: =SUMIF('Financial Statements'!$11:$11,'Annual Financial Statements'!R$3,'Financial Statements'!37:37) -> 0 | S30: =SUMIF('Financial Statements'!$11:$11,'Annual Financial Statements'!S$3,'Financial Statements'!37:37) -> 0 | T30: =SUMIF('Financial Statements'!$11:$11,'Annual Financial Statements'!T$3,'Financial Statements'!37:37) -> 0 | U30: =SUMIF('Financial Statements'!$11:$11,'Annual Financial Statements'!U$3,'Financial Statements'!37:37) -> 0 | V30: =SUMIF('Financial Statements'!$11:$11,'Annual Financial Statements'!V$3,'Financial Statements'!37:37) -> 0 | W30: =SUMIF('Financial Statements'!$11:$11,'Annual Financial Statements'!W$3,'Financial Statements'!37:37) -> 0 | X30: =SUMIF('Financial Statements'!$11:$11,'Annual Financial Statements'!X$3,'Financial Statements'!37:37) -> 0 | Y30: =SUMIF('Financial Statements'!$11:$11,'Annual Financial Statements'!Y$3,'Financial Statements'!37:37) -> 0 | Z30: =SUMIF('Financial Statements'!$11:$11,'Annual Financial Statements'!Z$3,'Financial Statements'!37:37) -> 0 | AA30: =SUMIF('Financial Statements'!$11:$11,'Annual Financial Statements'!AA$3,'Financial Statements'!37:37) -> 0 | AB30: =SUMIF('Financial Statements'!$11:$11,'Annual Financial Statements'!AB$3,'Financial Statements'!37:37) -> 0 | AC30: =SUMIF('Financial Statements'!$11:$11,'Annual Financial Statements'!AC$3,'Financial Statements'!37:37) -> 0 | AD30: =SUMIF('Financial Statements'!$11:$11,'Annual Financial Statements'!AD$3,'Financial Statements'!37:37) -> 0 | AE30: =SUMIF('Financial Statements'!$11:$11,'Annual Financial Statements'!AE$3,'Financial Statements'!37:37) -> 0 | AF30: =SUMIF('Financial Statements'!$11:$11,'Annual Financial Statements'!AF$3,'Financial Statements'!37:37) -> 0 | AG30: =SUMIF('Financial Statements'!$11:$11,'Annual Financial Statements'!AG$3,'Financial Statements'!37:37) -> 0 | AH30: =SUMIF('Financial Statements'!$11:$11,'Annual Financial Statements'!AH$3,'Financial Statements'!37:37) -> 0 | AI30: =SUMIF('Financial Statements'!$11:$11,'Annual Financial Statements'!AI$3,'Financial Statements'!37:37) -> 0
E31: Less: Net Release from DSRA for Changes in DS | F31: $000's | G31: =SUMIF('Financial Statements'!$11:$11,'Annual Financial Statements'!G$3,'Financial Statements'!38:38) -> 0 | H31: =SUMIF('Financial Statements'!$11:$11,'Annual Financial Statements'!H$3,'Financial Statements'!38:38) -> 0 | I31: =SUMIF('Financial Statements'!$11:$11,'Annual Financial Statements'!I$3,'Financial Statements'!38:38) -> 0 | J31: =SUMIF('Financial Statements'!$11:$11,'Annual Financial Statements'!J$3,'Financial Statements'!38:38) -> 0 | K31: =SUMIF('Financial Statements'!$11:$11,'Annual Financial Statements'!K$3,'Financial Statements'!38:38) -> 0 | L31: =SUMIF('Financial Statements'!$11:$11,'Annual Financial Statements'!L$3,'Financial Statements'!38:38) -> 0 | M31: =SUMIF('Financial Statements'!$11:$11,'Annual Financial Statements'!M$3,'Financial Statements'!38:38) -> 0 | N31: =SUMIF('Financial Statements'!$11:$11,'Annual Financial Statements'!N$3,'Financial Statements'!38:38) -> 0 | O31: =SUMIF('Financial Statements'!$11:$11,'Annual Financial Statements'!O$3,'Financial Statements'!38:38) -> 0 | P31: =SUMIF('Financial Statements'!$11:$11,'Annual Financial Statements'!P$3,'Financial Statements'!38:38) -> 0 | Q31: =SUMIF('Financial Statements'!$11:$11,'Annual Financial Statements'!Q$3,'Financial Statements'!38:38) -> 0 | R31: =SUMIF('Financial Statements'!$11:$11,'Annual Financial Statements'!R$3,'Financial Statements'!38:38) -> 0 | S31: =SUMIF('Financial Statements'!$11:$11,'Annual Financial Statements'!S$3,'Financial Statements'!38:38) -> 0 | T31: =SUMIF('Financial Statements'!$11:$11,'Annual Financial Statements'!T$3,'Financial Statements'!38:38) -> 0 | U31: =SUMIF('Financial Statements'!$11:$11,'Annual Financial Statements'!U$3,'Financial Statements'!38:38) -> 0 | V31: =SUMIF('Financial Statements'!$11:$11,'Annual Financial Statements'!V$3,'Financial Statements'!38:38) -> 0 | W31: =SUMIF('Financial Statements'!$11:$11,'Annual Financial Statements'!W$3,'Financial Statements'!38:38) -> 0 | X31: =SUMIF('Financial Statements'!$11:$11,'Annual Financial Statements'!X$3,'Financial Statements'!38:38) -> 0 | Y31: =SUMIF('Financial Statements'!$11:$11,'Annual Financial Statements'!Y$3,'Financial Statements'!38:38) -> 0 | Z31: =SUMIF('Financial Statements'!$11:$11,'Annual Financial Statements'!Z$3,'Financial Statements'!38:38) -> 0 | AA31: =SUMIF('Financial Statements'!$11:$11,'Annual Financial Statements'!AA$3,'Financial Statements'!38:38) -> 0 | AB31: =SUMIF('Financial Statements'!$11:$11,'Annual Financial Statements'!AB$3,'Financial Statements'!38:38) -> 0 | AC31: =SUMIF('Financial Statements'!$11:$11,'Annual Financial Statements'!AC$3,'Financial Statements'!38:38) -> 0 | AD31: =SUMIF('Financial Statements'!$11:$11,'Annual Financial Statements'!AD$3,'Financial Statements'!38:38) -> 0 | AE31: =SUMIF('Financial Statements'!$11:$11,'Annual Financial Statements'!AE$3,'Financial Statements'!38:38) -> 0 | AF31: =SUMIF('Financial Statements'!$11:$11,'Annual Financial Statements'!AF$3,'Financial Statements'!38:38) -> 0 | AG31: =SUMIF('Financial Statements'!$11:$11,'Annual Financial Statements'!AG$3,'Financial Statements'!38:38) -> 0 | AH31: =SUMIF('Financial Statements'!$11:$11,'Annual Financial Statements'!AH$3,'Financial Statements'!38:38) -> 0 | AI31: =SUMIF('Financial Statements'!$11:$11,'Annual Financial Statements'!AI$3,'Financial Statements'!38:38) -> 0
E32: Cash Available for SHL and Common Equity | F32: $000's | G32: =SUMIF('Financial Statements'!$11:$11,'Annual Financial Statements'!G$3,'Financial Statements'!39:39) -> 0 | H32: =SUMIF('Financial Statements'!$11:$11,'Annual Financial Statements'!H$3,'Financial Statements'!39:39) -> 567.5699274 | I32: =SUMIF('Financial Statements'!$11:$11,'Annual Financial Statements'!I$3,'Financial Statements'!39:39) -> 2004.20872 | J32: =SUMIF('Financial Statements'!$11:$11,'Annual Financial Statements'!J$3,'Financial Statements'!39:39) -> 1948.446228 | K32: =SUMIF('Financial Statements'!$11:$11,'Annual Financial Statements'!K$3,'Financial Statements'!39:39) -> 1902.579212 | L32: =SUMIF('Financial Statements'!$11:$11,'Annual Financial Statements'!L$3,'Financial Statements'!39:39) -> 1852.300859 | M32: =SUMIF('Financial Statements'!$11:$11,'Annual Financial Statements'!M$3,'Financial Statements'!39:39) -> 1799.095274 | N32: =SUMIF('Financial Statements'!$11:$11,'Annual Financial Statements'!N$3,'Financial Statements'!39:39) -> 2005.692012 | O32: =SUMIF('Financial Statements'!$11:$11,'Annual Financial Statements'!O$3,'Financial Statements'!39:39) -> 1993.731998 | P32: =SUMIF('Financial Statements'!$11:$11,'Annual Financial Statements'!P$3,'Financial Statements'!39:39) -> 1980.568225 | Q32: =SUMIF('Financial Statements'!$11:$11,'Annual Financial Statements'!Q$3,'Financial Statements'!39:39) -> 1997.308239 | R32: =SUMIF('Financial Statements'!$11:$11,'Annual Financial Statements'!R$3,'Financial Statements'!39:39) -> 1998.318666 | S32: =SUMIF('Financial Statements'!$11:$11,'Annual Financial Statements'!S$3,'Financial Statements'!39:39) -> 1963.766067 | T32: =SUMIF('Financial Statements'!$11:$11,'Annual Financial Statements'!T$3,'Financial Statements'!39:39) -> 1926.808293 | U32: =SUMIF('Financial Statements'!$11:$11,'Annual Financial Statements'!U$3,'Financial Statements'!39:39) -> 1887.93031 | V32: =SUMIF('Financial Statements'!$11:$11,'Annual Financial Statements'!V$3,'Financial Statements'!39:39) -> 1846.542085 | W32: =SUMIF('Financial Statements'!$11:$11,'Annual Financial Statements'!W$3,'Financial Statements'!39:39) -> 1806.948534 | X32: =SUMIF('Financial Statements'!$11:$11,'Annual Financial Statements'!X$3,'Financial Statements'!39:39) -> 566.7718447 | Y32: =SUMIF('Financial Statements'!$11:$11,'Annual Financial Statements'!Y$3,'Financial Statements'!39:39) -> -361.0835416 | Z32: =SUMIF('Financial Statements'!$11:$11,'Annual Financial Statements'!Z$3,'Financial Statements'!39:39) -> 2162.445059 | AA32: =SUMIF('Financial Statements'!$11:$11,'Annual Financial Statements'!AA$3,'Financial Statements'!39:39) -> 4897.533256 | AB32: =SUMIF('Financial Statements'!$11:$11,'Annual Financial Statements'!AB$3,'Financial Statements'!39:39) -> 4310.792573 | AC32: =SUMIF('Financial Statements'!$11:$11,'Annual Financial Statements'!AC$3,'Financial Statements'!39:39) -> 1694.973464 | AD32: =SUMIF('Financial Statements'!$11:$11,'Annual Financial Statements'!AD$3,'Financial Statements'!39:39) -> 1718.018299 | AE32: =SUMIF('Financial Statements'!$11:$11,'Annual Financial Statements'!AE$3,'Financial Statements'!39:39) -> 1743.601543 | AF32: =SUMIF('Financial Statements'!$11:$11,'Annual Financial Statements'!AF$3,'Financial Statements'!39:39) -> 1769.461826 | AG32: =SUMIF('Financial Statements'!$11:$11,'Annual Financial Statements'!AG$3,'Financial Statements'!39:39) -> 1795.583783 | AH32: =SUMIF('Financial Statements'!$11:$11,'Annual Financial Statements'!AH$3,'Financial Statements'!39:39) -> 1822.134721 | AI32: =SUMIF('Financial Statements'!$11:$11,'Annual Financial Statements'!AI$3,'Financial Statements'!39:39) -> 1848.998526
E33: Less: Shareholder Interest Paid | F33: $000's | G33: =SUMIF('Financial Statements'!$11:$11,'Annual Financial Statements'!G$3,'Financial Statements'!40:40) -> 0 | H33: =SUMIF('Financial Statements'!$11:$11,'Annual Financial Statements'!H$3,'Financial Statements'!40:40) -> 0 | I33: =SUMIF('Financial Statements'!$11:$11,'Annual Financial Statements'!I$3,'Financial Statements'!40:40) -> 0 | J33: =SUMIF('Financial Statements'!$11:$11,'Annual Financial Statements'!J$3,'Financial Statements'!40:40) -> 0 | K33: =SUMIF('Financial Statements'!$11:$11,'Annual Financial Statements'!K$3,'Financial Statements'!40:40) -> 0 | L33: =SUMIF('Financial Statements'!$11:$11,'Annual Financial Statements'!L$3,'Financial Statements'!40:40) -> 0 | M33: =SUMIF('Financial Statements'!$11:$11,'Annual Financial Statements'!M$3,'Financial Statements'!40:40) -> 0 | N33: =SUMIF('Financial Statements'!$11:$11,'Annual Financial Statements'!N$3,'Financial Statements'!40:40) -> 0 | O33: =SUMIF('Financial Statements'!$11:$11,'Annual Financial Statements'!O$3,'Financial Statements'!40:40) -> 0 | P33: =SUMIF('Financial Statements'!$11:$11,'Annual Financial Statements'!P$3,'Financial Statements'!40:40) -> 0 | Q33: =SUMIF('Financial Statements'!$11:$11,'Annual Financial Statements'!Q$3,'Financial Statements'!40:40) -> 0 | R33: =SUMIF('Financial Statements'!$11:$11,'Annual Financial Statements'!R$3,'Financial Statements'!40:40) -> 0 | S33: =SUMIF('Financial Statements'!$11:$11,'Annual Financial Statements'!S$3,'Financial Statements'!40:40) -> 0 | T33: =SUMIF('Financial Statements'!$11:$11,'Annual Financial Statements'!T$3,'Financial Statements'!40:40) -> 0 | U33: =SUMIF('Financial Statements'!$11:$11,'Annual Financial Statements'!U$3,'Financial Statements'!40:40) -> 0 | V33: =SUMIF('Financial Statements'!$11:$11,'Annual Financial Statements'!V$3,'Financial Statements'!40:40) -> 0 | W33: =SUMIF('Financial Statements'!$11:$11,'Annual Financial Statements'!W$3,'Financial Statements'!40:40) -> 0 | X33: =SUMIF('Financial Statements'!$11:$11,'Annual Financial Statements'!X$3,'Financial Statements'!40:40) -> 0 | Y33: =SUMIF('Financial Statements'!$11:$11,'Annual Financial Statements'!Y$3,'Financial Statements'!40:40) -> 0 | Z33: =SUMIF('Financial Statements'!$11:$11,'Annual Financial Statements'!Z$3,'Financial Statements'!40:40) -> 0 | AA33: =SUMIF('Financial Statements'!$11:$11,'Annual Financial Statements'!AA$3,'Financial Statements'!40:40) -> 0 | AB33: =SUMIF('Financial Statements'!$11:$11,'Annual Financial Statements'!AB$3,'Financial Statements'!40:40) -> 0 | AC33: =SUMIF('Financial Statements'!$11:$11,'Annual Financial Statements'!AC$3,'Financial Statements'!40:40) -> 0 | AD33: =SUMIF('Financial Statements'!$11:$11,'Annual Financial Statements'!AD$3,'Financial Statements'!40:40) -> 0 | AE33: =SUMIF('Financial Statements'!$11:$11,'Annual Financial Statements'!AE$3,'Financial Statements'!40:40) -> 0 | AF33: =SUMIF('Financial Statements'!$11:$11,'Annual Financial Statements'!AF$3,'Financial Statements'!40:40) -> 0 | AG33: =SUMIF('Financial Statements'!$11:$11,'Annual Financial Statements'!AG$3,'Financial Statements'!40:40) -> 0 | AH33: =SUMIF('Financial Statements'!$11:$11,'Annual Financial Statements'!AH$3,'Financial Statements'!40:40) -> 0 | AI33: =SUMIF('Financial Statements'!$11:$11,'Annual Financial Statements'!AI$3,'Financial Statements'!40:40) -> 0
E34: Less: Witholding Taxes on Shareholder Loan | F34: $000's | G34: =SUMIF('Financial Statements'!$11:$11,'Annual Financial Statements'!G$3,'Financial Statements'!41:41) -> 0 | H34: =SUMIF('Financial Statements'!$11:$11,'Annual Financial Statements'!H$3,'Financial Statements'!41:41) -> 0 | I34: =SUMIF('Financial Statements'!$11:$11,'Annual Financial Statements'!I$3,'Financial Statements'!41:41) -> 0 | J34: =SUMIF('Financial Statements'!$11:$11,'Annual Financial Statements'!J$3,'Financial Statements'!41:41) -> 0 | K34: =SUMIF('Financial Statements'!$11:$11,'Annual Financial Statements'!K$3,'Financial Statements'!41:41) -> 0 | L34: =SUMIF('Financial Statements'!$11:$11,'Annual Financial Statements'!L$3,'Financial Statements'!41:41) -> 0 | M34: =SUMIF('Financial Statements'!$11:$11,'Annual Financial Statements'!M$3,'Financial Statements'!41:41) -> 0 | N34: =SUMIF('Financial Statements'!$11:$11,'Annual Financial Statements'!N$3,'Financial Statements'!41:41) -> 0 | O34: =SUMIF('Financial Statements'!$11:$11,'Annual Financial Statements'!O$3,'Financial Statements'!41:41) -> 0 | P34: =SUMIF('Financial Statements'!$11:$11,'Annual Financial Statements'!P$3,'Financial Statements'!41:41) -> 0 | Q34: =SUMIF('Financial Statements'!$11:$11,'Annual Financial Statements'!Q$3,'Financial Statements'!41:41) -> 0 | R34: =SUMIF('Financial Statements'!$11:$11,'Annual Financial Statements'!R$3,'Financial Statements'!41:41) -> 0 | S34: =SUMIF('Financial Statements'!$11:$11,'Annual Financial Statements'!S$3,'Financial Statements'!41:41) -> 0 | T34: =SUMIF('Financial Statements'!$11:$11,'Annual Financial Statements'!T$3,'Financial Statements'!41:41) -> 0 | U34: =SUMIF('Financial Statements'!$11:$11,'Annual Financial Statements'!U$3,'Financial Statements'!41:41) -> 0 | V34: =SUMIF('Financial Statements'!$11:$11,'Annual Financial Statements'!V$3,'Financial Statements'!41:41) -> 0 | W34: =SUMIF('Financial Statements'!$11:$11,'Annual Financial Statements'!W$3,'Financial Statements'!41:41) -> 0 | X34: =SUMIF('Financial Statements'!$11:$11,'Annual Financial Statements'!X$3,'Financial Statements'!41:41) -> 0 | Y34: =SUMIF('Financial Statements'!$11:$11,'Annual Financial Statements'!Y$3,'Financial Statements'!41:41) -> 0 | Z34: =SUMIF('Financial Statements'!$11:$11,'Annual Financial Statements'!Z$3,'Financial Statements'!41:41) -> 0 | AA34: =SUMIF('Financial Statements'!$11:$11,'Annual Financial Statements'!AA$3,'Financial Statements'!41:41) -> 0 | AB34: =SUMIF('Financial Statements'!$11:$11,'Annual Financial Statements'!AB$3,'Financial Statements'!41:41) -> 0 | AC34: =SUMIF('Financial Statements'!$11:$11,'Annual Financial Statements'!AC$3,'Financial Statements'!41:41) -> 0 | AD34: =SUMIF('Financial Statements'!$11:$11,'Annual Financial Statements'!AD$3,'Financial Statements'!41:41) -> 0 | AE34: =SUMIF('Financial Statements'!$11:$11,'Annual Financial Statements'!AE$3,'Financial Statements'!41:41) -> 0 | AF34: =SUMIF('Financial Statements'!$11:$11,'Annual Financial Statements'!AF$3,'Financial Statements'!41:41) -> 0 | AG34: =SUMIF('Financial Statements'!$11:$11,'Annual Financial Statements'!AG$3,'Financial Statements'!41:41) -> 0 | AH34: =SUMIF('Financial Statements'!$11:$11,'Annual Financial Statements'!AH$3,'Financial Statements'!41:41) -> 0 | AI34: =SUMIF('Financial Statements'!$11:$11,'Annual Financial Statements'!AI$3,'Financial Statements'!41:41) -> 0
E35: Less: Repayment from Sweep | F35: $000's | G35: =SUMIF('Financial Statements'!$11:$11,'Annual Financial Statements'!G$3,'Financial Statements'!42:42) -> 0 | H35: =SUMIF('Financial Statements'!$11:$11,'Annual Financial Statements'!H$3,'Financial Statements'!42:42) -> 0 | I35: =SUMIF('Financial Statements'!$11:$11,'Annual Financial Statements'!I$3,'Financial Statements'!42:42) -> 1603.366976 | J35: =SUMIF('Financial Statements'!$11:$11,'Annual Financial Statements'!J$3,'Financial Statements'!42:42) -> 1558.756983 | K35: =SUMIF('Financial Statements'!$11:$11,'Annual Financial Statements'!K$3,'Financial Statements'!42:42) -> 1522.063369 | L35: =SUMIF('Financial Statements'!$11:$11,'Annual Financial Statements'!L$3,'Financial Statements'!42:42) -> 1481.840687 | M35: =SUMIF('Financial Statements'!$11:$11,'Annual Financial Statements'!M$3,'Financial Statements'!42:42) -> 1439.276219 | N35: =SUMIF('Financial Statements'!$11:$11,'Annual Financial Statements'!N$3,'Financial Statements'!42:42) -> 1604.55361 | O35: =SUMIF('Financial Statements'!$11:$11,'Annual Financial Statements'!O$3,'Financial Statements'!42:42) -> 1594.985599 | P35: =SUMIF('Financial Statements'!$11:$11,'Annual Financial Statements'!P$3,'Financial Statements'!42:42) -> 1584.45458 | Q35: =SUMIF('Financial Statements'!$11:$11,'Annual Financial Statements'!Q$3,'Financial Statements'!42:42) -> 1597.846591 | R35: =SUMIF('Financial Statements'!$11:$11,'Annual Financial Statements'!R$3,'Financial Statements'!42:42) -> 1598.654932 | S35: =SUMIF('Financial Statements'!$11:$11,'Annual Financial Statements'!S$3,'Financial Statements'!42:42) -> 1571.012853 | T35: =SUMIF('Financial Statements'!$11:$11,'Annual Financial Statements'!T$3,'Financial Statements'!42:42) -> 339.3559135 | U35: =SUMIF('Financial Statements'!$11:$11,'Annual Financial Statements'!U$3,'Financial Statements'!42:42) -> 0.5581524965 | V35: =SUMIF('Financial Statements'!$11:$11,'Annual Financial Statements'!V$3,'Financial Statements'!42:42) -> 0.0009182122241 | W35: =SUMIF('Financial Statements'!$11:$11,'Annual Financial Statements'!W$3,'Financial Statements'!42:42) -> 1.518194709e-06 | X35: =SUMIF('Financial Statements'!$11:$11,'Annual Financial Statements'!X$3,'Financial Statements'!42:42) -> -140.1303952 | Y35: =SUMIF('Financial Statements'!$11:$11,'Annual Financial Statements'!Y$3,'Financial Statements'!42:42) -> -288.8668333 | Z35: =SUMIF('Financial Statements'!$11:$11,'Annual Financial Statements'!Z$3,'Financial Statements'!42:42) -> 462.4553129 | AA35: =SUMIF('Financial Statements'!$11:$11,'Annual Financial Statements'!AA$3,'Financial Statements'!42:42) -> 22.10947645 | AB35: =SUMIF('Financial Statements'!$11:$11,'Annual Financial Statements'!AB$3,'Financial Statements'!42:42) -> 0.03636435668 | AC35: =SUMIF('Financial Statements'!$11:$11,'Annual Financial Statements'!AC$3,'Financial Statements'!42:42) -> 5.980993894e-05 | AD35: =SUMIF('Financial Statements'!$11:$11,'Annual Financial Statements'!AD$3,'Financial Statements'!42:42) -> 9.839285391e-08 | AE35: =SUMIF('Financial Statements'!$11:$11,'Annual Financial Statements'!AE$3,'Financial Statements'!42:42) -> 1.626851684e-10 | AF35: =SUMIF('Financial Statements'!$11:$11,'Annual Financial Statements'!AF$3,'Financial Statements'!42:42) -> 2.675749243e-13 | AG35: =SUMIF('Financial Statements'!$11:$11,'Annual Financial Statements'!AG$3,'Financial Statements'!42:42) -> 4.400913792e-16 | AH35: =SUMIF('Financial Statements'!$11:$11,'Annual Financial Statements'!AH$3,'Financial Statements'!42:42) -> 7.239908208e-19 | AI35: =SUMIF('Financial Statements'!$11:$11,'Annual Financial Statements'!AI$3,'Financial Statements'!42:42) -> 1.197064257e-21
E36: Cash Flow Available for Common Equity | F36: $000's | G36: =SUMIF('Financial Statements'!$11:$11,'Annual Financial Statements'!G$3,'Financial Statements'!43:43) -> 0 | H36: =SUMIF('Financial Statements'!$11:$11,'Annual Financial Statements'!H$3,'Financial Statements'!43:43) -> 567.5699274 | I36: =SUMIF('Financial Statements'!$11:$11,'Annual Financial Statements'!I$3,'Financial Statements'!43:43) -> 400.841744 | J36: =SUMIF('Financial Statements'!$11:$11,'Annual Financial Statements'!J$3,'Financial Statements'!43:43) -> 389.6892457 | K36: =SUMIF('Financial Statements'!$11:$11,'Annual Financial Statements'!K$3,'Financial Statements'!43:43) -> 380.5158423 | L36: =SUMIF('Financial Statements'!$11:$11,'Annual Financial Statements'!L$3,'Financial Statements'!43:43) -> 370.4601718 | M36: =SUMIF('Financial Statements'!$11:$11,'Annual Financial Statements'!M$3,'Financial Statements'!43:43) -> 359.8190548 | N36: =SUMIF('Financial Statements'!$11:$11,'Annual Financial Statements'!N$3,'Financial Statements'!43:43) -> 401.1384024 | O36: =SUMIF('Financial Statements'!$11:$11,'Annual Financial Statements'!O$3,'Financial Statements'!43:43) -> 398.7463997 | P36: =SUMIF('Financial Statements'!$11:$11,'Annual Financial Statements'!P$3,'Financial Statements'!43:43) -> 396.1136451 | Q36: =SUMIF('Financial Statements'!$11:$11,'Annual Financial Statements'!Q$3,'Financial Statements'!43:43) -> 399.4616478 | R36: =SUMIF('Financial Statements'!$11:$11,'Annual Financial Statements'!R$3,'Financial Statements'!43:43) -> 399.6637331 | S36: =SUMIF('Financial Statements'!$11:$11,'Annual Financial Statements'!S$3,'Financial Statements'!43:43) -> 392.7532134 | T36: =SUMIF('Financial Statements'!$11:$11,'Annual Financial Statements'!T$3,'Financial Statements'!43:43) -> 1587.452379 | U36: =SUMIF('Financial Statements'!$11:$11,'Annual Financial Statements'!U$3,'Financial Statements'!43:43) -> 1887.372158 | V36: =SUMIF('Financial Statements'!$11:$11,'Annual Financial Statements'!V$3,'Financial Statements'!43:43) -> 1846.541167 | W36: =SUMIF('Financial Statements'!$11:$11,'Annual Financial Statements'!W$3,'Financial Statements'!43:43) -> 1806.948532 | X36: =SUMIF('Financial Statements'!$11:$11,'Annual Financial Statements'!X$3,'Financial Statements'!43:43) -> 706.90224 | Y36: =SUMIF('Financial Statements'!$11:$11,'Annual Financial Statements'!Y$3,'Financial Statements'!43:43) -> -72.21670831 | Z36: =SUMIF('Financial Statements'!$11:$11,'Annual Financial Statements'!Z$3,'Financial Statements'!43:43) -> 1699.989746 | AA36: =SUMIF('Financial Statements'!$11:$11,'Annual Financial Statements'!AA$3,'Financial Statements'!43:43) -> 4875.423779 | AB36: =SUMIF('Financial Statements'!$11:$11,'Annual Financial Statements'!AB$3,'Financial Statements'!43:43) -> 4310.756209 | AC36: =SUMIF('Financial Statements'!$11:$11,'Annual Financial Statements'!AC$3,'Financial Statements'!43:43) -> 1694.973405 | AD36: =SUMIF('Financial Statements'!$11:$11,'Annual Financial Statements'!AD$3,'Financial Statements'!43:43) -> 1718.018299 | AE36: =SUMIF('Financial Statements'!$11:$11,'Annual Financial Statements'!AE$3,'Financial Statements'!43:43) -> 1743.601543 | AF36: =SUMIF('Financial Statements'!$11:$11,'Annual Financial Statements'!AF$3,'Financial Statements'!43:43) -> 1769.461826 | AG36: =SUMIF('Financial Statements'!$11:$11,'Annual Financial Statements'!AG$3,'Financial Statements'!43:43) -> 1795.583783 | AH36: =SUMIF('Financial Statements'!$11:$11,'Annual Financial Statements'!AH$3,'Financial Statements'!43:43) -> 1822.134721 | AI36: =SUMIF('Financial Statements'!$11:$11,'Annual Financial Statements'!AI$3,'Financial Statements'!43:43) -> 1848.998526
E37: Less: Cash Trapped | F37: $000's | G37: =SUMIF('Financial Statements'!$11:$11,'Annual Financial Statements'!G$3,'Financial Statements'!44:44) -> 0 | H37: =SUMIF('Financial Statements'!$11:$11,'Annual Financial Statements'!H$3,'Financial Statements'!44:44) -> 0 | I37: =SUMIF('Financial Statements'!$11:$11,'Annual Financial Statements'!I$3,'Financial Statements'!44:44) -> 0 | J37: =SUMIF('Financial Statements'!$11:$11,'Annual Financial Statements'!J$3,'Financial Statements'!44:44) -> 0 | K37: =SUMIF('Financial Statements'!$11:$11,'Annual Financial Statements'!K$3,'Financial Statements'!44:44) -> 0 | L37: =SUMIF('Financial Statements'!$11:$11,'Annual Financial Statements'!L$3,'Financial Statements'!44:44) -> 0 | M37: =SUMIF('Financial Statements'!$11:$11,'Annual Financial Statements'!M$3,'Financial Statements'!44:44) -> 0 | N37: =SUMIF('Financial Statements'!$11:$11,'Annual Financial Statements'!N$3,'Financial Statements'!44:44) -> 0 | O37: =SUMIF('Financial Statements'!$11:$11,'Annual Financial Statements'!O$3,'Financial Statements'!44:44) -> 0 | P37: =SUMIF('Financial Statements'!$11:$11,'Annual Financial Statements'!P$3,'Financial Statements'!44:44) -> 0 | Q37: =SUMIF('Financial Statements'!$11:$11,'Annual Financial Statements'!Q$3,'Financial Statements'!44:44) -> 0 | R37: =SUMIF('Financial Statements'!$11:$11,'Annual Financial Statements'!R$3,'Financial Statements'!44:44) -> 0 | S37: =SUMIF('Financial Statements'!$11:$11,'Annual Financial Statements'!S$3,'Financial Statements'!44:44) -> 0 | T37: =SUMIF('Financial Statements'!$11:$11,'Annual Financial Statements'!T$3,'Financial Statements'!44:44) -> 0 | U37: =SUMIF('Financial Statements'!$11:$11,'Annual Financial Statements'!U$3,'Financial Statements'!44:44) -> 0 | V37: =SUMIF('Financial Statements'!$11:$11,'Annual Financial Statements'!V$3,'Financial Statements'!44:44) -> 0 | W37: =SUMIF('Financial Statements'!$11:$11,'Annual Financial Statements'!W$3,'Financial Statements'!44:44) -> 0 | X37: =SUMIF('Financial Statements'!$11:$11,'Annual Financial Statements'!X$3,'Financial Statements'!44:44) -> 0 | Y37: =SUMIF('Financial Statements'!$11:$11,'Annual Financial Statements'!Y$3,'Financial Statements'!44:44) -> 0 | Z37: =SUMIF('Financial Statements'!$11:$11,'Annual Financial Statements'!Z$3,'Financial Statements'!44:44) -> 0 | AA37: =SUMIF('Financial Statements'!$11:$11,'Annual Financial Statements'!AA$3,'Financial Statements'!44:44) -> 0 | AB37: =SUMIF('Financial Statements'!$11:$11,'Annual Financial Statements'!AB$3,'Financial Statements'!44:44) -> 0 | AC37: =SUMIF('Financial Statements'!$11:$11,'Annual Financial Statements'!AC$3,'Financial Statements'!44:44) -> 0 | AD37: =SUMIF('Financial Statements'!$11:$11,'Annual Financial Statements'!AD$3,'Financial Statements'!44:44) -> 0 | AE37: =SUMIF('Financial Statements'!$11:$11,'Annual Financial Statements'!AE$3,'Financial Statements'!44:44) -> 0 | AF37: =SUMIF('Financial Statements'!$11:$11,'Annual Financial Statements'!AF$3,'Financial Statements'!44:44) -> 0 | AG37: =SUMIF('Financial Statements'!$11:$11,'Annual Financial Statements'!AG$3,'Financial Statements'!44:44) -> 0 | AH37: =SUMIF('Financial Statements'!$11:$11,'Annual Financial Statements'!AH$3,'Financial Statements'!44:44) -> 0 | AI37: =SUMIF('Financial Statements'!$11:$11,'Annual Financial Statements'!AI$3,'Financial Statements'!44:44) -> 0
E38: Add: Cash Released from Trap Account | F38: $000's | G38: =SUMIF('Financial Statements'!$11:$11,'Annual Financial Statements'!G$3,'Financial Statements'!45:45) -> 0 | H38: =SUMIF('Financial Statements'!$11:$11,'Annual Financial Statements'!H$3,'Financial Statements'!45:45) -> 0 | I38: =SUMIF('Financial Statements'!$11:$11,'Annual Financial Statements'!I$3,'Financial Statements'!45:45) -> 0 | J38: =SUMIF('Financial Statements'!$11:$11,'Annual Financial Statements'!J$3,'Financial Statements'!45:45) -> 0 | K38: =SUMIF('Financial Statements'!$11:$11,'Annual Financial Statements'!K$3,'Financial Statements'!45:45) -> 0 | L38: =SUMIF('Financial Statements'!$11:$11,'Annual Financial Statements'!L$3,'Financial Statements'!45:45) -> 0 | M38: =SUMIF('Financial Statements'!$11:$11,'Annual Financial Statements'!M$3,'Financial Statements'!45:45) -> 0 | N38: =SUMIF('Financial Statements'!$11:$11,'Annual Financial Statements'!N$3,'Financial Statements'!45:45) -> 0 | O38: =SUMIF('Financial Statements'!$11:$11,'Annual Financial Statements'!O$3,'Financial Statements'!45:45) -> 0 | P38: =SUMIF('Financial Statements'!$11:$11,'Annual Financial Statements'!P$3,'Financial Statements'!45:45) -> 0 | Q38: =SUMIF('Financial Statements'!$11:$11,'Annual Financial Statements'!Q$3,'Financial Statements'!45:45) -> 0 | R38: =SUMIF('Financial Statements'!$11:$11,'Annual Financial Statements'!R$3,'Financial Statements'!45:45) -> 0 | S38: =SUMIF('Financial Statements'!$11:$11,'Annual Financial Statements'!S$3,'Financial Statements'!45:45) -> 0 | T38: =SUMIF('Financial Statements'!$11:$11,'Annual Financial Statements'!T$3,'Financial Statements'!45:45) -> 0 | U38: =SUMIF('Financial Statements'!$11:$11,'Annual Financial Statements'!U$3,'Financial Statements'!45:45) -> 0 | V38: =SUMIF('Financial Statements'!$11:$11,'Annual Financial Statements'!V$3,'Financial Statements'!45:45) -> 0 | W38: =SUMIF('Financial Statements'!$11:$11,'Annual Financial Statements'!W$3,'Financial Statements'!45:45) -> 0 | X38: =SUMIF('Financial Statements'!$11:$11,'Annual Financial Statements'!X$3,'Financial Statements'!45:45) -> 0 | Y38: =SUMIF('Financial Statements'!$11:$11,'Annual Financial Statements'!Y$3,'Financial Statements'!45:45) -> 0 | Z38: =SUMIF('Financial Statements'!$11:$11,'Annual Financial Statements'!Z$3,'Financial Statements'!45:45) -> 0 | AA38: =SUMIF('Financial Statements'!$11:$11,'Annual Financial Statements'!AA$3,'Financial Statements'!45:45) -> 0 | AB38: =SUMIF('Financial Statements'!$11:$11,'Annual Financial Statements'!AB$3,'Financial Statements'!45:45) -> 0 | AC38: =SUMIF('Financial Statements'!$11:$11,'Annual Financial Statements'!AC$3,'Financial Statements'!45:45) -> 0 | AD38: =SUMIF('Financial Statements'!$11:$11,'Annual Financial Statements'!AD$3,'Financial Statements'!45:45) -> 0 | AE38: =SUMIF('Financial Statements'!$11:$11,'Annual Financial Statements'!AE$3,'Financial Statements'!45:45) -> 0 | AF38: =SUMIF('Financial Statements'!$11:$11,'Annual Financial Statements'!AF$3,'Financial Statements'!45:45) -> 0 | AG38: =SUMIF('Financial Statements'!$11:$11,'Annual Financial Statements'!AG$3,'Financial Statements'!45:45) -> 0 | AH38: =SUMIF('Financial Statements'!$11:$11,'Annual Financial Statements'!AH$3,'Financial Statements'!45:45) -> 0 | AI38: =SUMIF('Financial Statements'!$11:$11,'Annual Financial Statements'!AI$3,'Financial Statements'!45:45) -> 0
E39: Dividends Paid Before Witholding | F39: $000's | G39: =SUMIF('Financial Statements'!$11:$11,'Annual Financial Statements'!G$3,'Financial Statements'!46:46) -> 0 | H39: =SUMIF('Financial Statements'!$11:$11,'Annual Financial Statements'!H$3,'Financial Statements'!46:46) -> 567.5699274 | I39: =SUMIF('Financial Statements'!$11:$11,'Annual Financial Statements'!I$3,'Financial Statements'!46:46) -> 400.841744 | J39: =SUMIF('Financial Statements'!$11:$11,'Annual Financial Statements'!J$3,'Financial Statements'!46:46) -> 389.6892457 | K39: =SUMIF('Financial Statements'!$11:$11,'Annual Financial Statements'!K$3,'Financial Statements'!46:46) -> 380.5158423 | L39: =SUMIF('Financial Statements'!$11:$11,'Annual Financial Statements'!L$3,'Financial Statements'!46:46) -> 370.4601718 | M39: =SUMIF('Financial Statements'!$11:$11,'Annual Financial Statements'!M$3,'Financial Statements'!46:46) -> 359.8190548 | N39: =SUMIF('Financial Statements'!$11:$11,'Annual Financial Statements'!N$3,'Financial Statements'!46:46) -> 401.1384024 | O39: =SUMIF('Financial Statements'!$11:$11,'Annual Financial Statements'!O$3,'Financial Statements'!46:46) -> 398.7463997 | P39: =SUMIF('Financial Statements'!$11:$11,'Annual Financial Statements'!P$3,'Financial Statements'!46:46) -> 396.1136451 | Q39: =SUMIF('Financial Statements'!$11:$11,'Annual Financial Statements'!Q$3,'Financial Statements'!46:46) -> 399.4616478 | R39: =SUMIF('Financial Statements'!$11:$11,'Annual Financial Statements'!R$3,'Financial Statements'!46:46) -> 399.6637331 | S39: =SUMIF('Financial Statements'!$11:$11,'Annual Financial Statements'!S$3,'Financial Statements'!46:46) -> 392.7532134 | T39: =SUMIF('Financial Statements'!$11:$11,'Annual Financial Statements'!T$3,'Financial Statements'!46:46) -> 1587.452379 | U39: =SUMIF('Financial Statements'!$11:$11,'Annual Financial Statements'!U$3,'Financial Statements'!46:46) -> 1887.372158 | V39: =SUMIF('Financial Statements'!$11:$11,'Annual Financial Statements'!V$3,'Financial Statements'!46:46) -> 1846.541167 | W39: =SUMIF('Financial Statements'!$11:$11,'Annual Financial Statements'!W$3,'Financial Statements'!46:46) -> 1806.948532 | X39: =SUMIF('Financial Statements'!$11:$11,'Annual Financial Statements'!X$3,'Financial Statements'!46:46) -> 706.90224 | Y39: =SUMIF('Financial Statements'!$11:$11,'Annual Financial Statements'!Y$3,'Financial Statements'!46:46) -> -72.21670831 | Z39: =SUMIF('Financial Statements'!$11:$11,'Annual Financial Statements'!Z$3,'Financial Statements'!46:46) -> 1699.989746 | AA39: =SUMIF('Financial Statements'!$11:$11,'Annual Financial Statements'!AA$3,'Financial Statements'!46:46) -> 4875.423779 | AB39: =SUMIF('Financial Statements'!$11:$11,'Annual Financial Statements'!AB$3,'Financial Statements'!46:46) -> 4310.756209 | AC39: =SUMIF('Financial Statements'!$11:$11,'Annual Financial Statements'!AC$3,'Financial Statements'!46:46) -> 1694.973405 | AD39: =SUMIF('Financial Statements'!$11:$11,'Annual Financial Statements'!AD$3,'Financial Statements'!46:46) -> 1718.018299 | AE39: =SUMIF('Financial Statements'!$11:$11,'Annual Financial Statements'!AE$3,'Financial Statements'!46:46) -> 1743.601543 | AF39: =SUMIF('Financial Statements'!$11:$11,'Annual Financial Statements'!AF$3,'Financial Statements'!46:46) -> 1769.461826 | AG39: =SUMIF('Financial Statements'!$11:$11,'Annual Financial Statements'!AG$3,'Financial Statements'!46:46) -> 1795.583783 | AH39: =SUMIF('Financial Statements'!$11:$11,'Annual Financial Statements'!AH$3,'Financial Statements'!46:46) -> 1822.134721 | AI39: =SUMIF('Financial Statements'!$11:$11,'Annual Financial Statements'!AI$3,'Financial Statements'!46:46) -> 1848.998526
B41: Cash Flow Statement Pre-COD
C42: Uses of Funds
D43: Capital Expenditures and Development
E44: Development Cost | F44: =units -> $000's | G44: =SUMIF('Financial Statements'!$11:$11,'Annual Financial Statements'!G$3,'Financial Statements'!51:51) -> 0 | H44: =SUMIF('Financial Statements'!$11:$11,'Annual Financial Statements'!H$3,'Financial Statements'!51:51) -> 4000 | I44: =SUMIF('Financial Statements'!$11:$11,'Annual Financial Statements'!I$3,'Financial Statements'!51:51) -> 0 | J44: =SUMIF('Financial Statements'!$11:$11,'Annual Financial Statements'!J$3,'Financial Statements'!51:51) -> 0 | K44: =SUMIF('Financial Statements'!$11:$11,'Annual Financial Statements'!K$3,'Financial Statements'!51:51) -> 0 | L44: =SUMIF('Financial Statements'!$11:$11,'Annual Financial Statements'!L$3,'Financial Statements'!51:51) -> 0 | M44: =SUMIF('Financial Statements'!$11:$11,'Annual Financial Statements'!M$3,'Financial Statements'!51:51) -> 0 | N44: =SUMIF('Financial Statements'!$11:$11,'Annual Financial Statements'!N$3,'Financial Statements'!51:51) -> 0 | O44: =SUMIF('Financial Statements'!$11:$11,'Annual Financial Statements'!O$3,'Financial Statements'!51:51) -> 0 | P44: =SUMIF('Financial Statements'!$11:$11,'Annual Financial Statements'!P$3,'Financial Statements'!51:51) -> 0 | Q44: =SUMIF('Financial Statements'!$11:$11,'Annual Financial Statements'!Q$3,'Financial Statements'!51:51) -> 0 | R44: =SUMIF('Financial Statements'!$11:$11,'Annual Financial Statements'!R$3,'Financial Statements'!51:51) -> 0 | S44: =SUMIF('Financial Statements'!$11:$11,'Annual Financial Statements'!S$3,'Financial Statements'!51:51) -> 0 | T44: =SUMIF('Financial Statements'!$11:$11,'Annual Financial Statements'!T$3,'Financial Statements'!51:51) -> 0 | U44: =SUMIF('Financial Statements'!$11:$11,'Annual Financial Statements'!U$3,'Financial Statements'!51:51) -> 0 | V44: =SUMIF('Financial Statements'!$11:$11,'Annual Financial Statements'!V$3,'Financial Statements'!51:51) -> 0 | W44: =SUMIF('Financial Statements'!$11:$11,'Annual Financial Statements'!W$3,'Financial Statements'!51:51) -> 0 | X44: =SUMIF('Financial Statements'!$11:$11,'Annual Financial Statements'!X$3,'Financial Statements'!51:51) -> 0 | Y44: =SUMIF('Financial Statements'!$11:$11,'Annual Financial Statements'!Y$3,'Financial Statements'!51:51) -> 0 | Z44: =SUMIF('Financial Statements'!$11:$11,'Annual Financial Statements'!Z$3,'Financial Statements'!51:51) -> 0 | AA44: =SUMIF('Financial Statements'!$11:$11,'Annual Financial Statements'!AA$3,'Financial Statements'!51:51) -> 0 | AB44: =SUMIF('Financial Statements'!$11:$11,'Annual Financial Statements'!AB$3,'Financial Statements'!51:51) -> 0 | AC44: =SUMIF('Financial Statements'!$11:$11,'Annual Financial Statements'!AC$3,'Financial Statements'!51:51) -> 0 | AD44: =SUMIF('Financial Statements'!$11:$11,'Annual Financial Statements'!AD$3,'Financial Statements'!51:51) -> 0 | AE44: =SUMIF('Financial Statements'!$11:$11,'Annual Financial Statements'!AE$3,'Financial Statements'!51:51) -> 0 | AF44: =SUMIF('Financial Statements'!$11:$11,'Annual Financial Statements'!AF$3,'Financial Statements'!51:51) -> 0 | AG44: =SUMIF('Financial Statements'!$11:$11,'Annual Financial Statements'!AG$3,'Financial Statements'!51:51) -> 0 | AH44: =SUMIF('Financial Statements'!$11:$11,'Annual Financial Statements'!AH$3,'Financial Statements'!51:51) -> 0 | AI44: =SUMIF('Financial Statements'!$11:$11,'Annual Financial Statements'!AI$3,'Financial Statements'!51:51) -> 0
E45: Development Fees | F45: =units -> $000's | G45: =SUMIF('Financial Statements'!$11:$11,'Annual Financial Statements'!G$3,'Financial Statements'!52:52) -> 0 | H45: =SUMIF('Financial Statements'!$11:$11,'Annual Financial Statements'!H$3,'Financial Statements'!52:52) -> 3000 | I45: =SUMIF('Financial Statements'!$11:$11,'Annual Financial Statements'!I$3,'Financial Statements'!52:52) -> 0 | J45: =SUMIF('Financial Statements'!$11:$11,'Annual Financial Statements'!J$3,'Financial Statements'!52:52) -> 0 | K45: =SUMIF('Financial Statements'!$11:$11,'Annual Financial Statements'!K$3,'Financial Statements'!52:52) -> 0 | L45: =SUMIF('Financial Statements'!$11:$11,'Annual Financial Statements'!L$3,'Financial Statements'!52:52) -> 0 | M45: =SUMIF('Financial Statements'!$11:$11,'Annual Financial Statements'!M$3,'Financial Statements'!52:52) -> 0 | N45: =SUMIF('Financial Statements'!$11:$11,'Annual Financial Statements'!N$3,'Financial Statements'!52:52) -> 0 | O45: =SUMIF('Financial Statements'!$11:$11,'Annual Financial Statements'!O$3,'Financial Statements'!52:52) -> 0 | P45: =SUMIF('Financial Statements'!$11:$11,'Annual Financial Statements'!P$3,'Financial Statements'!52:52) -> 0 | Q45: =SUMIF('Financial Statements'!$11:$11,'Annual Financial Statements'!Q$3,'Financial Statements'!52:52) -> 0 | R45: =SUMIF('Financial Statements'!$11:$11,'Annual Financial Statements'!R$3,'Financial Statements'!52:52) -> 0 | S45: =SUMIF('Financial Statements'!$11:$11,'Annual Financial Statements'!S$3,'Financial Statements'!52:52) -> 0 | T45: =SUMIF('Financial Statements'!$11:$11,'Annual Financial Statements'!T$3,'Financial Statements'!52:52) -> 0 | U45: =SUMIF('Financial Statements'!$11:$11,'Annual Financial Statements'!U$3,'Financial Statements'!52:52) -> 0 | V45: =SUMIF('Financial Statements'!$11:$11,'Annual Financial Statements'!V$3,'Financial Statements'!52:52) -> 0 | W45: =SUMIF('Financial Statements'!$11:$11,'Annual Financial Statements'!W$3,'Financial Statements'!52:52) -> 0 | X45: =SUMIF('Financial Statements'!$11:$11,'Annual Financial Statements'!X$3,'Financial Statements'!52:52) -> 0 | Y45: =SUMIF('Financial Statements'!$11:$11,'Annual Financial Statements'!Y$3,'Financial Statements'!52:52) -> 0 | Z45: =SUMIF('Financial Statements'!$11:$11,'Annual Financial Statements'!Z$3,'Financial Statements'!52:52) -> 0 | AA45: =SUMIF('Financial Statements'!$11:$11,'Annual Financial Statements'!AA$3,'Financial Statements'!52:52) -> 0 | AB45: =SUMIF('Financial Statements'!$11:$11,'Annual Financial Statements'!AB$3,'Financial Statements'!52:52) -> 0 | AC45: =SUMIF('Financial Statements'!$11:$11,'Annual Financial Statements'!AC$3,'Financial Statements'!52:52) -> 0 | AD45: =SUMIF('Financial Statements'!$11:$11,'Annual Financial Statements'!AD$3,'Financial Statements'!52:52) -> 0 | AE45: =SUMIF('Financial Statements'!$11:$11,'Annual Financial Statements'!AE$3,'Financial Statements'!52:52) -> 0 | AF45: =SUMIF('Financial Statements'!$11:$11,'Annual Financial Statements'!AF$3,'Financial Statements'!52:52) -> 0 | AG45: =SUMIF('Financial Statements'!$11:$11,'Annual Financial Statements'!AG$3,'Financial Statements'!52:52) -> 0 | AH45: =SUMIF('Financial Statements'!$11:$11,'Annual Financial Statements'!AH$3,'Financial Statements'!52:52) -> 0 | AI45: =SUMIF('Financial Statements'!$11:$11,'Annual Financial Statements'!AI$3,'Financial Statements'!52:52) -> 0
E46: EPC Costs and Other Construction Costs | F46: =units -> $000's | G46: =SUMIF('Financial Statements'!$11:$11,'Annual Financial Statements'!G$3,'Financial Statements'!53:53) -> 0 | H46: =SUMIF('Financial Statements'!$11:$11,'Annual Financial Statements'!H$3,'Financial Statements'!53:53) -> 51439.4 | I46: =SUMIF('Financial Statements'!$11:$11,'Annual Financial Statements'!I$3,'Financial Statements'!53:53) -> 0 | J46: =SUMIF('Financial Statements'!$11:$11,'Annual Financial Statements'!J$3,'Financial Statements'!53:53) -> 0 | K46: =SUMIF('Financial Statements'!$11:$11,'Annual Financial Statements'!K$3,'Financial Statements'!53:53) -> 0 | L46: =SUMIF('Financial Statements'!$11:$11,'Annual Financial Statements'!L$3,'Financial Statements'!53:53) -> 0 | M46: =SUMIF('Financial Statements'!$11:$11,'Annual Financial Statements'!M$3,'Financial Statements'!53:53) -> 0 | N46: =SUMIF('Financial Statements'!$11:$11,'Annual Financial Statements'!N$3,'Financial Statements'!53:53) -> 0 | O46: =SUMIF('Financial Statements'!$11:$11,'Annual Financial Statements'!O$3,'Financial Statements'!53:53) -> 0 | P46: =SUMIF('Financial Statements'!$11:$11,'Annual Financial Statements'!P$3,'Financial Statements'!53:53) -> 0 | Q46: =SUMIF('Financial Statements'!$11:$11,'Annual Financial Statements'!Q$3,'Financial Statements'!53:53) -> 0 | R46: =SUMIF('Financial Statements'!$11:$11,'Annual Financial Statements'!R$3,'Financial Statements'!53:53) -> 0 | S46: =SUMIF('Financial Statements'!$11:$11,'Annual Financial Statements'!S$3,'Financial Statements'!53:53) -> 0 | T46: =SUMIF('Financial Statements'!$11:$11,'Annual Financial Statements'!T$3,'Financial Statements'!53:53) -> 0 | U46: =SUMIF('Financial Statements'!$11:$11,'Annual Financial Statements'!U$3,'Financial Statements'!53:53) -> 0 | V46: =SUMIF('Financial Statements'!$11:$11,'Annual Financial Statements'!V$3,'Financial Statements'!53:53) -> 0 | W46: =SUMIF('Financial Statements'!$11:$11,'Annual Financial Statements'!W$3,'Financial Statements'!53:53) -> 0 | X46: =SUMIF('Financial Statements'!$11:$11,'Annual Financial Statements'!X$3,'Financial Statements'!53:53) -> 0 | Y46: =SUMIF('Financial Statements'!$11:$11,'Annual Financial Statements'!Y$3,'Financial Statements'!53:53) -> 0 | Z46: =SUMIF('Financial Statements'!$11:$11,'Annual Financial Statements'!Z$3,'Financial Statements'!53:53) -> 0 | AA46: =SUMIF('Financial Statements'!$11:$11,'Annual Financial Statements'!AA$3,'Financial Statements'!53:53) -> 0 | AB46: =SUMIF('Financial Statements'!$11:$11,'Annual Financial Statements'!AB$3,'Financial Statements'!53:53) -> 0 | AC46: =SUMIF('Financial Statements'!$11:$11,'Annual Financial Statements'!AC$3,'Financial Statements'!53:53) -> 0 | AD46: =SUMIF('Financial Statements'!$11:$11,'Annual Financial Statements'!AD$3,'Financial Statements'!53:53) -> 0 | AE46: =SUMIF('Financial Statements'!$11:$11,'Annual Financial Statements'!AE$3,'Financial Statements'!53:53) -> 0 | AF46: =SUMIF('Financial Statements'!$11:$11,'Annual Financial Statements'!AF$3,'Financial Statements'!53:53) -> 0 | AG46: =SUMIF('Financial Statements'!$11:$11,'Annual Financial Statements'!AG$3,'Financial Statements'!53:53) -> 0 | AH46: =SUMIF('Financial Statements'!$11:$11,'Annual Financial Statements'!AH$3,'Financial Statements'!53:53) -> 0 | AI46: =SUMIF('Financial Statements'!$11:$11,'Annual Financial Statements'!AI$3,'Financial Statements'!53:53) -> 0
E47: VAT (Non-Refundable) | F47: =units -> $000's | G47: =SUMIF('Financial Statements'!$11:$11,'Annual Financial Statements'!G$3,'Financial Statements'!54:54) -> 0 | H47: =SUMIF('Financial Statements'!$11:$11,'Annual Financial Statements'!H$3,'Financial Statements'!54:54) -> 851.16 | I47: =SUMIF('Financial Statements'!$11:$11,'Annual Financial Statements'!I$3,'Financial Statements'!54:54) -> 0 | J47: =SUMIF('Financial Statements'!$11:$11,'Annual Financial Statements'!J$3,'Financial Statements'!54:54) -> 0 | K47: =SUMIF('Financial Statements'!$11:$11,'Annual Financial Statements'!K$3,'Financial Statements'!54:54) -> 0 | L47: =SUMIF('Financial Statements'!$11:$11,'Annual Financial Statements'!L$3,'Financial Statements'!54:54) -> 0 | M47: =SUMIF('Financial Statements'!$11:$11,'Annual Financial Statements'!M$3,'Financial Statements'!54:54) -> 0 | N47: =SUMIF('Financial Statements'!$11:$11,'Annual Financial Statements'!N$3,'Financial Statements'!54:54) -> 0 | O47: =SUMIF('Financial Statements'!$11:$11,'Annual Financial Statements'!O$3,'Financial Statements'!54:54) -> 0 | P47: =SUMIF('Financial Statements'!$11:$11,'Annual Financial Statements'!P$3,'Financial Statements'!54:54) -> 0 | Q47: =SUMIF('Financial Statements'!$11:$11,'Annual Financial Statements'!Q$3,'Financial Statements'!54:54) -> 0 | R47: =SUMIF('Financial Statements'!$11:$11,'Annual Financial Statements'!R$3,'Financial Statements'!54:54) -> 0 | S47: =SUMIF('Financial Statements'!$11:$11,'Annual Financial Statements'!S$3,'Financial Statements'!54:54) -> 0 | T47: =SUMIF('Financial Statements'!$11:$11,'Annual Financial Statements'!T$3,'Financial Statements'!54:54) -> 0 | U47: =SUMIF('Financial Statements'!$11:$11,'Annual Financial Statements'!U$3,'Financial Statements'!54:54) -> 0 | V47: =SUMIF('Financial Statements'!$11:$11,'Annual Financial Statements'!V$3,'Financial Statements'!54:54) -> 0 | W47: =SUMIF('Financial Statements'!$11:$11,'Annual Financial Statements'!W$3,'Financial Statements'!54:54) -> 0 | X47: =SUMIF('Financial Statements'!$11:$11,'Annual Financial Statements'!X$3,'Financial Statements'!54:54) -> 0 | Y47: =SUMIF('Financial Statements'!$11:$11,'Annual Financial Statements'!Y$3,'Financial Statements'!54:54) -> 0 | Z47: =SUMIF('Financial Statements'!$11:$11,'Annual Financial Statements'!Z$3,'Financial Statements'!54:54) -> 0 | AA47: =SUMIF('Financial Statements'!$11:$11,'Annual Financial Statements'!AA$3,'Financial Statements'!54:54) -> 0 | AB47: =SUMIF('Financial Statements'!$11:$11,'Annual Financial Statements'!AB$3,'Financial Statements'!54:54) -> 0 | AC47: =SUMIF('Financial Statements'!$11:$11,'Annual Financial Statements'!AC$3,'Financial Statements'!54:54) -> 0 | AD47: =SUMIF('Financial Statements'!$11:$11,'Annual Financial Statements'!AD$3,'Financial Statements'!54:54) -> 0 | AE47: =SUMIF('Financial Statements'!$11:$11,'Annual Financial Statements'!AE$3,'Financial Statements'!54:54) -> 0 | AF47: =SUMIF('Financial Statements'!$11:$11,'Annual Financial Statements'!AF$3,'Financial Statements'!54:54) -> 0 | AG47: =SUMIF('Financial Statements'!$11:$11,'Annual Financial Statements'!AG$3,'Financial Statements'!54:54) -> 0 | AH47: =SUMIF('Financial Statements'!$11:$11,'Annual Financial Statements'!AH$3,'Financial Statements'!54:54) -> 0 | AI47: =SUMIF('Financial Statements'!$11:$11,'Annual Financial Statements'!AI$3,'Financial Statements'!54:54) -> 0
E49: Negative Pre-Operating Cashflows | F49: =units -> $000's | G49: =SUMIF('Financial Statements'!$11:$11,'Annual Financial Statements'!G$3,'Financial Statements'!56:56) -> 0 | H49: =SUMIF('Financial Statements'!$11:$11,'Annual Financial Statements'!H$3,'Financial Statements'!56:56) -> 0 | I49: =SUMIF('Financial Statements'!$11:$11,'Annual Financial Statements'!I$3,'Financial Statements'!56:56) -> 0 | J49: =SUMIF('Financial Statements'!$11:$11,'Annual Financial Statements'!J$3,'Financial Statements'!56:56) -> 0 | K49: =SUMIF('Financial Statements'!$11:$11,'Annual Financial Statements'!K$3,'Financial Statements'!56:56) -> 0 | L49: =SUMIF('Financial Statements'!$11:$11,'Annual Financial Statements'!L$3,'Financial Statements'!56:56) -> 0 | M49: =SUMIF('Financial Statements'!$11:$11,'Annual Financial Statements'!M$3,'Financial Statements'!56:56) -> 0 | N49: =SUMIF('Financial Statements'!$11:$11,'Annual Financial Statements'!N$3,'Financial Statements'!56:56) -> 0 | O49: =SUMIF('Financial Statements'!$11:$11,'Annual Financial Statements'!O$3,'Financial Statements'!56:56) -> 0 | P49: =SUMIF('Financial Statements'!$11:$11,'Annual Financial Statements'!P$3,'Financial Statements'!56:56) -> 0 | Q49: =SUMIF('Financial Statements'!$11:$11,'Annual Financial Statements'!Q$3,'Financial Statements'!56:56) -> 0 | R49: =SUMIF('Financial Statements'!$11:$11,'Annual Financial Statements'!R$3,'Financial Statements'!56:56) -> 0 | S49: =SUMIF('Financial Statements'!$11:$11,'Annual Financial Statements'!S$3,'Financial Statements'!56:56) -> 0 | T49: =SUMIF('Financial Statements'!$11:$11,'Annual Financial Statements'!T$3,'Financial Statements'!56:56) -> 0 | U49: =SUMIF('Financial Statements'!$11:$11,'Annual Financial Statements'!U$3,'Financial Statements'!56:56) -> 0 | V49: =SUMIF('Financial Statements'!$11:$11,'Annual Financial Statements'!V$3,'Financial Statements'!56:56) -> 0 | W49: =SUMIF('Financial Statements'!$11:$11,'Annual Financial Statements'!W$3,'Financial Statements'!56:56) -> 0 | X49: =SUMIF('Financial Statements'!$11:$11,'Annual Financial Statements'!X$3,'Financial Statements'!56:56) -> 0 | Y49: =SUMIF('Financial Statements'!$11:$11,'Annual Financial Statements'!Y$3,'Financial Statements'!56:56) -> 0 | Z49: =SUMIF('Financial Statements'!$11:$11,'Annual Financial Statements'!Z$3,'Financial Statements'!56:56) -> 0 | AA49: =SUMIF('Financial Statements'!$11:$11,'Annual Financial Statements'!AA$3,'Financial Statements'!56:56) -> 0 | AB49: =SUMIF('Financial Statements'!$11:$11,'Annual Financial Statements'!AB$3,'Financial Statements'!56:56) -> 0 | AC49: =SUMIF('Financial Statements'!$11:$11,'Annual Financial Statements'!AC$3,'Financial Statements'!56:56) -> 0 | AD49: =SUMIF('Financial Statements'!$11:$11,'Annual Financial Statements'!AD$3,'Financial Statements'!56:56) -> 0 | AE49: =SUMIF('Financial Statements'!$11:$11,'Annual Financial Statements'!AE$3,'Financial Statements'!56:56) -> 0 | AF49: =SUMIF('Financial Statements'!$11:$11,'Annual Financial Statements'!AF$3,'Financial Statements'!56:56) -> 0 | AG49: =SUMIF('Financial Statements'!$11:$11,'Annual Financial Statements'!AG$3,'Financial Statements'!56:56) -> 0 | AH49: =SUMIF('Financial Statements'!$11:$11,'Annual Financial Statements'!AH$3,'Financial Statements'!56:56) -> 0 | AI49: =SUMIF('Financial Statements'!$11:$11,'Annual Financial Statements'!AI$3,'Financial Statements'!56:56) -> 0
D51: Financing Items
E52: Interest During Construction - Debt Issues excluding WHT | F52: =units -> $000's | G52: =SUMIF('Financial Statements'!$11:$11,'Annual Financial Statements'!G$3,'Financial Statements'!59:59) -> 0 | H52: =SUMIF('Financial Statements'!$11:$11,'Annual Financial Statements'!H$3,'Financial Statements'!59:59) -> 2195.478636 | I52: =SUMIF('Financial Statements'!$11:$11,'Annual Financial Statements'!I$3,'Financial Statements'!59:59) -> 0 | J52: =SUMIF('Financial Statements'!$11:$11,'Annual Financial Statements'!J$3,'Financial Statements'!59:59) -> 0 | K52: =SUMIF('Financial Statements'!$11:$11,'Annual Financial Statements'!K$3,'Financial Statements'!59:59) -> 0 | L52: =SUMIF('Financial Statements'!$11:$11,'Annual Financial Statements'!L$3,'Financial Statements'!59:59) -> 0 | M52: =SUMIF('Financial Statements'!$11:$11,'Annual Financial Statements'!M$3,'Financial Statements'!59:59) -> 0 | N52: =SUMIF('Financial Statements'!$11:$11,'Annual Financial Statements'!N$3,'Financial Statements'!59:59) -> 0 | O52: =SUMIF('Financial Statements'!$11:$11,'Annual Financial Statements'!O$3,'Financial Statements'!59:59) -> 0 | P52: =SUMIF('Financial Statements'!$11:$11,'Annual Financial Statements'!P$3,'Financial Statements'!59:59) -> 0 | Q52: =SUMIF('Financial Statements'!$11:$11,'Annual Financial Statements'!Q$3,'Financial Statements'!59:59) -> 0 | R52: =SUMIF('Financial Statements'!$11:$11,'Annual Financial Statements'!R$3,'Financial Statements'!59:59) -> 0 | S52: =SUMIF('Financial Statements'!$11:$11,'Annual Financial Statements'!S$3,'Financial Statements'!59:59) -> 0 | T52: =SUMIF('Financial Statements'!$11:$11,'Annual Financial Statements'!T$3,'Financial Statements'!59:59) -> 0 | U52: =SUMIF('Financial Statements'!$11:$11,'Annual Financial Statements'!U$3,'Financial Statements'!59:59) -> 0 | V52: =SUMIF('Financial Statements'!$11:$11,'Annual Financial Statements'!V$3,'Financial Statements'!59:59) -> 0 | W52: =SUMIF('Financial Statements'!$11:$11,'Annual Financial Statements'!W$3,'Financial Statements'!59:59) -> 0 | X52: =SUMIF('Financial Statements'!$11:$11,'Annual Financial Statements'!X$3,'Financial Statements'!59:59) -> 0 | Y52: =SUMIF('Financial Statements'!$11:$11,'Annual Financial Statements'!Y$3,'Financial Statements'!59:59) -> 0 | Z52: =SUMIF('Financial Statements'!$11:$11,'Annual Financial Statements'!Z$3,'Financial Statements'!59:59) -> 0 | AA52: =SUMIF('Financial Statements'!$11:$11,'Annual Financial Statements'!AA$3,'Financial Statements'!59:59) -> 0 | AB52: =SUMIF('Financial Statements'!$11:$11,'Annual Financial Statements'!AB$3,'Financial Statements'!59:59) -> 0 | AC52: =SUMIF('Financial Statements'!$11:$11,'Annual Financial Statements'!AC$3,'Financial Statements'!59:59) -> 0 | AD52: =SUMIF('Financial Statements'!$11:$11,'Annual Financial Statements'!AD$3,'Financial Statements'!59:59) -> 0 | AE52: =SUMIF('Financial Statements'!$11:$11,'Annual Financial Statements'!AE$3,'Financial Statements'!59:59) -> 0 | AF52: =SUMIF('Financial Statements'!$11:$11,'Annual Financial Statements'!AF$3,'Financial Statements'!59:59) -> 0 | AG52: =SUMIF('Financial Statements'!$11:$11,'Annual Financial Statements'!AG$3,'Financial Statements'!59:59) -> 0 | AH52: =SUMIF('Financial Statements'!$11:$11,'Annual Financial Statements'!AH$3,'Financial Statements'!59:59) -> 0 | AI52: =SUMIF('Financial Statements'!$11:$11,'Annual Financial Statements'!AI$3,'Financial Statements'!59:59) -> 0
E53: Interest During Construction - Shareholder Debt | F53: $000's | G53: =SUMIF('Financial Statements'!$11:$11,'Annual Financial Statements'!G$3,'Financial Statements'!60:60) -> 0 | H53: =SUMIF('Financial Statements'!$11:$11,'Annual Financial Statements'!H$3,'Financial Statements'!60:60) -> 0 | I53: =SUMIF('Financial Statements'!$11:$11,'Annual Financial Statements'!I$3,'Financial Statements'!60:60) -> 0 | J53: =SUMIF('Financial Statements'!$11:$11,'Annual Financial Statements'!J$3,'Financial Statements'!60:60) -> 0 | K53: =SUMIF('Financial Statements'!$11:$11,'Annual Financial Statements'!K$3,'Financial Statements'!60:60) -> 0 | L53: =SUMIF('Financial Statements'!$11:$11,'Annual Financial Statements'!L$3,'Financial Statements'!60:60) -> 0 | M53: =SUMIF('Financial Statements'!$11:$11,'Annual Financial Statements'!M$3,'Financial Statements'!60:60) -> 0 | N53: =SUMIF('Financial Statements'!$11:$11,'Annual Financial Statements'!N$3,'Financial Statements'!60:60) -> 0 | O53: =SUMIF('Financial Statements'!$11:$11,'Annual Financial Statements'!O$3,'Financial Statements'!60:60) -> 0 | P53: =SUMIF('Financial Statements'!$11:$11,'Annual Financial Statements'!P$3,'Financial Statements'!60:60) -> 0 | Q53: =SUMIF('Financial Statements'!$11:$11,'Annual Financial Statements'!Q$3,'Financial Statements'!60:60) -> 0 | R53: =SUMIF('Financial Statements'!$11:$11,'Annual Financial Statements'!R$3,'Financial Statements'!60:60) -> 0 | S53: =SUMIF('Financial Statements'!$11:$11,'Annual Financial Statements'!S$3,'Financial Statements'!60:60) -> 0 | T53: =SUMIF('Financial Statements'!$11:$11,'Annual Financial Statements'!T$3,'Financial Statements'!60:60) -> 0 | U53: =SUMIF('Financial Statements'!$11:$11,'Annual Financial Statements'!U$3,'Financial Statements'!60:60) -> 0 | V53: =SUMIF('Financial Statements'!$11:$11,'Annual Financial Statements'!V$3,'Financial Statements'!60:60) -> 0 | W53: =SUMIF('Financial Statements'!$11:$11,'Annual Financial Statements'!W$3,'Financial Statements'!60:60) -> 0 | X53: =SUMIF('Financial Statements'!$11:$11,'Annual Financial Statements'!X$3,'Financial Statements'!60:60) -> 0 | Y53: =SUMIF('Financial Statements'!$11:$11,'Annual Financial Statements'!Y$3,'Financial Statements'!60:60) -> 0 | Z53: =SUMIF('Financial Statements'!$11:$11,'Annual Financial Statements'!Z$3,'Financial Statements'!60:60) -> 0 | AA53: =SUMIF('Financial Statements'!$11:$11,'Annual Financial Statements'!AA$3,'Financial Statements'!60:60) -> 0 | AB53: =SUMIF('Financial Statements'!$11:$11,'Annual Financial Statements'!AB$3,'Financial Statements'!60:60) -> 0 | AC53: =SUMIF('Financial Statements'!$11:$11,'Annual Financial Statements'!AC$3,'Financial Statements'!60:60) -> 0 | AD53: =SUMIF('Financial Statements'!$11:$11,'Annual Financial Statements'!AD$3,'Financial Statements'!60:60) -> 0 | AE53: =SUMIF('Financial Statements'!$11:$11,'Annual Financial Statements'!AE$3,'Financial Statements'!60:60) -> 0 | AF53: =SUMIF('Financial Statements'!$11:$11,'Annual Financial Statements'!AF$3,'Financial Statements'!60:60) -> 0 | AG53: =SUMIF('Financial Statements'!$11:$11,'Annual Financial Statements'!AG$3,'Financial Statements'!60:60) -> 0 | AH53: =SUMIF('Financial Statements'!$11:$11,'Annual Financial Statements'!AH$3,'Financial Statements'!60:60) -> 0 | AI53: =SUMIF('Financial Statements'!$11:$11,'Annual Financial Statements'!AI$3,'Financial Statements'!60:60) -> 0
E54: Interest During Construction - Witholding Debt | F54: $000's | G54: =SUMIF('Financial Statements'!$11:$11,'Annual Financial Statements'!G$3,'Financial Statements'!61:61) -> 0 | H54: =SUMIF('Financial Statements'!$11:$11,'Annual Financial Statements'!H$3,'Financial Statements'!61:61) -> 0 | I54: =SUMIF('Financial Statements'!$11:$11,'Annual Financial Statements'!I$3,'Financial Statements'!61:61) -> 0 | J54: =SUMIF('Financial Statements'!$11:$11,'Annual Financial Statements'!J$3,'Financial Statements'!61:61) -> 0 | K54: =SUMIF('Financial Statements'!$11:$11,'Annual Financial Statements'!K$3,'Financial Statements'!61:61) -> 0 | L54: =SUMIF('Financial Statements'!$11:$11,'Annual Financial Statements'!L$3,'Financial Statements'!61:61) -> 0 | M54: =SUMIF('Financial Statements'!$11:$11,'Annual Financial Statements'!M$3,'Financial Statements'!61:61) -> 0 | N54: =SUMIF('Financial Statements'!$11:$11,'Annual Financial Statements'!N$3,'Financial Statements'!61:61) -> 0 | O54: =SUMIF('Financial Statements'!$11:$11,'Annual Financial Statements'!O$3,'Financial Statements'!61:61) -> 0 | P54: =SUMIF('Financial Statements'!$11:$11,'Annual Financial Statements'!P$3,'Financial Statements'!61:61) -> 0 | Q54: =SUMIF('Financial Statements'!$11:$11,'Annual Financial Statements'!Q$3,'Financial Statements'!61:61) -> 0 | R54: =SUMIF('Financial Statements'!$11:$11,'Annual Financial Statements'!R$3,'Financial Statements'!61:61) -> 0 | S54: =SUMIF('Financial Statements'!$11:$11,'Annual Financial Statements'!S$3,'Financial Statements'!61:61) -> 0 | T54: =SUMIF('Financial Statements'!$11:$11,'Annual Financial Statements'!T$3,'Financial Statements'!61:61) -> 0 | U54: =SUMIF('Financial Statements'!$11:$11,'Annual Financial Statements'!U$3,'Financial Statements'!61:61) -> 0 | V54: =SUMIF('Financial Statements'!$11:$11,'Annual Financial Statements'!V$3,'Financial Statements'!61:61) -> 0 | W54: =SUMIF('Financial Statements'!$11:$11,'Annual Financial Statements'!W$3,'Financial Statements'!61:61) -> 0 | X54: =SUMIF('Financial Statements'!$11:$11,'Annual Financial Statements'!X$3,'Financial Statements'!61:61) -> 0 | Y54: =SUMIF('Financial Statements'!$11:$11,'Annual Financial Statements'!Y$3,'Financial Statements'!61:61) -> 0 | Z54: =SUMIF('Financial Statements'!$11:$11,'Annual Financial Statements'!Z$3,'Financial Statements'!61:61) -> 0 | AA54: =SUMIF('Financial Statements'!$11:$11,'Annual Financial Statements'!AA$3,'Financial Statements'!61:61) -> 0 | AB54: =SUMIF('Financial Statements'!$11:$11,'Annual Financial Statements'!AB$3,'Financial Statements'!61:61) -> 0 | AC54: =SUMIF('Financial Statements'!$11:$11,'Annual Financial Statements'!AC$3,'Financial Statements'!61:61) -> 0 | AD54: =SUMIF('Financial Statements'!$11:$11,'Annual Financial Statements'!AD$3,'Financial Statements'!61:61) -> 0 | AE54: =SUMIF('Financial Statements'!$11:$11,'Annual Financial Statements'!AE$3,'Financial Statements'!61:61) -> 0 | AF54: =SUMIF('Financial Statements'!$11:$11,'Annual Financial Statements'!AF$3,'Financial Statements'!61:61) -> 0 | AG54: =SUMIF('Financial Statements'!$11:$11,'Annual Financial Statements'!AG$3,'Financial Statements'!61:61) -> 0 | AH54: =SUMIF('Financial Statements'!$11:$11,'Annual Financial Statements'!AH$3,'Financial Statements'!61:61) -> 0 | AI54: =SUMIF('Financial Statements'!$11:$11,'Annual Financial Statements'!AI$3,'Financial Statements'!61:61) -> 0
E55: Financing Fees | F55: $000's | G55: =SUMIF('Financial Statements'!$11:$11,'Annual Financial Statements'!G$3,'Financial Statements'!62:62) -> 0 | H55: =SUMIF('Financial Statements'!$11:$11,'Annual Financial Statements'!H$3,'Financial Statements'!62:62) -> 146.7313639 | I55: =SUMIF('Financial Statements'!$11:$11,'Annual Financial Statements'!I$3,'Financial Statements'!62:62) -> 0 | J55: =SUMIF('Financial Statements'!$11:$11,'Annual Financial Statements'!J$3,'Financial Statements'!62:62) -> 0 | K55: =SUMIF('Financial Statements'!$11:$11,'Annual Financial Statements'!K$3,'Financial Statements'!62:62) -> 0 | L55: =SUMIF('Financial Statements'!$11:$11,'Annual Financial Statements'!L$3,'Financial Statements'!62:62) -> 0 | M55: =SUMIF('Financial Statements'!$11:$11,'Annual Financial Statements'!M$3,'Financial Statements'!62:62) -> 0 | N55: =SUMIF('Financial Statements'!$11:$11,'Annual Financial Statements'!N$3,'Financial Statements'!62:62) -> 0 | O55: =SUMIF('Financial Statements'!$11:$11,'Annual Financial Statements'!O$3,'Financial Statements'!62:62) -> 0 | P55: =SUMIF('Financial Statements'!$11:$11,'Annual Financial Statements'!P$3,'Financial Statements'!62:62) -> 0 | Q55: =SUMIF('Financial Statements'!$11:$11,'Annual Financial Statements'!Q$3,'Financial Statements'!62:62) -> 0 | R55: =SUMIF('Financial Statements'!$11:$11,'Annual Financial Statements'!R$3,'Financial Statements'!62:62) -> 0 | S55: =SUMIF('Financial Statements'!$11:$11,'Annual Financial Statements'!S$3,'Financial Statements'!62:62) -> 0 | T55: =SUMIF('Financial Statements'!$11:$11,'Annual Financial Statements'!T$3,'Financial Statements'!62:62) -> 0 | U55: =SUMIF('Financial Statements'!$11:$11,'Annual Financial Statements'!U$3,'Financial Statements'!62:62) -> 0 | V55: =SUMIF('Financial Statements'!$11:$11,'Annual Financial Statements'!V$3,'Financial Statements'!62:62) -> 0 | W55: =SUMIF('Financial Statements'!$11:$11,'Annual Financial Statements'!W$3,'Financial Statements'!62:62) -> 0 | X55: =SUMIF('Financial Statements'!$11:$11,'Annual Financial Statements'!X$3,'Financial Statements'!62:62) -> 0 | Y55: =SUMIF('Financial Statements'!$11:$11,'Annual Financial Statements'!Y$3,'Financial Statements'!62:62) -> 0 | Z55: =SUMIF('Financial Statements'!$11:$11,'Annual Financial Statements'!Z$3,'Financial Statements'!62:62) -> 0 | AA55: =SUMIF('Financial Statements'!$11:$11,'Annual Financial Statements'!AA$3,'Financial Statements'!62:62) -> 0 | AB55: =SUMIF('Financial Statements'!$11:$11,'Annual Financial Statements'!AB$3,'Financial Statements'!62:62) -> 0 | AC55: =SUMIF('Financial Statements'!$11:$11,'Annual Financial Statements'!AC$3,'Financial Statements'!62:62) -> 0 | AD55: =SUMIF('Financial Statements'!$11:$11,'Annual Financial Statements'!AD$3,'Financial Statements'!62:62) -> 0 | AE55: =SUMIF('Financial Statements'!$11:$11,'Annual Financial Statements'!AE$3,'Financial Statements'!62:62) -> 0 | AF55: =SUMIF('Financial Statements'!$11:$11,'Annual Financial Statements'!AF$3,'Financial Statements'!62:62) -> 0 | AG55: =SUMIF('Financial Statements'!$11:$11,'Annual Financial Statements'!AG$3,'Financial Statements'!62:62) -> 0 | AH55: =SUMIF('Financial Statements'!$11:$11,'Annual Financial Statements'!AH$3,'Financial Statements'!62:62) -> 0 | AI55: =SUMIF('Financial Statements'!$11:$11,'Annual Financial Statements'!AI$3,'Financial Statements'!62:62) -> 0
E56: PRI Premium | F56: $000's | G56: =SUMIF('Financial Statements'!$11:$11,'Annual Financial Statements'!G$3,'Financial Statements'!63:63) -> 0 | H56: =SUMIF('Financial Statements'!$11:$11,'Annual Financial Statements'!H$3,'Financial Statements'!63:63) -> 548.869659 | I56: =SUMIF('Financial Statements'!$11:$11,'Annual Financial Statements'!I$3,'Financial Statements'!63:63) -> 0 | J56: =SUMIF('Financial Statements'!$11:$11,'Annual Financial Statements'!J$3,'Financial Statements'!63:63) -> 0 | K56: =SUMIF('Financial Statements'!$11:$11,'Annual Financial Statements'!K$3,'Financial Statements'!63:63) -> 0 | L56: =SUMIF('Financial Statements'!$11:$11,'Annual Financial Statements'!L$3,'Financial Statements'!63:63) -> 0 | M56: =SUMIF('Financial Statements'!$11:$11,'Annual Financial Statements'!M$3,'Financial Statements'!63:63) -> 0 | N56: =SUMIF('Financial Statements'!$11:$11,'Annual Financial Statements'!N$3,'Financial Statements'!63:63) -> 0 | O56: =SUMIF('Financial Statements'!$11:$11,'Annual Financial Statements'!O$3,'Financial Statements'!63:63) -> 0 | P56: =SUMIF('Financial Statements'!$11:$11,'Annual Financial Statements'!P$3,'Financial Statements'!63:63) -> 0 | Q56: =SUMIF('Financial Statements'!$11:$11,'Annual Financial Statements'!Q$3,'Financial Statements'!63:63) -> 0 | R56: =SUMIF('Financial Statements'!$11:$11,'Annual Financial Statements'!R$3,'Financial Statements'!63:63) -> 0 | S56: =SUMIF('Financial Statements'!$11:$11,'Annual Financial Statements'!S$3,'Financial Statements'!63:63) -> 0 | T56: =SUMIF('Financial Statements'!$11:$11,'Annual Financial Statements'!T$3,'Financial Statements'!63:63) -> 0 | U56: =SUMIF('Financial Statements'!$11:$11,'Annual Financial Statements'!U$3,'Financial Statements'!63:63) -> 0 | V56: =SUMIF('Financial Statements'!$11:$11,'Annual Financial Statements'!V$3,'Financial Statements'!63:63) -> 0 | W56: =SUMIF('Financial Statements'!$11:$11,'Annual Financial Statements'!W$3,'Financial Statements'!63:63) -> 0 | X56: =SUMIF('Financial Statements'!$11:$11,'Annual Financial Statements'!X$3,'Financial Statements'!63:63) -> 0 | Y56: =SUMIF('Financial Statements'!$11:$11,'Annual Financial Statements'!Y$3,'Financial Statements'!63:63) -> 0 | Z56: =SUMIF('Financial Statements'!$11:$11,'Annual Financial Statements'!Z$3,'Financial Statements'!63:63) -> 0 | AA56: =SUMIF('Financial Statements'!$11:$11,'Annual Financial Statements'!AA$3,'Financial Statements'!63:63) -> 0 | AB56: =SUMIF('Financial Statements'!$11:$11,'Annual Financial Statements'!AB$3,'Financial Statements'!63:63) -> 0 | AC56: =SUMIF('Financial Statements'!$11:$11,'Annual Financial Statements'!AC$3,'Financial Statements'!63:63) -> 0 | AD56: =SUMIF('Financial Statements'!$11:$11,'Annual Financial Statements'!AD$3,'Financial Statements'!63:63) -> 0 | AE56: =SUMIF('Financial Statements'!$11:$11,'Annual Financial Statements'!AE$3,'Financial Statements'!63:63) -> 0 | AF56: =SUMIF('Financial Statements'!$11:$11,'Annual Financial Statements'!AF$3,'Financial Statements'!63:63) -> 0 | AG56: =SUMIF('Financial Statements'!$11:$11,'Annual Financial Statements'!AG$3,'Financial Statements'!63:63) -> 0 | AH56: =SUMIF('Financial Statements'!$11:$11,'Annual Financial Statements'!AH$3,'Financial Statements'!63:63) -> 0 | AI56: =SUMIF('Financial Statements'!$11:$11,'Annual Financial Statements'!AI$3,'Financial Statements'!63:63) -> 0
E57: PRG Premium | F57: $000's | G57: =SUMIF('Financial Statements'!$11:$11,'Annual Financial Statements'!G$3,'Financial Statements'!64:64) -> 0 | H57: =SUMIF('Financial Statements'!$11:$11,'Annual Financial Statements'!H$3,'Financial Statements'!64:64) -> 229.5997563 | I57: =SUMIF('Financial Statements'!$11:$11,'Annual Financial Statements'!I$3,'Financial Statements'!64:64) -> 0 | J57: =SUMIF('Financial Statements'!$11:$11,'Annual Financial Statements'!J$3,'Financial Statements'!64:64) -> 0 | K57: =SUMIF('Financial Statements'!$11:$11,'Annual Financial Statements'!K$3,'Financial Statements'!64:64) -> 0 | L57: =SUMIF('Financial Statements'!$11:$11,'Annual Financial Statements'!L$3,'Financial Statements'!64:64) -> 0 | M57: =SUMIF('Financial Statements'!$11:$11,'Annual Financial Statements'!M$3,'Financial Statements'!64:64) -> 0 | N57: =SUMIF('Financial Statements'!$11:$11,'Annual Financial Statements'!N$3,'Financial Statements'!64:64) -> 0 | O57: =SUMIF('Financial Statements'!$11:$11,'Annual Financial Statements'!O$3,'Financial Statements'!64:64) -> 0 | P57: =SUMIF('Financial Statements'!$11:$11,'Annual Financial Statements'!P$3,'Financial Statements'!64:64) -> 0 | Q57: =SUMIF('Financial Statements'!$11:$11,'Annual Financial Statements'!Q$3,'Financial Statements'!64:64) -> 0 | R57: =SUMIF('Financial Statements'!$11:$11,'Annual Financial Statements'!R$3,'Financial Statements'!64:64) -> 0 | S57: =SUMIF('Financial Statements'!$11:$11,'Annual Financial Statements'!S$3,'Financial Statements'!64:64) -> 0 | T57: =SUMIF('Financial Statements'!$11:$11,'Annual Financial Statements'!T$3,'Financial Statements'!64:64) -> 0 | U57: =SUMIF('Financial Statements'!$11:$11,'Annual Financial Statements'!U$3,'Financial Statements'!64:64) -> 0 | V57: =SUMIF('Financial Statements'!$11:$11,'Annual Financial Statements'!V$3,'Financial Statements'!64:64) -> 0 | W57: =SUMIF('Financial Statements'!$11:$11,'Annual Financial Statements'!W$3,'Financial Statements'!64:64) -> 0 | X57: =SUMIF('Financial Statements'!$11:$11,'Annual Financial Statements'!X$3,'Financial Statements'!64:64) -> 0 | Y57: =SUMIF('Financial Statements'!$11:$11,'Annual Financial Statements'!Y$3,'Financial Statements'!64:64) -> 0 | Z57: =SUMIF('Financial Statements'!$11:$11,'Annual Financial Statements'!Z$3,'Financial Statements'!64:64) -> 0 | AA57: =SUMIF('Financial Statements'!$11:$11,'Annual Financial Statements'!AA$3,'Financial Statements'!64:64) -> 0 | AB57: =SUMIF('Financial Statements'!$11:$11,'Annual Financial Statements'!AB$3,'Financial Statements'!64:64) -> 0 | AC57: =SUMIF('Financial Statements'!$11:$11,'Annual Financial Statements'!AC$3,'Financial Statements'!64:64) -> 0 | AD57: =SUMIF('Financial Statements'!$11:$11,'Annual Financial Statements'!AD$3,'Financial Statements'!64:64) -> 0 | AE57: =SUMIF('Financial Statements'!$11:$11,'Annual Financial Statements'!AE$3,'Financial Statements'!64:64) -> 0 | AF57: =SUMIF('Financial Statements'!$11:$11,'Annual Financial Statements'!AF$3,'Financial Statements'!64:64) -> 0 | AG57: =SUMIF('Financial Statements'!$11:$11,'Annual Financial Statements'!AG$3,'Financial Statements'!64:64) -> 0 | AH57: =SUMIF('Financial Statements'!$11:$11,'Annual Financial Statements'!AH$3,'Financial Statements'!64:64) -> 0 | AI57: =SUMIF('Financial Statements'!$11:$11,'Annual Financial Statements'!AI$3,'Financial Statements'!64:64) -> 0
E58: DSRA/c Initial Funding | F58: $000's | G58: =SUMIF('Financial Statements'!$11:$11,'Annual Financial Statements'!G$3,'Financial Statements'!65:65) -> 0 | H58: =SUMIF('Financial Statements'!$11:$11,'Annual Financial Statements'!H$3,'Financial Statements'!65:65) -> 0 | I58: =SUMIF('Financial Statements'!$11:$11,'Annual Financial Statements'!I$3,'Financial Statements'!65:65) -> 0 | J58: =SUMIF('Financial Statements'!$11:$11,'Annual Financial Statements'!J$3,'Financial Statements'!65:65) -> 0 | K58: =SUMIF('Financial Statements'!$11:$11,'Annual Financial Statements'!K$3,'Financial Statements'!65:65) -> 0 | L58: =SUMIF('Financial Statements'!$11:$11,'Annual Financial Statements'!L$3,'Financial Statements'!65:65) -> 0 | M58: =SUMIF('Financial Statements'!$11:$11,'Annual Financial Statements'!M$3,'Financial Statements'!65:65) -> 0 | N58: =SUMIF('Financial Statements'!$11:$11,'Annual Financial Statements'!N$3,'Financial Statements'!65:65) -> 0 | O58: =SUMIF('Financial Statements'!$11:$11,'Annual Financial Statements'!O$3,'Financial Statements'!65:65) -> 0 | P58: =SUMIF('Financial Statements'!$11:$11,'Annual Financial Statements'!P$3,'Financial Statements'!65:65) -> 0 | Q58: =SUMIF('Financial Statements'!$11:$11,'Annual Financial Statements'!Q$3,'Financial Statements'!65:65) -> 0 | R58: =SUMIF('Financial Statements'!$11:$11,'Annual Financial Statements'!R$3,'Financial Statements'!65:65) -> 0 | S58: =SUMIF('Financial Statements'!$11:$11,'Annual Financial Statements'!S$3,'Financial Statements'!65:65) -> 0 | T58: =SUMIF('Financial Statements'!$11:$11,'Annual Financial Statements'!T$3,'Financial Statements'!65:65) -> 0 | U58: =SUMIF('Financial Statements'!$11:$11,'Annual Financial Statements'!U$3,'Financial Statements'!65:65) -> 0 | V58: =SUMIF('Financial Statements'!$11:$11,'Annual Financial Statements'!V$3,'Financial Statements'!65:65) -> 0 | W58: =SUMIF('Financial Statements'!$11:$11,'Annual Financial Statements'!W$3,'Financial Statements'!65:65) -> 0 | X58: =SUMIF('Financial Statements'!$11:$11,'Annual Financial Statements'!X$3,'Financial Statements'!65:65) -> 0 | Y58: =SUMIF('Financial Statements'!$11:$11,'Annual Financial Statements'!Y$3,'Financial Statements'!65:65) -> 0 | Z58: =SUMIF('Financial Statements'!$11:$11,'Annual Financial Statements'!Z$3,'Financial Statements'!65:65) -> 0 | AA58: =SUMIF('Financial Statements'!$11:$11,'Annual Financial Statements'!AA$3,'Financial Statements'!65:65) -> 0 | AB58: =SUMIF('Financial Statements'!$11:$11,'Annual Financial Statements'!AB$3,'Financial Statements'!65:65) -> 0 | AC58: =SUMIF('Financial Statements'!$11:$11,'Annual Financial Statements'!AC$3,'Financial Statements'!65:65) -> 0 | AD58: =SUMIF('Financial Statements'!$11:$11,'Annual Financial Statements'!AD$3,'Financial Statements'!65:65) -> 0 | AE58: =SUMIF('Financial Statements'!$11:$11,'Annual Financial Statements'!AE$3,'Financial Statements'!65:65) -> 0 | AF58: =SUMIF('Financial Statements'!$11:$11,'Annual Financial Statements'!AF$3,'Financial Statements'!65:65) -> 0 | AG58: =SUMIF('Financial Statements'!$11:$11,'Annual Financial Statements'!AG$3,'Financial Statements'!65:65) -> 0 | AH58: =SUMIF('Financial Statements'!$11:$11,'Annual Financial Statements'!AH$3,'Financial Statements'!65:65) -> 0 | AI58: =SUMIF('Financial Statements'!$11:$11,'Annual Financial Statements'!AI$3,'Financial Statements'!65:65) -> 0
D59: Other
E60: Initial Working Capital | F60: =units -> $000's | G60: =SUMIF('Financial Statements'!$11:$11,'Annual Financial Statements'!G$3,'Financial Statements'!67:67) -> 0 | H60: =SUMIF('Financial Statements'!$11:$11,'Annual Financial Statements'!H$3,'Financial Statements'!67:67) -> 0 | I60: =SUMIF('Financial Statements'!$11:$11,'Annual Financial Statements'!I$3,'Financial Statements'!67:67) -> 0 | J60: =SUMIF('Financial Statements'!$11:$11,'Annual Financial Statements'!J$3,'Financial Statements'!67:67) -> 0 | K60: =SUMIF('Financial Statements'!$11:$11,'Annual Financial Statements'!K$3,'Financial Statements'!67:67) -> 0 | L60: =SUMIF('Financial Statements'!$11:$11,'Annual Financial Statements'!L$3,'Financial Statements'!67:67) -> 0 | M60: =SUMIF('Financial Statements'!$11:$11,'Annual Financial Statements'!M$3,'Financial Statements'!67:67) -> 0 | N60: =SUMIF('Financial Statements'!$11:$11,'Annual Financial Statements'!N$3,'Financial Statements'!67:67) -> 0 | O60: =SUMIF('Financial Statements'!$11:$11,'Annual Financial Statements'!O$3,'Financial Statements'!67:67) -> 0 | P60: =SUMIF('Financial Statements'!$11:$11,'Annual Financial Statements'!P$3,'Financial Statements'!67:67) -> 0 | Q60: =SUMIF('Financial Statements'!$11:$11,'Annual Financial Statements'!Q$3,'Financial Statements'!67:67) -> 0 | R60: =SUMIF('Financial Statements'!$11:$11,'Annual Financial Statements'!R$3,'Financial Statements'!67:67) -> 0 | S60: =SUMIF('Financial Statements'!$11:$11,'Annual Financial Statements'!S$3,'Financial Statements'!67:67) -> 0 | T60: =SUMIF('Financial Statements'!$11:$11,'Annual Financial Statements'!T$3,'Financial Statements'!67:67) -> 0 | U60: =SUMIF('Financial Statements'!$11:$11,'Annual Financial Statements'!U$3,'Financial Statements'!67:67) -> 0 | V60: =SUMIF('Financial Statements'!$11:$11,'Annual Financial Statements'!V$3,'Financial Statements'!67:67) -> 0 | W60: =SUMIF('Financial Statements'!$11:$11,'Annual Financial Statements'!W$3,'Financial Statements'!67:67) -> 0 | X60: =SUMIF('Financial Statements'!$11:$11,'Annual Financial Statements'!X$3,'Financial Statements'!67:67) -> 0 | Y60: =SUMIF('Financial Statements'!$11:$11,'Annual Financial Statements'!Y$3,'Financial Statements'!67:67) -> 0 | Z60: =SUMIF('Financial Statements'!$11:$11,'Annual Financial Statements'!Z$3,'Financial Statements'!67:67) -> 0 | AA60: =SUMIF('Financial Statements'!$11:$11,'Annual Financial Statements'!AA$3,'Financial Statements'!67:67) -> 0 | AB60: =SUMIF('Financial Statements'!$11:$11,'Annual Financial Statements'!AB$3,'Financial Statements'!67:67) -> 0 | AC60: =SUMIF('Financial Statements'!$11:$11,'Annual Financial Statements'!AC$3,'Financial Statements'!67:67) -> 0 | AD60: =SUMIF('Financial Statements'!$11:$11,'Annual Financial Statements'!AD$3,'Financial Statements'!67:67) -> 0 | AE60: =SUMIF('Financial Statements'!$11:$11,'Annual Financial Statements'!AE$3,'Financial Statements'!67:67) -> 0 | AF60: =SUMIF('Financial Statements'!$11:$11,'Annual Financial Statements'!AF$3,'Financial Statements'!67:67) -> 0 | AG60: =SUMIF('Financial Statements'!$11:$11,'Annual Financial Statements'!AG$3,'Financial Statements'!67:67) -> 0 | AH60: =SUMIF('Financial Statements'!$11:$11,'Annual Financial Statements'!AH$3,'Financial Statements'!67:67) -> 0 | AI60: =SUMIF('Financial Statements'!$11:$11,'Annual Financial Statements'!AI$3,'Financial Statements'!67:67) -> 0
E61: MRA/c Initial Funding | F61: =units -> $000's | G61: =SUMIF('Financial Statements'!$11:$11,'Annual Financial Statements'!G$3,'Financial Statements'!68:68) -> 0 | H61: =SUMIF('Financial Statements'!$11:$11,'Annual Financial Statements'!H$3,'Financial Statements'!68:68) -> 0 | I61: =SUMIF('Financial Statements'!$11:$11,'Annual Financial Statements'!I$3,'Financial Statements'!68:68) -> 0 | J61: =SUMIF('Financial Statements'!$11:$11,'Annual Financial Statements'!J$3,'Financial Statements'!68:68) -> 0 | K61: =SUMIF('Financial Statements'!$11:$11,'Annual Financial Statements'!K$3,'Financial Statements'!68:68) -> 0 | L61: =SUMIF('Financial Statements'!$11:$11,'Annual Financial Statements'!L$3,'Financial Statements'!68:68) -> 0 | M61: =SUMIF('Financial Statements'!$11:$11,'Annual Financial Statements'!M$3,'Financial Statements'!68:68) -> 0 | N61: =SUMIF('Financial Statements'!$11:$11,'Annual Financial Statements'!N$3,'Financial Statements'!68:68) -> 0 | O61: =SUMIF('Financial Statements'!$11:$11,'Annual Financial Statements'!O$3,'Financial Statements'!68:68) -> 0 | P61: =SUMIF('Financial Statements'!$11:$11,'Annual Financial Statements'!P$3,'Financial Statements'!68:68) -> 0 | Q61: =SUMIF('Financial Statements'!$11:$11,'Annual Financial Statements'!Q$3,'Financial Statements'!68:68) -> 0 | R61: =SUMIF('Financial Statements'!$11:$11,'Annual Financial Statements'!R$3,'Financial Statements'!68:68) -> 0 | S61: =SUMIF('Financial Statements'!$11:$11,'Annual Financial Statements'!S$3,'Financial Statements'!68:68) -> 0 | T61: =SUMIF('Financial Statements'!$11:$11,'Annual Financial Statements'!T$3,'Financial Statements'!68:68) -> 0 | U61: =SUMIF('Financial Statements'!$11:$11,'Annual Financial Statements'!U$3,'Financial Statements'!68:68) -> 0 | V61: =SUMIF('Financial Statements'!$11:$11,'Annual Financial Statements'!V$3,'Financial Statements'!68:68) -> 0 | W61: =SUMIF('Financial Statements'!$11:$11,'Annual Financial Statements'!W$3,'Financial Statements'!68:68) -> 0 | X61: =SUMIF('Financial Statements'!$11:$11,'Annual Financial Statements'!X$3,'Financial Statements'!68:68) -> 0 | Y61: =SUMIF('Financial Statements'!$11:$11,'Annual Financial Statements'!Y$3,'Financial Statements'!68:68) -> 0 | Z61: =SUMIF('Financial Statements'!$11:$11,'Annual Financial Statements'!Z$3,'Financial Statements'!68:68) -> 0 | AA61: =SUMIF('Financial Statements'!$11:$11,'Annual Financial Statements'!AA$3,'Financial Statements'!68:68) -> 0 | AB61: =SUMIF('Financial Statements'!$11:$11,'Annual Financial Statements'!AB$3,'Financial Statements'!68:68) -> 0 | AC61: =SUMIF('Financial Statements'!$11:$11,'Annual Financial Statements'!AC$3,'Financial Statements'!68:68) -> 0 | AD61: =SUMIF('Financial Statements'!$11:$11,'Annual Financial Statements'!AD$3,'Financial Statements'!68:68) -> 0 | AE61: =SUMIF('Financial Statements'!$11:$11,'Annual Financial Statements'!AE$3,'Financial Statements'!68:68) -> 0 | AF61: =SUMIF('Financial Statements'!$11:$11,'Annual Financial Statements'!AF$3,'Financial Statements'!68:68) -> 0 | AG61: =SUMIF('Financial Statements'!$11:$11,'Annual Financial Statements'!AG$3,'Financial Statements'!68:68) -> 0 | AH61: =SUMIF('Financial Statements'!$11:$11,'Annual Financial Statements'!AH$3,'Financial Statements'!68:68) -> 0 | AI61: =SUMIF('Financial Statements'!$11:$11,'Annual Financial Statements'!AI$3,'Financial Statements'!68:68) -> 0
E62: OCRA/c Initial Funding | F62: =units -> $000's | G62: =SUMIF('Financial Statements'!$11:$11,'Annual Financial Statements'!G$3,'Financial Statements'!69:69) -> 0 | H62: =SUMIF('Financial Statements'!$11:$11,'Annual Financial Statements'!H$3,'Financial Statements'!69:69) -> 731.18356 | I62: =SUMIF('Financial Statements'!$11:$11,'Annual Financial Statements'!I$3,'Financial Statements'!69:69) -> 0 | J62: =SUMIF('Financial Statements'!$11:$11,'Annual Financial Statements'!J$3,'Financial Statements'!69:69) -> 0 | K62: =SUMIF('Financial Statements'!$11:$11,'Annual Financial Statements'!K$3,'Financial Statements'!69:69) -> 0 | L62: =SUMIF('Financial Statements'!$11:$11,'Annual Financial Statements'!L$3,'Financial Statements'!69:69) -> 0 | M62: =SUMIF('Financial Statements'!$11:$11,'Annual Financial Statements'!M$3,'Financial Statements'!69:69) -> 0 | N62: =SUMIF('Financial Statements'!$11:$11,'Annual Financial Statements'!N$3,'Financial Statements'!69:69) -> 0 | O62: =SUMIF('Financial Statements'!$11:$11,'Annual Financial Statements'!O$3,'Financial Statements'!69:69) -> 0 | P62: =SUMIF('Financial Statements'!$11:$11,'Annual Financial Statements'!P$3,'Financial Statements'!69:69) -> 0 | Q62: =SUMIF('Financial Statements'!$11:$11,'Annual Financial Statements'!Q$3,'Financial Statements'!69:69) -> 0 | R62: =SUMIF('Financial Statements'!$11:$11,'Annual Financial Statements'!R$3,'Financial Statements'!69:69) -> 0 | S62: =SUMIF('Financial Statements'!$11:$11,'Annual Financial Statements'!S$3,'Financial Statements'!69:69) -> 0 | T62: =SUMIF('Financial Statements'!$11:$11,'Annual Financial Statements'!T$3,'Financial Statements'!69:69) -> 0 | U62: =SUMIF('Financial Statements'!$11:$11,'Annual Financial Statements'!U$3,'Financial Statements'!69:69) -> 0 | V62: =SUMIF('Financial Statements'!$11:$11,'Annual Financial Statements'!V$3,'Financial Statements'!69:69) -> 0 | W62: =SUMIF('Financial Statements'!$11:$11,'Annual Financial Statements'!W$3,'Financial Statements'!69:69) -> 0 | X62: =SUMIF('Financial Statements'!$11:$11,'Annual Financial Statements'!X$3,'Financial Statements'!69:69) -> 0 | Y62: =SUMIF('Financial Statements'!$11:$11,'Annual Financial Statements'!Y$3,'Financial Statements'!69:69) -> 0 | Z62: =SUMIF('Financial Statements'!$11:$11,'Annual Financial Statements'!Z$3,'Financial Statements'!69:69) -> 0 | AA62: =SUMIF('Financial Statements'!$11:$11,'Annual Financial Statements'!AA$3,'Financial Statements'!69:69) -> 0 | AB62: =SUMIF('Financial Statements'!$11:$11,'Annual Financial Statements'!AB$3,'Financial Statements'!69:69) -> 0 | AC62: =SUMIF('Financial Statements'!$11:$11,'Annual Financial Statements'!AC$3,'Financial Statements'!69:69) -> 0 | AD62: =SUMIF('Financial Statements'!$11:$11,'Annual Financial Statements'!AD$3,'Financial Statements'!69:69) -> 0 | AE62: =SUMIF('Financial Statements'!$11:$11,'Annual Financial Statements'!AE$3,'Financial Statements'!69:69) -> 0 | AF62: =SUMIF('Financial Statements'!$11:$11,'Annual Financial Statements'!AF$3,'Financial Statements'!69:69) -> 0 | AG62: =SUMIF('Financial Statements'!$11:$11,'Annual Financial Statements'!AG$3,'Financial Statements'!69:69) -> 0 | AH62: =SUMIF('Financial Statements'!$11:$11,'Annual Financial Statements'!AH$3,'Financial Statements'!69:69) -> 0 | AI62: =SUMIF('Financial Statements'!$11:$11,'Annual Financial Statements'!AI$3,'Financial Statements'!69:69) -> 0
E63: VAT (Refundable) | F63: =units -> $000's | G63: =SUMIF('Financial Statements'!$11:$11,'Annual Financial Statements'!G$3,'Financial Statements'!70:70) -> 0 | H63: =SUMIF('Financial Statements'!$11:$11,'Annual Financial Statements'!H$3,'Financial Statements'!70:70) -> 0 | I63: =SUMIF('Financial Statements'!$11:$11,'Annual Financial Statements'!I$3,'Financial Statements'!70:70) -> 0 | J63: =SUMIF('Financial Statements'!$11:$11,'Annual Financial Statements'!J$3,'Financial Statements'!70:70) -> 0 | K63: =SUMIF('Financial Statements'!$11:$11,'Annual Financial Statements'!K$3,'Financial Statements'!70:70) -> 0 | L63: =SUMIF('Financial Statements'!$11:$11,'Annual Financial Statements'!L$3,'Financial Statements'!70:70) -> 0 | M63: =SUMIF('Financial Statements'!$11:$11,'Annual Financial Statements'!M$3,'Financial Statements'!70:70) -> 0 | N63: =SUMIF('Financial Statements'!$11:$11,'Annual Financial Statements'!N$3,'Financial Statements'!70:70) -> 0 | O63: =SUMIF('Financial Statements'!$11:$11,'Annual Financial Statements'!O$3,'Financial Statements'!70:70) -> 0 | P63: =SUMIF('Financial Statements'!$11:$11,'Annual Financial Statements'!P$3,'Financial Statements'!70:70) -> 0 | Q63: =SUMIF('Financial Statements'!$11:$11,'Annual Financial Statements'!Q$3,'Financial Statements'!70:70) -> 0 | R63: =SUMIF('Financial Statements'!$11:$11,'Annual Financial Statements'!R$3,'Financial Statements'!70:70) -> 0 | S63: =SUMIF('Financial Statements'!$11:$11,'Annual Financial Statements'!S$3,'Financial Statements'!70:70) -> 0 | T63: =SUMIF('Financial Statements'!$11:$11,'Annual Financial Statements'!T$3,'Financial Statements'!70:70) -> 0 | U63: =SUMIF('Financial Statements'!$11:$11,'Annual Financial Statements'!U$3,'Financial Statements'!70:70) -> 0 | V63: =SUMIF('Financial Statements'!$11:$11,'Annual Financial Statements'!V$3,'Financial Statements'!70:70) -> 0 | W63: =SUMIF('Financial Statements'!$11:$11,'Annual Financial Statements'!W$3,'Financial Statements'!70:70) -> 0 | X63: =SUMIF('Financial Statements'!$11:$11,'Annual Financial Statements'!X$3,'Financial Statements'!70:70) -> 0 | Y63: =SUMIF('Financial Statements'!$11:$11,'Annual Financial Statements'!Y$3,'Financial Statements'!70:70) -> 0 | Z63: =SUMIF('Financial Statements'!$11:$11,'Annual Financial Statements'!Z$3,'Financial Statements'!70:70) -> 0 | AA63: =SUMIF('Financial Statements'!$11:$11,'Annual Financial Statements'!AA$3,'Financial Statements'!70:70) -> 0 | AB63: =SUMIF('Financial Statements'!$11:$11,'Annual Financial Statements'!AB$3,'Financial Statements'!70:70) -> 0 | AC63: =SUMIF('Financial Statements'!$11:$11,'Annual Financial Statements'!AC$3,'Financial Statements'!70:70) -> 0 | AD63: =SUMIF('Financial Statements'!$11:$11,'Annual Financial Statements'!AD$3,'Financial Statements'!70:70) -> 0 | AE63: =SUMIF('Financial Statements'!$11:$11,'Annual Financial Statements'!AE$3,'Financial Statements'!70:70) -> 0 | AF63: =SUMIF('Financial Statements'!$11:$11,'Annual Financial Statements'!AF$3,'Financial Statements'!70:70) -> 0 | AG63: =SUMIF('Financial Statements'!$11:$11,'Annual Financial Statements'!AG$3,'Financial Statements'!70:70) -> 0 | AH63: =SUMIF('Financial Statements'!$11:$11,'Annual Financial Statements'!AH$3,'Financial Statements'!70:70) -> 0 | AI63: =SUMIF('Financial Statements'!$11:$11,'Annual Financial Statements'!AI$3,'Financial Statements'!70:70) -> 0
E64: Total Uses | F64: =units -> $000's | G64: =SUMIF('Financial Statements'!$11:$11,'Annual Financial Statements'!G$3,'Financial Statements'!71:71) -> 0 | H64: =SUMIF('Financial Statements'!$11:$11,'Annual Financial Statements'!H$3,'Financial Statements'!71:71) -> 63778.67467 | I64: =SUMIF('Financial Statements'!$11:$11,'Annual Financial Statements'!I$3,'Financial Statements'!71:71) -> 0 | J64: =SUMIF('Financial Statements'!$11:$11,'Annual Financial Statements'!J$3,'Financial Statements'!71:71) -> 0 | K64: =SUMIF('Financial Statements'!$11:$11,'Annual Financial Statements'!K$3,'Financial Statements'!71:71) -> 0 | L64: =SUMIF('Financial Statements'!$11:$11,'Annual Financial Statements'!L$3,'Financial Statements'!71:71) -> 0 | M64: =SUMIF('Financial Statements'!$11:$11,'Annual Financial Statements'!M$3,'Financial Statements'!71:71) -> 0 | N64: =SUMIF('Financial Statements'!$11:$11,'Annual Financial Statements'!N$3,'Financial Statements'!71:71) -> 0 | O64: =SUMIF('Financial Statements'!$11:$11,'Annual Financial Statements'!O$3,'Financial Statements'!71:71) -> 0 | P64: =SUMIF('Financial Statements'!$11:$11,'Annual Financial Statements'!P$3,'Financial Statements'!71:71) -> 0 | Q64: =SUMIF('Financial Statements'!$11:$11,'Annual Financial Statements'!Q$3,'Financial Statements'!71:71) -> 0 | R64: =SUMIF('Financial Statements'!$11:$11,'Annual Financial Statements'!R$3,'Financial Statements'!71:71) -> 0 | S64: =SUMIF('Financial Statements'!$11:$11,'Annual Financial Statements'!S$3,'Financial Statements'!71:71) -> 0 | T64: =SUMIF('Financial Statements'!$11:$11,'Annual Financial Statements'!T$3,'Financial Statements'!71:71) -> 0 | U64: =SUMIF('Financial Statements'!$11:$11,'Annual Financial Statements'!U$3,'Financial Statements'!71:71) -> 0 | V64: =SUMIF('Financial Statements'!$11:$11,'Annual Financial Statements'!V$3,'Financial Statements'!71:71) -> 0 | W64: =SUMIF('Financial Statements'!$11:$11,'Annual Financial Statements'!W$3,'Financial Statements'!71:71) -> 0 | X64: =SUMIF('Financial Statements'!$11:$11,'Annual Financial Statements'!X$3,'Financial Statements'!71:71) -> 0 | Y64: =SUMIF('Financial Statements'!$11:$11,'Annual Financial Statements'!Y$3,'Financial Statements'!71:71) -> 0 | Z64: =SUMIF('Financial Statements'!$11:$11,'Annual Financial Statements'!Z$3,'Financial Statements'!71:71) -> 0 | AA64: =SUMIF('Financial Statements'!$11:$11,'Annual Financial Statements'!AA$3,'Financial Statements'!71:71) -> 0 | AB64: =SUMIF('Financial Statements'!$11:$11,'Annual Financial Statements'!AB$3,'Financial Statements'!71:71) -> 0 | AC64: =SUMIF('Financial Statements'!$11:$11,'Annual Financial Statements'!AC$3,'Financial Statements'!71:71) -> 0 | AD64: =SUMIF('Financial Statements'!$11:$11,'Annual Financial Statements'!AD$3,'Financial Statements'!71:71) -> 0 | AE64: =SUMIF('Financial Statements'!$11:$11,'Annual Financial Statements'!AE$3,'Financial Statements'!71:71) -> 0 | AF64: =SUMIF('Financial Statements'!$11:$11,'Annual Financial Statements'!AF$3,'Financial Statements'!71:71) -> 0 | AG64: =SUMIF('Financial Statements'!$11:$11,'Annual Financial Statements'!AG$3,'Financial Statements'!71:71) -> 0 | AH64: =SUMIF('Financial Statements'!$11:$11,'Annual Financial Statements'!AH$3,'Financial Statements'!71:71) -> 0 | AI64: =SUMIF('Financial Statements'!$11:$11,'Annual Financial Statements'!AI$3,'Financial Statements'!71:71) -> 0
C66: Soruces of Funds
E67: Total Equity | F67: =units -> $000's | G67: =SUMIF('Financial Statements'!$11:$11,'Annual Financial Statements'!G$3,'Financial Statements'!74:74) -> 0 | H67: =SUMIF('Financial Statements'!$11:$11,'Annual Financial Statements'!H$3,'Financial Statements'!74:74) -> 15944.66867 | I67: =SUMIF('Financial Statements'!$11:$11,'Annual Financial Statements'!I$3,'Financial Statements'!74:74) -> 0 | J67: =SUMIF('Financial Statements'!$11:$11,'Annual Financial Statements'!J$3,'Financial Statements'!74:74) -> 0 | K67: =SUMIF('Financial Statements'!$11:$11,'Annual Financial Statements'!K$3,'Financial Statements'!74:74) -> 0 | L67: =SUMIF('Financial Statements'!$11:$11,'Annual Financial Statements'!L$3,'Financial Statements'!74:74) -> 0 | M67: =SUMIF('Financial Statements'!$11:$11,'Annual Financial Statements'!M$3,'Financial Statements'!74:74) -> 0 | N67: =SUMIF('Financial Statements'!$11:$11,'Annual Financial Statements'!N$3,'Financial Statements'!74:74) -> 0 | O67: =SUMIF('Financial Statements'!$11:$11,'Annual Financial Statements'!O$3,'Financial Statements'!74:74) -> 0 | P67: =SUMIF('Financial Statements'!$11:$11,'Annual Financial Statements'!P$3,'Financial Statements'!74:74) -> 0 | Q67: =SUMIF('Financial Statements'!$11:$11,'Annual Financial Statements'!Q$3,'Financial Statements'!74:74) -> 0 | R67: =SUMIF('Financial Statements'!$11:$11,'Annual Financial Statements'!R$3,'Financial Statements'!74:74) -> 0 | S67: =SUMIF('Financial Statements'!$11:$11,'Annual Financial Statements'!S$3,'Financial Statements'!74:74) -> 0 | T67: =SUMIF('Financial Statements'!$11:$11,'Annual Financial Statements'!T$3,'Financial Statements'!74:74) -> 0 | U67: =SUMIF('Financial Statements'!$11:$11,'Annual Financial Statements'!U$3,'Financial Statements'!74:74) -> 0 | V67: =SUMIF('Financial Statements'!$11:$11,'Annual Financial Statements'!V$3,'Financial Statements'!74:74) -> 0 | W67: =SUMIF('Financial Statements'!$11:$11,'Annual Financial Statements'!W$3,'Financial Statements'!74:74) -> 0 | X67: =SUMIF('Financial Statements'!$11:$11,'Annual Financial Statements'!X$3,'Financial Statements'!74:74) -> 0 | Y67: =SUMIF('Financial Statements'!$11:$11,'Annual Financial Statements'!Y$3,'Financial Statements'!74:74) -> 0 | Z67: =SUMIF('Financial Statements'!$11:$11,'Annual Financial Statements'!Z$3,'Financial Statements'!74:74) -> 0 | AA67: =SUMIF('Financial Statements'!$11:$11,'Annual Financial Statements'!AA$3,'Financial Statements'!74:74) -> 0 | AB67: =SUMIF('Financial Statements'!$11:$11,'Annual Financial Statements'!AB$3,'Financial Statements'!74:74) -> 0 | AC67: =SUMIF('Financial Statements'!$11:$11,'Annual Financial Statements'!AC$3,'Financial Statements'!74:74) -> 0 | AD67: =SUMIF('Financial Statements'!$11:$11,'Annual Financial Statements'!AD$3,'Financial Statements'!74:74) -> 0 | AE67: =SUMIF('Financial Statements'!$11:$11,'Annual Financial Statements'!AE$3,'Financial Statements'!74:74) -> 0 | AF67: =SUMIF('Financial Statements'!$11:$11,'Annual Financial Statements'!AF$3,'Financial Statements'!74:74) -> 0 | AG67: =SUMIF('Financial Statements'!$11:$11,'Annual Financial Statements'!AG$3,'Financial Statements'!74:74) -> 0 | AH67: =SUMIF('Financial Statements'!$11:$11,'Annual Financial Statements'!AH$3,'Financial Statements'!74:74) -> 0 | AI67: =SUMIF('Financial Statements'!$11:$11,'Annual Financial Statements'!AI$3,'Financial Statements'!74:74) -> 0
E68: Total Senior Debt | F68: =units -> $000's | G68: =SUMIF('Financial Statements'!$11:$11,'Annual Financial Statements'!G$3,'Financial Statements'!75:75) -> 0 | H68: =SUMIF('Financial Statements'!$11:$11,'Annual Financial Statements'!H$3,'Financial Statements'!75:75) -> 47834.006 | I68: =SUMIF('Financial Statements'!$11:$11,'Annual Financial Statements'!I$3,'Financial Statements'!75:75) -> 0 | J68: =SUMIF('Financial Statements'!$11:$11,'Annual Financial Statements'!J$3,'Financial Statements'!75:75) -> 0 | K68: =SUMIF('Financial Statements'!$11:$11,'Annual Financial Statements'!K$3,'Financial Statements'!75:75) -> 0 | L68: =SUMIF('Financial Statements'!$11:$11,'Annual Financial Statements'!L$3,'Financial Statements'!75:75) -> 0 | M68: =SUMIF('Financial Statements'!$11:$11,'Annual Financial Statements'!M$3,'Financial Statements'!75:75) -> 0 | N68: =SUMIF('Financial Statements'!$11:$11,'Annual Financial Statements'!N$3,'Financial Statements'!75:75) -> 0 | O68: =SUMIF('Financial Statements'!$11:$11,'Annual Financial Statements'!O$3,'Financial Statements'!75:75) -> 0 | P68: =SUMIF('Financial Statements'!$11:$11,'Annual Financial Statements'!P$3,'Financial Statements'!75:75) -> 0 | Q68: =SUMIF('Financial Statements'!$11:$11,'Annual Financial Statements'!Q$3,'Financial Statements'!75:75) -> 0 | R68: =SUMIF('Financial Statements'!$11:$11,'Annual Financial Statements'!R$3,'Financial Statements'!75:75) -> 0 | S68: =SUMIF('Financial Statements'!$11:$11,'Annual Financial Statements'!S$3,'Financial Statements'!75:75) -> 0 | T68: =SUMIF('Financial Statements'!$11:$11,'Annual Financial Statements'!T$3,'Financial Statements'!75:75) -> 0 | U68: =SUMIF('Financial Statements'!$11:$11,'Annual Financial Statements'!U$3,'Financial Statements'!75:75) -> 0 | V68: =SUMIF('Financial Statements'!$11:$11,'Annual Financial Statements'!V$3,'Financial Statements'!75:75) -> 0 | W68: =SUMIF('Financial Statements'!$11:$11,'Annual Financial Statements'!W$3,'Financial Statements'!75:75) -> 0 | X68: =SUMIF('Financial Statements'!$11:$11,'Annual Financial Statements'!X$3,'Financial Statements'!75:75) -> 0 | Y68: =SUMIF('Financial Statements'!$11:$11,'Annual Financial Statements'!Y$3,'Financial Statements'!75:75) -> 0 | Z68: =SUMIF('Financial Statements'!$11:$11,'Annual Financial Statements'!Z$3,'Financial Statements'!75:75) -> 0 | AA68: =SUMIF('Financial Statements'!$11:$11,'Annual Financial Statements'!AA$3,'Financial Statements'!75:75) -> 0 | AB68: =SUMIF('Financial Statements'!$11:$11,'Annual Financial Statements'!AB$3,'Financial Statements'!75:75) -> 0 | AC68: =SUMIF('Financial Statements'!$11:$11,'Annual Financial Statements'!AC$3,'Financial Statements'!75:75) -> 0 | AD68: =SUMIF('Financial Statements'!$11:$11,'Annual Financial Statements'!AD$3,'Financial Statements'!75:75) -> 0 | AE68: =SUMIF('Financial Statements'!$11:$11,'Annual Financial Statements'!AE$3,'Financial Statements'!75:75) -> 0 | AF68: =SUMIF('Financial Statements'!$11:$11,'Annual Financial Statements'!AF$3,'Financial Statements'!75:75) -> 0 | AG68: =SUMIF('Financial Statements'!$11:$11,'Annual Financial Statements'!AG$3,'Financial Statements'!75:75) -> 0 | AH68: =SUMIF('Financial Statements'!$11:$11,'Annual Financial Statements'!AH$3,'Financial Statements'!75:75) -> 0 | AI68: =SUMIF('Financial Statements'!$11:$11,'Annual Financial Statements'!AI$3,'Financial Statements'!75:75) -> 0
E69: Total Sources | F69: =units -> $000's | G69: =SUMIF('Financial Statements'!$11:$11,'Annual Financial Statements'!G$3,'Financial Statements'!76:76) -> 0 | H69: =SUMIF('Financial Statements'!$11:$11,'Annual Financial Statements'!H$3,'Financial Statements'!76:76) -> 63778.67467 | I69: =SUMIF('Financial Statements'!$11:$11,'Annual Financial Statements'!I$3,'Financial Statements'!76:76) -> 0 | J69: =SUMIF('Financial Statements'!$11:$11,'Annual Financial Statements'!J$3,'Financial Statements'!76:76) -> 0 | K69: =SUMIF('Financial Statements'!$11:$11,'Annual Financial Statements'!K$3,'Financial Statements'!76:76) -> 0 | L69: =SUMIF('Financial Statements'!$11:$11,'Annual Financial Statements'!L$3,'Financial Statements'!76:76) -> 0 | M69: =SUMIF('Financial Statements'!$11:$11,'Annual Financial Statements'!M$3,'Financial Statements'!76:76) -> 0 | N69: =SUMIF('Financial Statements'!$11:$11,'Annual Financial Statements'!N$3,'Financial Statements'!76:76) -> 0 | O69: =SUMIF('Financial Statements'!$11:$11,'Annual Financial Statements'!O$3,'Financial Statements'!76:76) -> 0 | P69: =SUMIF('Financial Statements'!$11:$11,'Annual Financial Statements'!P$3,'Financial Statements'!76:76) -> 0 | Q69: =SUMIF('Financial Statements'!$11:$11,'Annual Financial Statements'!Q$3,'Financial Statements'!76:76) -> 0 | R69: =SUMIF('Financial Statements'!$11:$11,'Annual Financial Statements'!R$3,'Financial Statements'!76:76) -> 0 | S69: =SUMIF('Financial Statements'!$11:$11,'Annual Financial Statements'!S$3,'Financial Statements'!76:76) -> 0 | T69: =SUMIF('Financial Statements'!$11:$11,'Annual Financial Statements'!T$3,'Financial Statements'!76:76) -> 0 | U69: =SUMIF('Financial Statements'!$11:$11,'Annual Financial Statements'!U$3,'Financial Statements'!76:76) -> 0 | V69: =SUMIF('Financial Statements'!$11:$11,'Annual Financial Statements'!V$3,'Financial Statements'!76:76) -> 0 | W69: =SUMIF('Financial Statements'!$11:$11,'Annual Financial Statements'!W$3,'Financial Statements'!76:76) -> 0 | X69: =SUMIF('Financial Statements'!$11:$11,'Annual Financial Statements'!X$3,'Financial Statements'!76:76) -> 0 | Y69: =SUMIF('Financial Statements'!$11:$11,'Annual Financial Statements'!Y$3,'Financial Statements'!76:76) -> 0 | Z69: =SUMIF('Financial Statements'!$11:$11,'Annual Financial Statements'!Z$3,'Financial Statements'!76:76) -> 0 | AA69: =SUMIF('Financial Statements'!$11:$11,'Annual Financial Statements'!AA$3,'Financial Statements'!76:76) -> 0 | AB69: =SUMIF('Financial Statements'!$11:$11,'Annual Financial Statements'!AB$3,'Financial Statements'!76:76) -> 0 | AC69: =SUMIF('Financial Statements'!$11:$11,'Annual Financial Statements'!AC$3,'Financial Statements'!76:76) -> 0 | AD69: =SUMIF('Financial Statements'!$11:$11,'Annual Financial Statements'!AD$3,'Financial Statements'!76:76) -> 0 | AE69: =SUMIF('Financial Statements'!$11:$11,'Annual Financial Statements'!AE$3,'Financial Statements'!76:76) -> 0 | AF69: =SUMIF('Financial Statements'!$11:$11,'Annual Financial Statements'!AF$3,'Financial Statements'!76:76) -> 0 | AG69: =SUMIF('Financial Statements'!$11:$11,'Annual Financial Statements'!AG$3,'Financial Statements'!76:76) -> 0 | AH69: =SUMIF('Financial Statements'!$11:$11,'Annual Financial Statements'!AH$3,'Financial Statements'!76:76) -> 0 | AI69: =SUMIF('Financial Statements'!$11:$11,'Annual Financial Statements'!AI$3,'Financial Statements'!76:76) -> 0
A72: Profit & Loss Statement and Taxes Paid
D73: Revenue | F73: =units -> $000's | G73: =SUMIF('Financial Statements'!$11:$11,'Annual Financial Statements'!G$3,'Financial Statements'!132:132) -> 0 | H73: =SUMIF('Financial Statements'!$11:$11,'Annual Financial Statements'!H$3,'Financial Statements'!132:132) -> 3864.172202 | I73: =SUMIF('Financial Statements'!$11:$11,'Annual Financial Statements'!I$3,'Financial Statements'!132:132) -> 10258.11129 | J73: =SUMIF('Financial Statements'!$11:$11,'Annual Financial Statements'!J$3,'Financial Statements'!132:132) -> 10226.96217 | K73: =SUMIF('Financial Statements'!$11:$11,'Annual Financial Statements'!K$3,'Financial Statements'!132:132) -> 10190.00744 | L73: =SUMIF('Financial Statements'!$11:$11,'Annual Financial Statements'!L$3,'Financial Statements'!132:132) -> 10153.02119 | M73: =SUMIF('Financial Statements'!$11:$11,'Annual Financial Statements'!M$3,'Financial Statements'!132:132) -> 10115.83391 | N73: =SUMIF('Financial Statements'!$11:$11,'Annual Financial Statements'!N$3,'Financial Statements'!132:132) -> 10078.25791 | O73: =SUMIF('Financial Statements'!$11:$11,'Annual Financial Statements'!O$3,'Financial Statements'!132:132) -> 10040.45013 | P73: =SUMIF('Financial Statements'!$11:$11,'Annual Financial Statements'!P$3,'Financial Statements'!132:132) -> 10002.41746 | Q73: =SUMIF('Financial Statements'!$11:$11,'Annual Financial Statements'!Q$3,'Financial Statements'!132:132) -> 9964.070743 | R73: =SUMIF('Financial Statements'!$11:$11,'Annual Financial Statements'!R$3,'Financial Statements'!132:132) -> 9925.309548 | S73: =SUMIF('Financial Statements'!$11:$11,'Annual Financial Statements'!S$3,'Financial Statements'!132:132) -> 9886.270481 | T73: =SUMIF('Financial Statements'!$11:$11,'Annual Financial Statements'!T$3,'Financial Statements'!132:132) -> 9846.960951 | U73: =SUMIF('Financial Statements'!$11:$11,'Annual Financial Statements'!U$3,'Financial Statements'!132:132) -> 9807.332266 | V73: =SUMIF('Financial Statements'!$11:$11,'Annual Financial Statements'!V$3,'Financial Statements'!132:132) -> 9767.26056 | W73: =SUMIF('Financial Statements'!$11:$11,'Annual Financial Statements'!W$3,'Financial Statements'!132:132) -> 9726.98214 | X73: =SUMIF('Financial Statements'!$11:$11,'Annual Financial Statements'!X$3,'Financial Statements'!132:132) -> 9686.568756 | Y73: =SUMIF('Financial Statements'!$11:$11,'Annual Financial Statements'!Y$3,'Financial Statements'!132:132) -> 9646.083229 | Z73: =SUMIF('Financial Statements'!$11:$11,'Annual Financial Statements'!Z$3,'Financial Statements'!132:132) -> 9605.432758 | AA73: =SUMIF('Financial Statements'!$11:$11,'Annual Financial Statements'!AA$3,'Financial Statements'!132:132) -> 9564.876047 | AB73: =SUMIF('Financial Statements'!$11:$11,'Annual Financial Statements'!AB$3,'Financial Statements'!132:132) -> 8116.586758 | AC73: =SUMIF('Financial Statements'!$11:$11,'Annual Financial Statements'!AC$3,'Financial Statements'!132:132) -> 4855.472799 | AD73: =SUMIF('Financial Statements'!$11:$11,'Annual Financial Statements'!AD$3,'Financial Statements'!132:132) -> 4943.194752 | AE73: =SUMIF('Financial Statements'!$11:$11,'Annual Financial Statements'!AE$3,'Financial Statements'!132:132) -> 5035.404097 | AF73: =SUMIF('Financial Statements'!$11:$11,'Annual Financial Statements'!AF$3,'Financial Statements'!132:132) -> 5129.258541 | AG73: =SUMIF('Financial Statements'!$11:$11,'Annual Financial Statements'!AG$3,'Financial Statements'!132:132) -> 5224.844787 | AH73: =SUMIF('Financial Statements'!$11:$11,'Annual Financial Statements'!AH$3,'Financial Statements'!132:132) -> 5322.485855 | AI73: =SUMIF('Financial Statements'!$11:$11,'Annual Financial Statements'!AI$3,'Financial Statements'!132:132) -> 5421.923408
D74: Less: Operational Expenditure | F74: $000's | G74: =SUMIF('Financial Statements'!$11:$11,'Annual Financial Statements'!G$3,'Financial Statements'!133:133) -> 0 | H74: =SUMIF('Financial Statements'!$11:$11,'Annual Financial Statements'!H$3,'Financial Statements'!133:133) -> 609.3196333 | I74: =SUMIF('Financial Statements'!$11:$11,'Annual Financial Statements'!I$3,'Financial Statements'!133:133) -> 1475.761548 | J74: =SUMIF('Financial Statements'!$11:$11,'Annual Financial Statements'!J$3,'Financial Statements'!133:133) -> 1508.229339 | K74: =SUMIF('Financial Statements'!$11:$11,'Annual Financial Statements'!K$3,'Financial Statements'!133:133) -> 1541.475812 | L74: =SUMIF('Financial Statements'!$11:$11,'Annual Financial Statements'!L$3,'Financial Statements'!133:133) -> 1575.520104 | M74: =SUMIF('Financial Statements'!$11:$11,'Annual Financial Statements'!M$3,'Financial Statements'!133:133) -> 1610.381827 | N74: =SUMIF('Financial Statements'!$11:$11,'Annual Financial Statements'!N$3,'Financial Statements'!133:133) -> 1646.081081 | O74: =SUMIF('Financial Statements'!$11:$11,'Annual Financial Statements'!O$3,'Financial Statements'!133:133) -> 1682.638463 | P74: =SUMIF('Financial Statements'!$11:$11,'Annual Financial Statements'!P$3,'Financial Statements'!133:133) -> 1720.075083 | Q74: =SUMIF('Financial Statements'!$11:$11,'Annual Financial Statements'!Q$3,'Financial Statements'!133:133) -> 1758.412575 | R74: =SUMIF('Financial Statements'!$11:$11,'Annual Financial Statements'!R$3,'Financial Statements'!133:133) -> 1797.673111 | S74: =SUMIF('Financial Statements'!$11:$11,'Annual Financial Statements'!S$3,'Financial Statements'!133:133) -> 1837.879412 | T74: =SUMIF('Financial Statements'!$11:$11,'Annual Financial Statements'!T$3,'Financial Statements'!133:133) -> 1879.054766 | U74: =SUMIF('Financial Statements'!$11:$11,'Annual Financial Statements'!U$3,'Financial Statements'!133:133) -> 1921.223037 | V74: =SUMIF('Financial Statements'!$11:$11,'Annual Financial Statements'!V$3,'Financial Statements'!133:133) -> 1964.408684 | W74: =SUMIF('Financial Statements'!$11:$11,'Annual Financial Statements'!W$3,'Financial Statements'!133:133) -> 2008.636773 | X74: =SUMIF('Financial Statements'!$11:$11,'Annual Financial Statements'!X$3,'Financial Statements'!133:133) -> 2053.932993 | Y74: =SUMIF('Financial Statements'!$11:$11,'Annual Financial Statements'!Y$3,'Financial Statements'!133:133) -> 2100.323671 | Z74: =SUMIF('Financial Statements'!$11:$11,'Annual Financial Statements'!Z$3,'Financial Statements'!133:133) -> 2147.835789 | AA74: =SUMIF('Financial Statements'!$11:$11,'Annual Financial Statements'!AA$3,'Financial Statements'!133:133) -> 2196.497001 | AB74: =SUMIF('Financial Statements'!$11:$11,'Annual Financial Statements'!AB$3,'Financial Statements'!133:133) -> 2246.335647 | AC74: =SUMIF('Financial Statements'!$11:$11,'Annual Financial Statements'!AC$3,'Financial Statements'!133:133) -> 2297.380771 | AD74: =SUMIF('Financial Statements'!$11:$11,'Annual Financial Statements'!AD$3,'Financial Statements'!133:133) -> 2349.66214 | AE74: =SUMIF('Financial Statements'!$11:$11,'Annual Financial Statements'!AE$3,'Financial Statements'!133:133) -> 2403.210262 | AF74: =SUMIF('Financial Statements'!$11:$11,'Annual Financial Statements'!AF$3,'Financial Statements'!133:133) -> 2458.056402 | AG74: =SUMIF('Financial Statements'!$11:$11,'Annual Financial Statements'!AG$3,'Financial Statements'!133:133) -> 2514.232605 | AH74: =SUMIF('Financial Statements'!$11:$11,'Annual Financial Statements'!AH$3,'Financial Statements'!133:133) -> 2571.771711 | AI74: =SUMIF('Financial Statements'!$11:$11,'Annual Financial Statements'!AI$3,'Financial Statements'!133:133) -> 2630.707378
E75: EBITDA | F75: $000's | G75: =SUMIF('Financial Statements'!$11:$11,'Annual Financial Statements'!G$3,'Financial Statements'!134:134) -> 0 | H75: =SUMIF('Financial Statements'!$11:$11,'Annual Financial Statements'!H$3,'Financial Statements'!134:134) -> 3254.852569 | I75: =SUMIF('Financial Statements'!$11:$11,'Annual Financial Statements'!I$3,'Financial Statements'!134:134) -> 8782.349738 | J75: =SUMIF('Financial Statements'!$11:$11,'Annual Financial Statements'!J$3,'Financial Statements'!134:134) -> 8718.732833 | K75: =SUMIF('Financial Statements'!$11:$11,'Annual Financial Statements'!K$3,'Financial Statements'!134:134) -> 8648.531633 | L75: =SUMIF('Financial Statements'!$11:$11,'Annual Financial Statements'!L$3,'Financial Statements'!134:134) -> 8577.501086 | M75: =SUMIF('Financial Statements'!$11:$11,'Annual Financial Statements'!M$3,'Financial Statements'!134:134) -> 8505.452086 | N75: =SUMIF('Financial Statements'!$11:$11,'Annual Financial Statements'!N$3,'Financial Statements'!134:134) -> 8432.176832 | O75: =SUMIF('Financial Statements'!$11:$11,'Annual Financial Statements'!O$3,'Financial Statements'!134:134) -> 8357.811662 | P75: =SUMIF('Financial Statements'!$11:$11,'Annual Financial Statements'!P$3,'Financial Statements'!134:134) -> 8282.342372 | Q75: =SUMIF('Financial Statements'!$11:$11,'Annual Financial Statements'!Q$3,'Financial Statements'!134:134) -> 8205.658168 | R75: =SUMIF('Financial Statements'!$11:$11,'Annual Financial Statements'!R$3,'Financial Statements'!134:134) -> 8127.636437 | S75: =SUMIF('Financial Statements'!$11:$11,'Annual Financial Statements'!S$3,'Financial Statements'!134:134) -> 8048.391069 | T75: =SUMIF('Financial Statements'!$11:$11,'Annual Financial Statements'!T$3,'Financial Statements'!134:134) -> 7967.906185 | U75: =SUMIF('Financial Statements'!$11:$11,'Annual Financial Statements'!U$3,'Financial Statements'!134:134) -> 7886.109229 | V75: =SUMIF('Financial Statements'!$11:$11,'Annual Financial Statements'!V$3,'Financial Statements'!134:134) -> 7802.851876 | W75: =SUMIF('Financial Statements'!$11:$11,'Annual Financial Statements'!W$3,'Financial Statements'!134:134) -> 7718.345367 | X75: =SUMIF('Financial Statements'!$11:$11,'Annual Financial Statements'!X$3,'Financial Statements'!134:134) -> 7632.635763 | Y75: =SUMIF('Financial Statements'!$11:$11,'Annual Financial Statements'!Y$3,'Financial Statements'!134:134) -> 7545.759558 | Z75: =SUMIF('Financial Statements'!$11:$11,'Annual Financial Statements'!Z$3,'Financial Statements'!134:134) -> 7457.596969 | AA75: =SUMIF('Financial Statements'!$11:$11,'Annual Financial Statements'!AA$3,'Financial Statements'!134:134) -> 7368.379046 | AB75: =SUMIF('Financial Statements'!$11:$11,'Annual Financial Statements'!AB$3,'Financial Statements'!134:134) -> 5870.251111 | AC75: =SUMIF('Financial Statements'!$11:$11,'Annual Financial Statements'!AC$3,'Financial Statements'!134:134) -> 2558.092028 | AD75: =SUMIF('Financial Statements'!$11:$11,'Annual Financial Statements'!AD$3,'Financial Statements'!134:134) -> 2593.532612 | AE75: =SUMIF('Financial Statements'!$11:$11,'Annual Financial Statements'!AE$3,'Financial Statements'!134:134) -> 2632.193835 | AF75: =SUMIF('Financial Statements'!$11:$11,'Annual Financial Statements'!AF$3,'Financial Statements'!134:134) -> 2671.202138 | AG75: =SUMIF('Financial Statements'!$11:$11,'Annual Financial Statements'!AG$3,'Financial Statements'!134:134) -> 2710.612182 | AH75: =SUMIF('Financial Statements'!$11:$11,'Annual Financial Statements'!AH$3,'Financial Statements'!134:134) -> 2750.714144 | AI75: =SUMIF('Financial Statements'!$11:$11,'Annual Financial Statements'!AI$3,'Financial Statements'!134:134) -> 2791.21603
D76: Add: VAT Refunds | F76: $000's | G76: =SUMIF('Financial Statements'!$11:$11,'Annual Financial Statements'!G$3,'Financial Statements'!135:135) -> 0 | H76: =SUMIF('Financial Statements'!$11:$11,'Annual Financial Statements'!H$3,'Financial Statements'!135:135) -> 0 | I76: =SUMIF('Financial Statements'!$11:$11,'Annual Financial Statements'!I$3,'Financial Statements'!135:135) -> 0 | J76: =SUMIF('Financial Statements'!$11:$11,'Annual Financial Statements'!J$3,'Financial Statements'!135:135) -> 0 | K76: =SUMIF('Financial Statements'!$11:$11,'Annual Financial Statements'!K$3,'Financial Statements'!135:135) -> 0 | L76: =SUMIF('Financial Statements'!$11:$11,'Annual Financial Statements'!L$3,'Financial Statements'!135:135) -> 0 | M76: =SUMIF('Financial Statements'!$11:$11,'Annual Financial Statements'!M$3,'Financial Statements'!135:135) -> 0 | N76: =SUMIF('Financial Statements'!$11:$11,'Annual Financial Statements'!N$3,'Financial Statements'!135:135) -> 0 | O76: =SUMIF('Financial Statements'!$11:$11,'Annual Financial Statements'!O$3,'Financial Statements'!135:135) -> 0 | P76: =SUMIF('Financial Statements'!$11:$11,'Annual Financial Statements'!P$3,'Financial Statements'!135:135) -> 0 | Q76: =SUMIF('Financial Statements'!$11:$11,'Annual Financial Statements'!Q$3,'Financial Statements'!135:135) -> 0 | R76: =SUMIF('Financial Statements'!$11:$11,'Annual Financial Statements'!R$3,'Financial Statements'!135:135) -> 0 | S76: =SUMIF('Financial Statements'!$11:$11,'Annual Financial Statements'!S$3,'Financial Statements'!135:135) -> 0 | T76: =SUMIF('Financial Statements'!$11:$11,'Annual Financial Statements'!T$3,'Financial Statements'!135:135) -> 0 | U76: =SUMIF('Financial Statements'!$11:$11,'Annual Financial Statements'!U$3,'Financial Statements'!135:135) -> 0 | V76: =SUMIF('Financial Statements'!$11:$11,'Annual Financial Statements'!V$3,'Financial Statements'!135:135) -> 0 | W76: =SUMIF('Financial Statements'!$11:$11,'Annual Financial Statements'!W$3,'Financial Statements'!135:135) -> 0 | X76: =SUMIF('Financial Statements'!$11:$11,'Annual Financial Statements'!X$3,'Financial Statements'!135:135) -> 0 | Y76: =SUMIF('Financial Statements'!$11:$11,'Annual Financial Statements'!Y$3,'Financial Statements'!135:135) -> 0 | Z76: =SUMIF('Financial Statements'!$11:$11,'Annual Financial Statements'!Z$3,'Financial Statements'!135:135) -> 0 | AA76: =SUMIF('Financial Statements'!$11:$11,'Annual Financial Statements'!AA$3,'Financial Statements'!135:135) -> 0 | AB76: =SUMIF('Financial Statements'!$11:$11,'Annual Financial Statements'!AB$3,'Financial Statements'!135:135) -> 0 | AC76: =SUMIF('Financial Statements'!$11:$11,'Annual Financial Statements'!AC$3,'Financial Statements'!135:135) -> 0 | AD76: =SUMIF('Financial Statements'!$11:$11,'Annual Financial Statements'!AD$3,'Financial Statements'!135:135) -> 0 | AE76: =SUMIF('Financial Statements'!$11:$11,'Annual Financial Statements'!AE$3,'Financial Statements'!135:135) -> 0 | AF76: =SUMIF('Financial Statements'!$11:$11,'Annual Financial Statements'!AF$3,'Financial Statements'!135:135) -> 0 | AG76: =SUMIF('Financial Statements'!$11:$11,'Annual Financial Statements'!AG$3,'Financial Statements'!135:135) -> 0 | AH76: =SUMIF('Financial Statements'!$11:$11,'Annual Financial Statements'!AH$3,'Financial Statements'!135:135) -> 0 | AI76: =SUMIF('Financial Statements'!$11:$11,'Annual Financial Statements'!AI$3,'Financial Statements'!135:135) -> 0
D77: Less: LC Fee for DSRA | F77: $000's | G77: =SUMIF('Financial Statements'!$11:$11,'Annual Financial Statements'!G$3,'Financial Statements'!136:136) -> 0 | H77: =SUMIF('Financial Statements'!$11:$11,'Annual Financial Statements'!H$3,'Financial Statements'!136:136) -> 0 | I77: =SUMIF('Financial Statements'!$11:$11,'Annual Financial Statements'!I$3,'Financial Statements'!136:136) -> 0 | J77: =SUMIF('Financial Statements'!$11:$11,'Annual Financial Statements'!J$3,'Financial Statements'!136:136) -> 0 | K77: =SUMIF('Financial Statements'!$11:$11,'Annual Financial Statements'!K$3,'Financial Statements'!136:136) -> 0 | L77: =SUMIF('Financial Statements'!$11:$11,'Annual Financial Statements'!L$3,'Financial Statements'!136:136) -> 0 | M77: =SUMIF('Financial Statements'!$11:$11,'Annual Financial Statements'!M$3,'Financial Statements'!136:136) -> 0 | N77: =SUMIF('Financial Statements'!$11:$11,'Annual Financial Statements'!N$3,'Financial Statements'!136:136) -> 0 | O77: =SUMIF('Financial Statements'!$11:$11,'Annual Financial Statements'!O$3,'Financial Statements'!136:136) -> 0 | P77: =SUMIF('Financial Statements'!$11:$11,'Annual Financial Statements'!P$3,'Financial Statements'!136:136) -> 0 | Q77: =SUMIF('Financial Statements'!$11:$11,'Annual Financial Statements'!Q$3,'Financial Statements'!136:136) -> 0 | R77: =SUMIF('Financial Statements'!$11:$11,'Annual Financial Statements'!R$3,'Financial Statements'!136:136) -> 0 | S77: =SUMIF('Financial Statements'!$11:$11,'Annual Financial Statements'!S$3,'Financial Statements'!136:136) -> 0 | T77: =SUMIF('Financial Statements'!$11:$11,'Annual Financial Statements'!T$3,'Financial Statements'!136:136) -> 0 | U77: =SUMIF('Financial Statements'!$11:$11,'Annual Financial Statements'!U$3,'Financial Statements'!136:136) -> 0 | V77: =SUMIF('Financial Statements'!$11:$11,'Annual Financial Statements'!V$3,'Financial Statements'!136:136) -> 0 | W77: =SUMIF('Financial Statements'!$11:$11,'Annual Financial Statements'!W$3,'Financial Statements'!136:136) -> 0 | X77: =SUMIF('Financial Statements'!$11:$11,'Annual Financial Statements'!X$3,'Financial Statements'!136:136) -> 0 | Y77: =SUMIF('Financial Statements'!$11:$11,'Annual Financial Statements'!Y$3,'Financial Statements'!136:136) -> 0 | Z77: =SUMIF('Financial Statements'!$11:$11,'Annual Financial Statements'!Z$3,'Financial Statements'!136:136) -> 0 | AA77: =SUMIF('Financial Statements'!$11:$11,'Annual Financial Statements'!AA$3,'Financial Statements'!136:136) -> 0 | AB77: =SUMIF('Financial Statements'!$11:$11,'Annual Financial Statements'!AB$3,'Financial Statements'!136:136) -> 0 | AC77: =SUMIF('Financial Statements'!$11:$11,'Annual Financial Statements'!AC$3,'Financial Statements'!136:136) -> 0 | AD77: =SUMIF('Financial Statements'!$11:$11,'Annual Financial Statements'!AD$3,'Financial Statements'!136:136) -> 0 | AE77: =SUMIF('Financial Statements'!$11:$11,'Annual Financial Statements'!AE$3,'Financial Statements'!136:136) -> 0 | AF77: =SUMIF('Financial Statements'!$11:$11,'Annual Financial Statements'!AF$3,'Financial Statements'!136:136) -> 0 | AG77: =SUMIF('Financial Statements'!$11:$11,'Annual Financial Statements'!AG$3,'Financial Statements'!136:136) -> 0 | AH77: =SUMIF('Financial Statements'!$11:$11,'Annual Financial Statements'!AH$3,'Financial Statements'!136:136) -> 0 | AI77: =SUMIF('Financial Statements'!$11:$11,'Annual Financial Statements'!AI$3,'Financial Statements'!136:136) -> 0
D78: Less: PRG | F78: $000's | G78: =SUMIF('Financial Statements'!$11:$11,'Annual Financial Statements'!G$3,'Financial Statements'!137:137) -> 0 | H78: =SUMIF('Financial Statements'!$11:$11,'Annual Financial Statements'!H$3,'Financial Statements'!137:137) -> 486.3123943 | I78: =SUMIF('Financial Statements'!$11:$11,'Annual Financial Statements'!I$3,'Financial Statements'!137:137) -> 977.2852471 | J78: =SUMIF('Financial Statements'!$11:$11,'Annual Financial Statements'!J$3,'Financial Statements'!137:137) -> 953.7203603 | K78: =SUMIF('Financial Statements'!$11:$11,'Annual Financial Statements'!K$3,'Financial Statements'!137:137) -> 922.7472011 | L78: =SUMIF('Financial Statements'!$11:$11,'Annual Financial Statements'!L$3,'Financial Statements'!137:137) -> 892.0571075 | M78: =SUMIF('Financial Statements'!$11:$11,'Annual Financial Statements'!M$3,'Financial Statements'!137:137) -> 858.8960399 | N78: =SUMIF('Financial Statements'!$11:$11,'Annual Financial Statements'!N$3,'Financial Statements'!137:137) -> 825.3949416 | O78: =SUMIF('Financial Statements'!$11:$11,'Annual Financial Statements'!O$3,'Financial Statements'!137:137) -> 784.2902202 | P78: =SUMIF('Financial Statements'!$11:$11,'Annual Financial Statements'!P$3,'Financial Statements'!137:137) -> 741.9814626 | Q78: =SUMIF('Financial Statements'!$11:$11,'Annual Financial Statements'!Q$3,'Financial Statements'!137:137) -> 695.91106 | R78: =SUMIF('Financial Statements'!$11:$11,'Annual Financial Statements'!R$3,'Financial Statements'!137:137) -> 647.5625837 | S78: =SUMIF('Financial Statements'!$11:$11,'Annual Financial Statements'!S$3,'Financial Statements'!137:137) -> 590.9534372 | T78: =SUMIF('Financial Statements'!$11:$11,'Annual Financial Statements'!T$3,'Financial Statements'!137:137) -> 530.89774 | U78: =SUMIF('Financial Statements'!$11:$11,'Annual Financial Statements'!U$3,'Financial Statements'!137:137) -> 465.0843762 | V78: =SUMIF('Financial Statements'!$11:$11,'Annual Financial Statements'!V$3,'Financial Statements'!137:137) -> 394.0550206 | W78: =SUMIF('Financial Statements'!$11:$11,'Annual Financial Statements'!W$3,'Financial Statements'!137:137) -> 313.6286032 | X78: =SUMIF('Financial Statements'!$11:$11,'Annual Financial Statements'!X$3,'Financial Statements'!137:137) -> 226.4765153 | Y78: =SUMIF('Financial Statements'!$11:$11,'Annual Financial Statements'!Y$3,'Financial Statements'!137:137) -> 130.8306451 | Z78: =SUMIF('Financial Statements'!$11:$11,'Annual Financial Statements'!Z$3,'Financial Statements'!137:137) -> 28.09572782 | AA78: =SUMIF('Financial Statements'!$11:$11,'Annual Financial Statements'!AA$3,'Financial Statements'!137:137) -> 1.786122286e-09 | AB78: =SUMIF('Financial Statements'!$11:$11,'Annual Financial Statements'!AB$3,'Financial Statements'!137:137) -> 1.786122286e-09 | AC78: =SUMIF('Financial Statements'!$11:$11,'Annual Financial Statements'!AC$3,'Financial Statements'!137:137) -> 1.786122286e-09 | AD78: =SUMIF('Financial Statements'!$11:$11,'Annual Financial Statements'!AD$3,'Financial Statements'!137:137) -> 1.791015772e-09 | AE78: =SUMIF('Financial Statements'!$11:$11,'Annual Financial Statements'!AE$3,'Financial Statements'!137:137) -> 1.786122286e-09 | AF78: =SUMIF('Financial Statements'!$11:$11,'Annual Financial Statements'!AF$3,'Financial Statements'!137:137) -> 1.786122286e-09 | AG78: =SUMIF('Financial Statements'!$11:$11,'Annual Financial Statements'!AG$3,'Financial Statements'!137:137) -> 1.786122286e-09 | AH78: =SUMIF('Financial Statements'!$11:$11,'Annual Financial Statements'!AH$3,'Financial Statements'!137:137) -> 1.791015772e-09 | AI78: =SUMIF('Financial Statements'!$11:$11,'Annual Financial Statements'!AI$3,'Financial Statements'!137:137) -> 1.786122286e-09
D79: Less: PRI | F79: $000's | G79: =SUMIF('Financial Statements'!$11:$11,'Annual Financial Statements'!G$3,'Financial Statements'!138:138) -> 0 | H79: =SUMIF('Financial Statements'!$11:$11,'Annual Financial Statements'!H$3,'Financial Statements'!138:138) -> 127.6570035 | I79: =SUMIF('Financial Statements'!$11:$11,'Annual Financial Statements'!I$3,'Financial Statements'!138:138) -> 261.0311219 | J79: =SUMIF('Financial Statements'!$11:$11,'Annual Financial Statements'!J$3,'Financial Statements'!138:138) -> 282.3349764 | K79: =SUMIF('Financial Statements'!$11:$11,'Annual Financial Statements'!K$3,'Financial Statements'!138:138) -> 303.8083634 | L79: =SUMIF('Financial Statements'!$11:$11,'Annual Financial Statements'!L$3,'Financial Statements'!138:138) -> 327.8810874 | M79: =SUMIF('Financial Statements'!$11:$11,'Annual Financial Statements'!M$3,'Financial Statements'!138:138) -> 353.8984115 | N79: =SUMIF('Financial Statements'!$11:$11,'Annual Financial Statements'!N$3,'Financial Statements'!138:138) -> 118.2403239 | O79: =SUMIF('Financial Statements'!$11:$11,'Annual Financial Statements'!O$3,'Financial Statements'!138:138) -> 101.5710304 | P79: =SUMIF('Financial Statements'!$11:$11,'Annual Financial Statements'!P$3,'Financial Statements'!138:138) -> 84.03455301 | Q79: =SUMIF('Financial Statements'!$11:$11,'Annual Financial Statements'!Q$3,'Financial Statements'!138:138) -> 35.21742362 | R79: =SUMIF('Financial Statements'!$11:$11,'Annual Financial Statements'!R$3,'Financial Statements'!138:138) -> 0 | S79: =SUMIF('Financial Statements'!$11:$11,'Annual Financial Statements'!S$3,'Financial Statements'!138:138) -> 0 | T79: =SUMIF('Financial Statements'!$11:$11,'Annual Financial Statements'!T$3,'Financial Statements'!138:138) -> 0 | U79: =SUMIF('Financial Statements'!$11:$11,'Annual Financial Statements'!U$3,'Financial Statements'!138:138) -> 0 | V79: =SUMIF('Financial Statements'!$11:$11,'Annual Financial Statements'!V$3,'Financial Statements'!138:138) -> 0 | W79: =SUMIF('Financial Statements'!$11:$11,'Annual Financial Statements'!W$3,'Financial Statements'!138:138) -> 0 | X79: =SUMIF('Financial Statements'!$11:$11,'Annual Financial Statements'!X$3,'Financial Statements'!138:138) -> 0 | Y79: =SUMIF('Financial Statements'!$11:$11,'Annual Financial Statements'!Y$3,'Financial Statements'!138:138) -> 0 | Z79: =SUMIF('Financial Statements'!$11:$11,'Annual Financial Statements'!Z$3,'Financial Statements'!138:138) -> 0 | AA79: =SUMIF('Financial Statements'!$11:$11,'Annual Financial Statements'!AA$3,'Financial Statements'!138:138) -> 0 | AB79: =SUMIF('Financial Statements'!$11:$11,'Annual Financial Statements'!AB$3,'Financial Statements'!138:138) -> 0 | AC79: =SUMIF('Financial Statements'!$11:$11,'Annual Financial Statements'!AC$3,'Financial Statements'!138:138) -> 0 | AD79: =SUMIF('Financial Statements'!$11:$11,'Annual Financial Statements'!AD$3,'Financial Statements'!138:138) -> 0 | AE79: =SUMIF('Financial Statements'!$11:$11,'Annual Financial Statements'!AE$3,'Financial Statements'!138:138) -> 0 | AF79: =SUMIF('Financial Statements'!$11:$11,'Annual Financial Statements'!AF$3,'Financial Statements'!138:138) -> 0 | AG79: =SUMIF('Financial Statements'!$11:$11,'Annual Financial Statements'!AG$3,'Financial Statements'!138:138) -> 0 | AH79: =SUMIF('Financial Statements'!$11:$11,'Annual Financial Statements'!AH$3,'Financial Statements'!138:138) -> 0 | AI79: =SUMIF('Financial Statements'!$11:$11,'Annual Financial Statements'!AI$3,'Financial Statements'!138:138) -> 0
D80: Less: Tax Depreciation - Operating Assets | F80: $000's | G80: =SUMIF('Financial Statements'!$11:$11,'Annual Financial Statements'!G$3,'Financial Statements'!139:139) -> 0 | H80: =SUMIF('Financial Statements'!$11:$11,'Annual Financial Statements'!H$3,'Financial Statements'!139:139) -> 0 | I80: =SUMIF('Financial Statements'!$11:$11,'Annual Financial Statements'!I$3,'Financial Statements'!139:139) -> 0 | J80: =SUMIF('Financial Statements'!$11:$11,'Annual Financial Statements'!J$3,'Financial Statements'!139:139) -> 0 | K80: =SUMIF('Financial Statements'!$11:$11,'Annual Financial Statements'!K$3,'Financial Statements'!139:139) -> 0 | L80: =SUMIF('Financial Statements'!$11:$11,'Annual Financial Statements'!L$3,'Financial Statements'!139:139) -> 0 | M80: =SUMIF('Financial Statements'!$11:$11,'Annual Financial Statements'!M$3,'Financial Statements'!139:139) -> 14815.25 | N80: =SUMIF('Financial Statements'!$11:$11,'Annual Financial Statements'!N$3,'Financial Statements'!139:139) -> 23704.4 | O80: =SUMIF('Financial Statements'!$11:$11,'Annual Financial Statements'!O$3,'Financial Statements'!139:139) -> 7111.32 | P80: =SUMIF('Financial Statements'!$11:$11,'Annual Financial Statements'!P$3,'Financial Statements'!139:139) -> 7111.32 | Q80: =SUMIF('Financial Statements'!$11:$11,'Annual Financial Statements'!Q$3,'Financial Statements'!139:139) -> 4148.27 | R80: =SUMIF('Financial Statements'!$11:$11,'Annual Financial Statements'!R$3,'Financial Statements'!139:139) -> 0 | S80: =SUMIF('Financial Statements'!$11:$11,'Annual Financial Statements'!S$3,'Financial Statements'!139:139) -> 0 | T80: =SUMIF('Financial Statements'!$11:$11,'Annual Financial Statements'!T$3,'Financial Statements'!139:139) -> 0 | U80: =SUMIF('Financial Statements'!$11:$11,'Annual Financial Statements'!U$3,'Financial Statements'!139:139) -> 0 | V80: =SUMIF('Financial Statements'!$11:$11,'Annual Financial Statements'!V$3,'Financial Statements'!139:139) -> 0 | W80: =SUMIF('Financial Statements'!$11:$11,'Annual Financial Statements'!W$3,'Financial Statements'!139:139) -> 0 | X80: =SUMIF('Financial Statements'!$11:$11,'Annual Financial Statements'!X$3,'Financial Statements'!139:139) -> 0 | Y80: =SUMIF('Financial Statements'!$11:$11,'Annual Financial Statements'!Y$3,'Financial Statements'!139:139) -> 0 | Z80: =SUMIF('Financial Statements'!$11:$11,'Annual Financial Statements'!Z$3,'Financial Statements'!139:139) -> 0 | AA80: =SUMIF('Financial Statements'!$11:$11,'Annual Financial Statements'!AA$3,'Financial Statements'!139:139) -> 0 | AB80: =SUMIF('Financial Statements'!$11:$11,'Annual Financial Statements'!AB$3,'Financial Statements'!139:139) -> 0 | AC80: =SUMIF('Financial Statements'!$11:$11,'Annual Financial Statements'!AC$3,'Financial Statements'!139:139) -> 0 | AD80: =SUMIF('Financial Statements'!$11:$11,'Annual Financial Statements'!AD$3,'Financial Statements'!139:139) -> 0 | AE80: =SUMIF('Financial Statements'!$11:$11,'Annual Financial Statements'!AE$3,'Financial Statements'!139:139) -> 0 | AF80: =SUMIF('Financial Statements'!$11:$11,'Annual Financial Statements'!AF$3,'Financial Statements'!139:139) -> 0 | AG80: =SUMIF('Financial Statements'!$11:$11,'Annual Financial Statements'!AG$3,'Financial Statements'!139:139) -> 0 | AH80: =SUMIF('Financial Statements'!$11:$11,'Annual Financial Statements'!AH$3,'Financial Statements'!139:139) -> 0 | AI80: =SUMIF('Financial Statements'!$11:$11,'Annual Financial Statements'!AI$3,'Financial Statements'!139:139) -> 0
D81: Less: Tax Depreciation - Financing Items | F81: $000's | G81: =SUMIF('Financial Statements'!$11:$11,'Annual Financial Statements'!G$3,'Financial Statements'!140:140) -> 0 | H81: =SUMIF('Financial Statements'!$11:$11,'Annual Financial Statements'!H$3,'Financial Statements'!140:140) -> 0 | I81: =SUMIF('Financial Statements'!$11:$11,'Annual Financial Statements'!I$3,'Financial Statements'!140:140) -> 0 | J81: =SUMIF('Financial Statements'!$11:$11,'Annual Financial Statements'!J$3,'Financial Statements'!140:140) -> 0 | K81: =SUMIF('Financial Statements'!$11:$11,'Annual Financial Statements'!K$3,'Financial Statements'!140:140) -> 0 | L81: =SUMIF('Financial Statements'!$11:$11,'Annual Financial Statements'!L$3,'Financial Statements'!140:140) -> 0 | M81: =SUMIF('Financial Statements'!$11:$11,'Annual Financial Statements'!M$3,'Financial Statements'!140:140) -> 1239.492525 | N81: =SUMIF('Financial Statements'!$11:$11,'Annual Financial Statements'!N$3,'Financial Statements'!140:140) -> 1983.18804 | O81: =SUMIF('Financial Statements'!$11:$11,'Annual Financial Statements'!O$3,'Financial Statements'!140:140) -> 594.9564121 | P81: =SUMIF('Financial Statements'!$11:$11,'Annual Financial Statements'!P$3,'Financial Statements'!140:140) -> 594.9564121 | Q81: =SUMIF('Financial Statements'!$11:$11,'Annual Financial Statements'!Q$3,'Financial Statements'!140:140) -> 347.0579071 | R81: =SUMIF('Financial Statements'!$11:$11,'Annual Financial Statements'!R$3,'Financial Statements'!140:140) -> 0 | S81: =SUMIF('Financial Statements'!$11:$11,'Annual Financial Statements'!S$3,'Financial Statements'!140:140) -> 0 | T81: =SUMIF('Financial Statements'!$11:$11,'Annual Financial Statements'!T$3,'Financial Statements'!140:140) -> 0 | U81: =SUMIF('Financial Statements'!$11:$11,'Annual Financial Statements'!U$3,'Financial Statements'!140:140) -> 0 | V81: =SUMIF('Financial Statements'!$11:$11,'Annual Financial Statements'!V$3,'Financial Statements'!140:140) -> 0 | W81: =SUMIF('Financial Statements'!$11:$11,'Annual Financial Statements'!W$3,'Financial Statements'!140:140) -> 0 | X81: =SUMIF('Financial Statements'!$11:$11,'Annual Financial Statements'!X$3,'Financial Statements'!140:140) -> 0 | Y81: =SUMIF('Financial Statements'!$11:$11,'Annual Financial Statements'!Y$3,'Financial Statements'!140:140) -> 0 | Z81: =SUMIF('Financial Statements'!$11:$11,'Annual Financial Statements'!Z$3,'Financial Statements'!140:140) -> 0 | AA81: =SUMIF('Financial Statements'!$11:$11,'Annual Financial Statements'!AA$3,'Financial Statements'!140:140) -> 0 | AB81: =SUMIF('Financial Statements'!$11:$11,'Annual Financial Statements'!AB$3,'Financial Statements'!140:140) -> 0 | AC81: =SUMIF('Financial Statements'!$11:$11,'Annual Financial Statements'!AC$3,'Financial Statements'!140:140) -> 0 | AD81: =SUMIF('Financial Statements'!$11:$11,'Annual Financial Statements'!AD$3,'Financial Statements'!140:140) -> 0 | AE81: =SUMIF('Financial Statements'!$11:$11,'Annual Financial Statements'!AE$3,'Financial Statements'!140:140) -> 0 | AF81: =SUMIF('Financial Statements'!$11:$11,'Annual Financial Statements'!AF$3,'Financial Statements'!140:140) -> 0 | AG81: =SUMIF('Financial Statements'!$11:$11,'Annual Financial Statements'!AG$3,'Financial Statements'!140:140) -> 0 | AH81: =SUMIF('Financial Statements'!$11:$11,'Annual Financial Statements'!AH$3,'Financial Statements'!140:140) -> 0 | AI81: =SUMIF('Financial Statements'!$11:$11,'Annual Financial Statements'!AI$3,'Financial Statements'!140:140) -> 0
D82: Less: Items Expensed Pre-COD | G82: =SUMIF('Financial Statements'!$11:$11,'Annual Financial Statements'!G$3,'Financial Statements'!141:141) -> 0 | H82: =SUMIF('Financial Statements'!$11:$11,'Annual Financial Statements'!H$3,'Financial Statements'!141:141) -> 0 | I82: =SUMIF('Financial Statements'!$11:$11,'Annual Financial Statements'!I$3,'Financial Statements'!141:141) -> 0 | J82: =SUMIF('Financial Statements'!$11:$11,'Annual Financial Statements'!J$3,'Financial Statements'!141:141) -> 0 | K82: =SUMIF('Financial Statements'!$11:$11,'Annual Financial Statements'!K$3,'Financial Statements'!141:141) -> 0 | L82: =SUMIF('Financial Statements'!$11:$11,'Annual Financial Statements'!L$3,'Financial Statements'!141:141) -> 0 | M82: =SUMIF('Financial Statements'!$11:$11,'Annual Financial Statements'!M$3,'Financial Statements'!141:141) -> 0 | N82: =SUMIF('Financial Statements'!$11:$11,'Annual Financial Statements'!N$3,'Financial Statements'!141:141) -> 0 | O82: =SUMIF('Financial Statements'!$11:$11,'Annual Financial Statements'!O$3,'Financial Statements'!141:141) -> 0 | P82: =SUMIF('Financial Statements'!$11:$11,'Annual Financial Statements'!P$3,'Financial Statements'!141:141) -> 0 | Q82: =SUMIF('Financial Statements'!$11:$11,'Annual Financial Statements'!Q$3,'Financial Statements'!141:141) -> 0 | R82: =SUMIF('Financial Statements'!$11:$11,'Annual Financial Statements'!R$3,'Financial Statements'!141:141) -> 0 | S82: =SUMIF('Financial Statements'!$11:$11,'Annual Financial Statements'!S$3,'Financial Statements'!141:141) -> 0 | T82: =SUMIF('Financial Statements'!$11:$11,'Annual Financial Statements'!T$3,'Financial Statements'!141:141) -> 0 | U82: =SUMIF('Financial Statements'!$11:$11,'Annual Financial Statements'!U$3,'Financial Statements'!141:141) -> 0 | V82: =SUMIF('Financial Statements'!$11:$11,'Annual Financial Statements'!V$3,'Financial Statements'!141:141) -> 0 | W82: =SUMIF('Financial Statements'!$11:$11,'Annual Financial Statements'!W$3,'Financial Statements'!141:141) -> 0 | X82: =SUMIF('Financial Statements'!$11:$11,'Annual Financial Statements'!X$3,'Financial Statements'!141:141) -> 0 | Y82: =SUMIF('Financial Statements'!$11:$11,'Annual Financial Statements'!Y$3,'Financial Statements'!141:141) -> 0 | Z82: =SUMIF('Financial Statements'!$11:$11,'Annual Financial Statements'!Z$3,'Financial Statements'!141:141) -> 0 | AA82: =SUMIF('Financial Statements'!$11:$11,'Annual Financial Statements'!AA$3,'Financial Statements'!141:141) -> 0 | AB82: =SUMIF('Financial Statements'!$11:$11,'Annual Financial Statements'!AB$3,'Financial Statements'!141:141) -> 0 | AC82: =SUMIF('Financial Statements'!$11:$11,'Annual Financial Statements'!AC$3,'Financial Statements'!141:141) -> 0 | AD82: =SUMIF('Financial Statements'!$11:$11,'Annual Financial Statements'!AD$3,'Financial Statements'!141:141) -> 0 | AE82: =SUMIF('Financial Statements'!$11:$11,'Annual Financial Statements'!AE$3,'Financial Statements'!141:141) -> 0 | AF82: =SUMIF('Financial Statements'!$11:$11,'Annual Financial Statements'!AF$3,'Financial Statements'!141:141) -> 0 | AG82: =SUMIF('Financial Statements'!$11:$11,'Annual Financial Statements'!AG$3,'Financial Statements'!141:141) -> 0 | AH82: =SUMIF('Financial Statements'!$11:$11,'Annual Financial Statements'!AH$3,'Financial Statements'!141:141) -> 0 | AI82: =SUMIF('Financial Statements'!$11:$11,'Annual Financial Statements'!AI$3,'Financial Statements'!141:141) -> 0
E83: EBIT | F83: =units -> $000's | G83: =SUMIF('Financial Statements'!$11:$11,'Annual Financial Statements'!G$3,'Financial Statements'!142:142) -> 0 | H83: =SUMIF('Financial Statements'!$11:$11,'Annual Financial Statements'!H$3,'Financial Statements'!142:142) -> 2640.883171 | I83: =SUMIF('Financial Statements'!$11:$11,'Annual Financial Statements'!I$3,'Financial Statements'!142:142) -> 7544.033369 | J83: =SUMIF('Financial Statements'!$11:$11,'Annual Financial Statements'!J$3,'Financial Statements'!142:142) -> 7482.677496 | K83: =SUMIF('Financial Statements'!$11:$11,'Annual Financial Statements'!K$3,'Financial Statements'!142:142) -> 7421.976068 | L83: =SUMIF('Financial Statements'!$11:$11,'Annual Financial Statements'!L$3,'Financial Statements'!142:142) -> 7357.562892 | M83: =SUMIF('Financial Statements'!$11:$11,'Annual Financial Statements'!M$3,'Financial Statements'!142:142) -> -8762.084891 | N83: =SUMIF('Financial Statements'!$11:$11,'Annual Financial Statements'!N$3,'Financial Statements'!142:142) -> -18199.04647 | O83: =SUMIF('Financial Statements'!$11:$11,'Annual Financial Statements'!O$3,'Financial Statements'!142:142) -> -234.3260003 | P83: =SUMIF('Financial Statements'!$11:$11,'Annual Financial Statements'!P$3,'Financial Statements'!142:142) -> -249.9500555 | Q83: =SUMIF('Financial Statements'!$11:$11,'Annual Financial Statements'!Q$3,'Financial Statements'!142:142) -> 2979.201777 | R83: =SUMIF('Financial Statements'!$11:$11,'Annual Financial Statements'!R$3,'Financial Statements'!142:142) -> 7480.073854 | S83: =SUMIF('Financial Statements'!$11:$11,'Annual Financial Statements'!S$3,'Financial Statements'!142:142) -> 7457.437631 | T83: =SUMIF('Financial Statements'!$11:$11,'Annual Financial Statements'!T$3,'Financial Statements'!142:142) -> 7437.008445 | U83: =SUMIF('Financial Statements'!$11:$11,'Annual Financial Statements'!U$3,'Financial Statements'!142:142) -> 7421.024852 | V83: =SUMIF('Financial Statements'!$11:$11,'Annual Financial Statements'!V$3,'Financial Statements'!142:142) -> 7408.796856 | W83: =SUMIF('Financial Statements'!$11:$11,'Annual Financial Statements'!W$3,'Financial Statements'!142:142) -> 7404.716764 | X83: =SUMIF('Financial Statements'!$11:$11,'Annual Financial Statements'!X$3,'Financial Statements'!142:142) -> 7406.159248 | Y83: =SUMIF('Financial Statements'!$11:$11,'Annual Financial Statements'!Y$3,'Financial Statements'!142:142) -> 7414.928913 | Z83: =SUMIF('Financial Statements'!$11:$11,'Annual Financial Statements'!Z$3,'Financial Statements'!142:142) -> 7429.501241 | AA83: =SUMIF('Financial Statements'!$11:$11,'Annual Financial Statements'!AA$3,'Financial Statements'!142:142) -> 7368.379046 | AB83: =SUMIF('Financial Statements'!$11:$11,'Annual Financial Statements'!AB$3,'Financial Statements'!142:142) -> 5870.251111 | AC83: =SUMIF('Financial Statements'!$11:$11,'Annual Financial Statements'!AC$3,'Financial Statements'!142:142) -> 2558.092028 | AD83: =SUMIF('Financial Statements'!$11:$11,'Annual Financial Statements'!AD$3,'Financial Statements'!142:142) -> 2593.532612 | AE83: =SUMIF('Financial Statements'!$11:$11,'Annual Financial Statements'!AE$3,'Financial Statements'!142:142) -> 2632.193835 | AF83: =SUMIF('Financial Statements'!$11:$11,'Annual Financial Statements'!AF$3,'Financial Statements'!142:142) -> 2671.202138 | AG83: =SUMIF('Financial Statements'!$11:$11,'Annual Financial Statements'!AG$3,'Financial Statements'!142:142) -> 2710.612182 | AH83: =SUMIF('Financial Statements'!$11:$11,'Annual Financial Statements'!AH$3,'Financial Statements'!142:142) -> 2750.714144 | AI83: =SUMIF('Financial Statements'!$11:$11,'Annual Financial Statements'!AI$3,'Financial Statements'!142:142) -> 2791.21603
E84: Add: Interest Income | F84: $000's | G84: =SUMIF('Financial Statements'!$11:$11,'Annual Financial Statements'!G$3,'Financial Statements'!143:143) -> 0 | H84: =SUMIF('Financial Statements'!$11:$11,'Annual Financial Statements'!H$3,'Financial Statements'!143:143) -> 0 | I84: =SUMIF('Financial Statements'!$11:$11,'Annual Financial Statements'!I$3,'Financial Statements'!143:143) -> 0 | J84: =SUMIF('Financial Statements'!$11:$11,'Annual Financial Statements'!J$3,'Financial Statements'!143:143) -> 0 | K84: =SUMIF('Financial Statements'!$11:$11,'Annual Financial Statements'!K$3,'Financial Statements'!143:143) -> 0 | L84: =SUMIF('Financial Statements'!$11:$11,'Annual Financial Statements'!L$3,'Financial Statements'!143:143) -> 0 | M84: =SUMIF('Financial Statements'!$11:$11,'Annual Financial Statements'!M$3,'Financial Statements'!143:143) -> 0 | N84: =SUMIF('Financial Statements'!$11:$11,'Annual Financial Statements'!N$3,'Financial Statements'!143:143) -> 0 | O84: =SUMIF('Financial Statements'!$11:$11,'Annual Financial Statements'!O$3,'Financial Statements'!143:143) -> 0 | P84: =SUMIF('Financial Statements'!$11:$11,'Annual Financial Statements'!P$3,'Financial Statements'!143:143) -> 0 | Q84: =SUMIF('Financial Statements'!$11:$11,'Annual Financial Statements'!Q$3,'Financial Statements'!143:143) -> 0 | R84: =SUMIF('Financial Statements'!$11:$11,'Annual Financial Statements'!R$3,'Financial Statements'!143:143) -> 0 | S84: =SUMIF('Financial Statements'!$11:$11,'Annual Financial Statements'!S$3,'Financial Statements'!143:143) -> 0 | T84: =SUMIF('Financial Statements'!$11:$11,'Annual Financial Statements'!T$3,'Financial Statements'!143:143) -> 0 | U84: =SUMIF('Financial Statements'!$11:$11,'Annual Financial Statements'!U$3,'Financial Statements'!143:143) -> 0 | V84: =SUMIF('Financial Statements'!$11:$11,'Annual Financial Statements'!V$3,'Financial Statements'!143:143) -> 0 | W84: =SUMIF('Financial Statements'!$11:$11,'Annual Financial Statements'!W$3,'Financial Statements'!143:143) -> 0 | X84: =SUMIF('Financial Statements'!$11:$11,'Annual Financial Statements'!X$3,'Financial Statements'!143:143) -> 0 | Y84: =SUMIF('Financial Statements'!$11:$11,'Annual Financial Statements'!Y$3,'Financial Statements'!143:143) -> 0 | Z84: =SUMIF('Financial Statements'!$11:$11,'Annual Financial Statements'!Z$3,'Financial Statements'!143:143) -> 0 | AA84: =SUMIF('Financial Statements'!$11:$11,'Annual Financial Statements'!AA$3,'Financial Statements'!143:143) -> 0 | AB84: =SUMIF('Financial Statements'!$11:$11,'Annual Financial Statements'!AB$3,'Financial Statements'!143:143) -> 0 | AC84: =SUMIF('Financial Statements'!$11:$11,'Annual Financial Statements'!AC$3,'Financial Statements'!143:143) -> 0 | AD84: =SUMIF('Financial Statements'!$11:$11,'Annual Financial Statements'!AD$3,'Financial Statements'!143:143) -> 0 | AE84: =SUMIF('Financial Statements'!$11:$11,'Annual Financial Statements'!AE$3,'Financial Statements'!143:143) -> 0 | AF84: =SUMIF('Financial Statements'!$11:$11,'Annual Financial Statements'!AF$3,'Financial Statements'!143:143) -> 0 | AG84: =SUMIF('Financial Statements'!$11:$11,'Annual Financial Statements'!AG$3,'Financial Statements'!143:143) -> 0 | AH84: =SUMIF('Financial Statements'!$11:$11,'Annual Financial Statements'!AH$3,'Financial Statements'!143:143) -> 0 | AI84: =SUMIF('Financial Statements'!$11:$11,'Annual Financial Statements'!AI$3,'Financial Statements'!143:143) -> 0
E85: Less: Interest Expense | F85: $000's | G85: =SUMIF('Financial Statements'!$11:$11,'Annual Financial Statements'!G$3,'Financial Statements'!144:144) -> 0 | H85: =SUMIF('Financial Statements'!$11:$11,'Annual Financial Statements'!H$3,'Financial Statements'!144:144) -> 1945.249577 | I85: =SUMIF('Financial Statements'!$11:$11,'Annual Financial Statements'!I$3,'Financial Statements'!144:144) -> 3909.140988 | J85: =SUMIF('Financial Statements'!$11:$11,'Annual Financial Statements'!J$3,'Financial Statements'!144:144) -> 3814.881441 | K85: =SUMIF('Financial Statements'!$11:$11,'Annual Financial Statements'!K$3,'Financial Statements'!144:144) -> 3690.988804 | L85: =SUMIF('Financial Statements'!$11:$11,'Annual Financial Statements'!L$3,'Financial Statements'!144:144) -> 3568.22843 | M85: =SUMIF('Financial Statements'!$11:$11,'Annual Financial Statements'!M$3,'Financial Statements'!144:144) -> 3435.584159 | N85: =SUMIF('Financial Statements'!$11:$11,'Annual Financial Statements'!N$3,'Financial Statements'!144:144) -> 3301.579767 | O85: =SUMIF('Financial Statements'!$11:$11,'Annual Financial Statements'!O$3,'Financial Statements'!144:144) -> 3137.160881 | P85: =SUMIF('Financial Statements'!$11:$11,'Annual Financial Statements'!P$3,'Financial Statements'!144:144) -> 2967.925851 | Q85: =SUMIF('Financial Statements'!$11:$11,'Annual Financial Statements'!Q$3,'Financial Statements'!144:144) -> 2783.64424 | R85: =SUMIF('Financial Statements'!$11:$11,'Annual Financial Statements'!R$3,'Financial Statements'!144:144) -> 2590.250335 | S85: =SUMIF('Financial Statements'!$11:$11,'Annual Financial Statements'!S$3,'Financial Statements'!144:144) -> 2363.813749 | T85: =SUMIF('Financial Statements'!$11:$11,'Annual Financial Statements'!T$3,'Financial Statements'!144:144) -> 2123.59096 | U85: =SUMIF('Financial Statements'!$11:$11,'Annual Financial Statements'!U$3,'Financial Statements'!144:144) -> 1860.337505 | V85: =SUMIF('Financial Statements'!$11:$11,'Annual Financial Statements'!V$3,'Financial Statements'!144:144) -> 1576.220082 | W85: =SUMIF('Financial Statements'!$11:$11,'Annual Financial Statements'!W$3,'Financial Statements'!144:144) -> 1254.514413 | X85: =SUMIF('Financial Statements'!$11:$11,'Annual Financial Statements'!X$3,'Financial Statements'!144:144) -> 905.9060612 | Y85: =SUMIF('Financial Statements'!$11:$11,'Annual Financial Statements'!Y$3,'Financial Statements'!144:144) -> 523.3225805 | Z85: =SUMIF('Financial Statements'!$11:$11,'Annual Financial Statements'!Z$3,'Financial Statements'!144:144) -> 112.3829113 | AA85: =SUMIF('Financial Statements'!$11:$11,'Annual Financial Statements'!AA$3,'Financial Statements'!144:144) -> 7.144489144e-09 | AB85: =SUMIF('Financial Statements'!$11:$11,'Annual Financial Statements'!AB$3,'Financial Statements'!144:144) -> 7.144489144e-09 | AC85: =SUMIF('Financial Statements'!$11:$11,'Annual Financial Statements'!AC$3,'Financial Statements'!144:144) -> 7.144489144e-09 | AD85: =SUMIF('Financial Statements'!$11:$11,'Annual Financial Statements'!AD$3,'Financial Statements'!144:144) -> 7.164063087e-09 | AE85: =SUMIF('Financial Statements'!$11:$11,'Annual Financial Statements'!AE$3,'Financial Statements'!144:144) -> 7.144489144e-09 | AF85: =SUMIF('Financial Statements'!$11:$11,'Annual Financial Statements'!AF$3,'Financial Statements'!144:144) -> 7.144489144e-09 | AG85: =SUMIF('Financial Statements'!$11:$11,'Annual Financial Statements'!AG$3,'Financial Statements'!144:144) -> 7.144489144e-09 | AH85: =SUMIF('Financial Statements'!$11:$11,'Annual Financial Statements'!AH$3,'Financial Statements'!144:144) -> 7.164063087e-09 | AI85: =SUMIF('Financial Statements'!$11:$11,'Annual Financial Statements'!AI$3,'Financial Statements'!144:144) -> 7.144489144e-09
E86: Less: Witholding Taxes on Interest | F86: $000's | G86: =SUMIF('Financial Statements'!$11:$11,'Annual Financial Statements'!G$3,'Financial Statements'!146:146) -> 0 | H86: =SUMIF('Financial Statements'!$11:$11,'Annual Financial Statements'!H$3,'Financial Statements'!146:146) -> 157.7229387 | I86: =SUMIF('Financial Statements'!$11:$11,'Annual Financial Statements'!I$3,'Financial Statements'!146:146) -> 316.9573774 | J86: =SUMIF('Financial Statements'!$11:$11,'Annual Financial Statements'!J$3,'Financial Statements'!146:146) -> 309.3147115 | K86: =SUMIF('Financial Statements'!$11:$11,'Annual Financial Statements'!K$3,'Financial Statements'!146:146) -> 299.2693625 | L86: =SUMIF('Financial Statements'!$11:$11,'Annual Financial Statements'!L$3,'Financial Statements'!146:146) -> 289.3158186 | M86: =SUMIF('Financial Statements'!$11:$11,'Annual Financial Statements'!M$3,'Financial Statements'!146:146) -> 278.5608778 | N86: =SUMIF('Financial Statements'!$11:$11,'Annual Financial Statements'!N$3,'Financial Statements'!146:146) -> 267.6956567 | O86: =SUMIF('Financial Statements'!$11:$11,'Annual Financial Statements'!O$3,'Financial Statements'!146:146) -> 254.3643957 | P86: =SUMIF('Financial Statements'!$11:$11,'Annual Financial Statements'!P$3,'Financial Statements'!146:146) -> 240.6426365 | Q86: =SUMIF('Financial Statements'!$11:$11,'Annual Financial Statements'!Q$3,'Financial Statements'!146:146) -> 225.7008843 | R86: =SUMIF('Financial Statements'!$11:$11,'Annual Financial Statements'!R$3,'Financial Statements'!146:146) -> 210.0202974 | S86: =SUMIF('Financial Statements'!$11:$11,'Annual Financial Statements'!S$3,'Financial Statements'!146:146) -> 191.6605742 | T86: =SUMIF('Financial Statements'!$11:$11,'Annual Financial Statements'!T$3,'Financial Statements'!146:146) -> 172.1830508 | U86: =SUMIF('Financial Statements'!$11:$11,'Annual Financial Statements'!U$3,'Financial Statements'!146:146) -> 150.8381761 | V86: =SUMIF('Financial Statements'!$11:$11,'Annual Financial Statements'!V$3,'Financial Statements'!146:146) -> 127.8016283 | W86: =SUMIF('Financial Statements'!$11:$11,'Annual Financial Statements'!W$3,'Financial Statements'!146:146) -> 101.7173848 | X86: =SUMIF('Financial Statements'!$11:$11,'Annual Financial Statements'!X$3,'Financial Statements'!146:146) -> 73.4518428 | Y86: =SUMIF('Financial Statements'!$11:$11,'Annual Financial Statements'!Y$3,'Financial Statements'!146:146) -> 42.43156058 | Z86: =SUMIF('Financial Statements'!$11:$11,'Annual Financial Statements'!Z$3,'Financial Statements'!146:146) -> 9.112127942 | AA86: =SUMIF('Financial Statements'!$11:$11,'Annual Financial Statements'!AA$3,'Financial Statements'!146:146) -> 5.792829036e-10 | AB86: =SUMIF('Financial Statements'!$11:$11,'Annual Financial Statements'!AB$3,'Financial Statements'!146:146) -> 5.792829036e-10 | AC86: =SUMIF('Financial Statements'!$11:$11,'Annual Financial Statements'!AC$3,'Financial Statements'!146:146) -> 5.792829036e-10 | AD86: =SUMIF('Financial Statements'!$11:$11,'Annual Financial Statements'!AD$3,'Financial Statements'!146:146) -> 5.808699801e-10 | AE86: =SUMIF('Financial Statements'!$11:$11,'Annual Financial Statements'!AE$3,'Financial Statements'!146:146) -> 5.792829036e-10 | AF86: =SUMIF('Financial Statements'!$11:$11,'Annual Financial Statements'!AF$3,'Financial Statements'!146:146) -> 5.792829036e-10 | AG86: =SUMIF('Financial Statements'!$11:$11,'Annual Financial Statements'!AG$3,'Financial Statements'!146:146) -> 5.792829036e-10 | AH86: =SUMIF('Financial Statements'!$11:$11,'Annual Financial Statements'!AH$3,'Financial Statements'!146:146) -> 5.808699801e-10 | AI86: =SUMIF('Financial Statements'!$11:$11,'Annual Financial Statements'!AI$3,'Financial Statements'!146:146) -> 5.792829036e-10
E87: Less: Fees after COD | F87: $000's | G87: =SUMIF('Financial Statements'!$11:$11,'Annual Financial Statements'!G$3,'Financial Statements'!147:147) -> 0 | H87: =SUMIF('Financial Statements'!$11:$11,'Annual Financial Statements'!H$3,'Financial Statements'!147:147) -> 25 | I87: =SUMIF('Financial Statements'!$11:$11,'Annual Financial Statements'!I$3,'Financial Statements'!147:147) -> 50 | J87: =SUMIF('Financial Statements'!$11:$11,'Annual Financial Statements'!J$3,'Financial Statements'!147:147) -> 50 | K87: =SUMIF('Financial Statements'!$11:$11,'Annual Financial Statements'!K$3,'Financial Statements'!147:147) -> 50 | L87: =SUMIF('Financial Statements'!$11:$11,'Annual Financial Statements'!L$3,'Financial Statements'!147:147) -> 50 | M87: =SUMIF('Financial Statements'!$11:$11,'Annual Financial Statements'!M$3,'Financial Statements'!147:147) -> 50 | N87: =SUMIF('Financial Statements'!$11:$11,'Annual Financial Statements'!N$3,'Financial Statements'!147:147) -> 50 | O87: =SUMIF('Financial Statements'!$11:$11,'Annual Financial Statements'!O$3,'Financial Statements'!147:147) -> 50 | P87: =SUMIF('Financial Statements'!$11:$11,'Annual Financial Statements'!P$3,'Financial Statements'!147:147) -> 50 | Q87: =SUMIF('Financial Statements'!$11:$11,'Annual Financial Statements'!Q$3,'Financial Statements'!147:147) -> 50 | R87: =SUMIF('Financial Statements'!$11:$11,'Annual Financial Statements'!R$3,'Financial Statements'!147:147) -> 50 | S87: =SUMIF('Financial Statements'!$11:$11,'Annual Financial Statements'!S$3,'Financial Statements'!147:147) -> 50 | T87: =SUMIF('Financial Statements'!$11:$11,'Annual Financial Statements'!T$3,'Financial Statements'!147:147) -> 50 | U87: =SUMIF('Financial Statements'!$11:$11,'Annual Financial Statements'!U$3,'Financial Statements'!147:147) -> 50 | V87: =SUMIF('Financial Statements'!$11:$11,'Annual Financial Statements'!V$3,'Financial Statements'!147:147) -> 50 | W87: =SUMIF('Financial Statements'!$11:$11,'Annual Financial Statements'!W$3,'Financial Statements'!147:147) -> 50 | X87: =SUMIF('Financial Statements'!$11:$11,'Annual Financial Statements'!X$3,'Financial Statements'!147:147) -> 50 | Y87: =SUMIF('Financial Statements'!$11:$11,'Annual Financial Statements'!Y$3,'Financial Statements'!147:147) -> 25 | Z87: =SUMIF('Financial Statements'!$11:$11,'Annual Financial Statements'!Z$3,'Financial Statements'!147:147) -> 0 | AA87: =SUMIF('Financial Statements'!$11:$11,'Annual Financial Statements'!AA$3,'Financial Statements'!147:147) -> 0 | AB87: =SUMIF('Financial Statements'!$11:$11,'Annual Financial Statements'!AB$3,'Financial Statements'!147:147) -> 0 | AC87: =SUMIF('Financial Statements'!$11:$11,'Annual Financial Statements'!AC$3,'Financial Statements'!147:147) -> 0 | AD87: =SUMIF('Financial Statements'!$11:$11,'Annual Financial Statements'!AD$3,'Financial Statements'!147:147) -> 0 | AE87: =SUMIF('Financial Statements'!$11:$11,'Annual Financial Statements'!AE$3,'Financial Statements'!147:147) -> 0 | AF87: =SUMIF('Financial Statements'!$11:$11,'Annual Financial Statements'!AF$3,'Financial Statements'!147:147) -> 0 | AG87: =SUMIF('Financial Statements'!$11:$11,'Annual Financial Statements'!AG$3,'Financial Statements'!147:147) -> 0 | AH87: =SUMIF('Financial Statements'!$11:$11,'Annual Financial Statements'!AH$3,'Financial Statements'!147:147) -> 0 | AI87: =SUMIF('Financial Statements'!$11:$11,'Annual Financial Statements'!AI$3,'Financial Statements'!147:147) -> 0
E88: EBT | F88: $000's | G88: =SUMIF('Financial Statements'!$11:$11,'Annual Financial Statements'!G$3,'Financial Statements'!148:148) -> 0 | H88: =SUMIF('Financial Statements'!$11:$11,'Annual Financial Statements'!H$3,'Financial Statements'!148:148) -> -194.8091464 | I88: =SUMIF('Financial Statements'!$11:$11,'Annual Financial Statements'!I$3,'Financial Statements'!148:148) -> 2365.454375 | J88: =SUMIF('Financial Statements'!$11:$11,'Annual Financial Statements'!J$3,'Financial Statements'!148:148) -> 2460.459628 | K88: =SUMIF('Financial Statements'!$11:$11,'Annual Financial Statements'!K$3,'Financial Statements'!148:148) -> 2594.257317 | L88: =SUMIF('Financial Statements'!$11:$11,'Annual Financial Statements'!L$3,'Financial Statements'!148:148) -> 2722.534887 | M88: =SUMIF('Financial Statements'!$11:$11,'Annual Financial Statements'!M$3,'Financial Statements'!148:148) -> -13192.14841 | N88: =SUMIF('Financial Statements'!$11:$11,'Annual Financial Statements'!N$3,'Financial Statements'!148:148) -> -22418.90767 | O88: =SUMIF('Financial Statements'!$11:$11,'Annual Financial Statements'!O$3,'Financial Statements'!148:148) -> -4191.767621 | P88: =SUMIF('Financial Statements'!$11:$11,'Annual Financial Statements'!P$3,'Financial Statements'!148:148) -> -3935.360717 | Q88: =SUMIF('Financial Statements'!$11:$11,'Annual Financial Statements'!Q$3,'Financial Statements'!148:148) -> -411.4131244 | R88: =SUMIF('Financial Statements'!$11:$11,'Annual Financial Statements'!R$3,'Financial Statements'!148:148) -> 4403.194388 | S88: =SUMIF('Financial Statements'!$11:$11,'Annual Financial Statements'!S$3,'Financial Statements'!148:148) -> 4739.073511 | T88: =SUMIF('Financial Statements'!$11:$11,'Annual Financial Statements'!T$3,'Financial Statements'!148:148) -> 5077.506442 | U88: =SUMIF('Financial Statements'!$11:$11,'Annual Financial Statements'!U$3,'Financial Statements'!148:148) -> 5359.826593 | V88: =SUMIF('Financial Statements'!$11:$11,'Annual Financial Statements'!V$3,'Financial Statements'!148:148) -> 5654.775108 | W88: =SUMIF('Financial Statements'!$11:$11,'Annual Financial Statements'!W$3,'Financial Statements'!148:148) -> 5998.484966 | X88: =SUMIF('Financial Statements'!$11:$11,'Annual Financial Statements'!X$3,'Financial Statements'!148:148) -> 6376.801344 | Y88: =SUMIF('Financial Statements'!$11:$11,'Annual Financial Statements'!Y$3,'Financial Statements'!148:148) -> 6808.788292 | Z88: =SUMIF('Financial Statements'!$11:$11,'Annual Financial Statements'!Z$3,'Financial Statements'!148:148) -> 7268.684567 | AA88: =SUMIF('Financial Statements'!$11:$11,'Annual Financial Statements'!AA$3,'Financial Statements'!148:148) -> 7367.484649 | AB88: =SUMIF('Financial Statements'!$11:$11,'Annual Financial Statements'!AB$3,'Financial Statements'!148:148) -> 5870.24964 | AC88: =SUMIF('Financial Statements'!$11:$11,'Annual Financial Statements'!AC$3,'Financial Statements'!148:148) -> 2558.092026 | AD88: =SUMIF('Financial Statements'!$11:$11,'Annual Financial Statements'!AD$3,'Financial Statements'!148:148) -> 2593.532612 | AE88: =SUMIF('Financial Statements'!$11:$11,'Annual Financial Statements'!AE$3,'Financial Statements'!148:148) -> 2632.193835 | AF88: =SUMIF('Financial Statements'!$11:$11,'Annual Financial Statements'!AF$3,'Financial Statements'!148:148) -> 2671.202138 | AG88: =SUMIF('Financial Statements'!$11:$11,'Annual Financial Statements'!AG$3,'Financial Statements'!148:148) -> 2710.612182 | AH88: =SUMIF('Financial Statements'!$11:$11,'Annual Financial Statements'!AH$3,'Financial Statements'!148:148) -> 2750.714144 | AI88: =SUMIF('Financial Statements'!$11:$11,'Annual Financial Statements'!AI$3,'Financial Statements'!148:148) -> 2791.21603
E89: NOL Opening Balance | F89: $000's | G89: =SUMIF('Financial Statements'!$11:$11,'Annual Financial Statements'!G$3,'Financial Statements'!149:149) -> 0 | H89: =SUMIF('Financial Statements'!$11:$11,'Annual Financial Statements'!H$3,'Financial Statements'!149:149) -> 0 | I89: =SUMIF('Financial Statements'!$11:$11,'Annual Financial Statements'!I$3,'Financial Statements'!149:149) -> 1550.987487 | J89: =SUMIF('Financial Statements'!$11:$11,'Annual Financial Statements'!J$3,'Financial Statements'!149:149) -> 1590.279497 | K89: =SUMIF('Financial Statements'!$11:$11,'Annual Financial Statements'!K$3,'Financial Statements'!149:149) -> 1662.550468 | L89: =SUMIF('Financial Statements'!$11:$11,'Annual Financial Statements'!L$3,'Financial Statements'!149:149) -> 1723.730523 | M89: =SUMIF('Financial Statements'!$11:$11,'Annual Financial Statements'!M$3,'Financial Statements'!149:149) -> 1790.660641 | N89: =SUMIF('Financial Statements'!$11:$11,'Annual Financial Statements'!N$3,'Financial Statements'!149:149) -> 0 | O89: =SUMIF('Financial Statements'!$11:$11,'Annual Financial Statements'!O$3,'Financial Statements'!149:149) -> 0 | P89: =SUMIF('Financial Statements'!$11:$11,'Annual Financial Statements'!P$3,'Financial Statements'!149:149) -> 0 | Q89: =SUMIF('Financial Statements'!$11:$11,'Annual Financial Statements'!Q$3,'Financial Statements'!149:149) -> 0 | R89: =SUMIF('Financial Statements'!$11:$11,'Annual Financial Statements'!R$3,'Financial Statements'!149:149) -> 2525.264586 | S89: =SUMIF('Financial Statements'!$11:$11,'Annual Financial Statements'!S$3,'Financial Statements'!149:149) -> 2692.288564 | T89: =SUMIF('Financial Statements'!$11:$11,'Annual Financial Statements'!T$3,'Financial Statements'!149:149) -> 2865.653825 | U89: =SUMIF('Financial Statements'!$11:$11,'Annual Financial Statements'!U$3,'Financial Statements'!149:149) -> 3007.435274 | V89: =SUMIF('Financial Statements'!$11:$11,'Annual Financial Statements'!V$3,'Financial Statements'!149:149) -> 3145.851023 | W89: =SUMIF('Financial Statements'!$11:$11,'Annual Financial Statements'!W$3,'Financial Statements'!149:149) -> 3313.782699 | X89: =SUMIF('Financial Statements'!$11:$11,'Annual Financial Statements'!X$3,'Financial Statements'!149:149) -> 3495.708317 | Y89: =SUMIF('Financial Statements'!$11:$11,'Annual Financial Statements'!Y$3,'Financial Statements'!149:149) -> 3693.369401 | Z89: =SUMIF('Financial Statements'!$11:$11,'Annual Financial Statements'!Z$3,'Financial Statements'!149:149) -> 3932.201131 | AA89: =SUMIF('Financial Statements'!$11:$11,'Annual Financial Statements'!AA$3,'Financial Statements'!149:149) -> 4053.111635 | AB89: =SUMIF('Financial Statements'!$11:$11,'Annual Financial Statements'!AB$3,'Financial Statements'!149:149) -> 4007.566121 | AC89: =SUMIF('Financial Statements'!$11:$11,'Annual Financial Statements'!AC$3,'Financial Statements'!149:149) -> 1459.169742 | AD89: =SUMIF('Financial Statements'!$11:$11,'Annual Financial Statements'!AD$3,'Financial Statements'!149:149) -> 1479.615689 | AE89: =SUMIF('Financial Statements'!$11:$11,'Annual Financial Statements'!AE$3,'Financial Statements'!149:149) -> 1502.439261 | AF89: =SUMIF('Financial Statements'!$11:$11,'Annual Financial Statements'!AF$3,'Financial Statements'!149:149) -> 1525.484566 | AG89: =SUMIF('Financial Statements'!$11:$11,'Annual Financial Statements'!AG$3,'Financial Statements'!149:149) -> 1548.7903 | AH89: =SUMIF('Financial Statements'!$11:$11,'Annual Financial Statements'!AH$3,'Financial Statements'!149:149) -> 1572.477335 | AI89: =SUMIF('Financial Statements'!$11:$11,'Annual Financial Statements'!AI$3,'Financial Statements'!149:149) -> 1596.501548
E90: Add: Additions to NOL from Negative EBT | F90: $000's | G90: =SUMIF('Financial Statements'!$11:$11,'Annual Financial Statements'!G$3,'Financial Statements'!150:150) -> 0 | H90: =SUMIF('Financial Statements'!$11:$11,'Annual Financial Statements'!H$3,'Financial Statements'!150:150) -> 264.6785245 | I90: =SUMIF('Financial Statements'!$11:$11,'Annual Financial Statements'!I$3,'Financial Statements'!150:150) -> 0 | J90: =SUMIF('Financial Statements'!$11:$11,'Annual Financial Statements'!J$3,'Financial Statements'!150:150) -> 0 | K90: =SUMIF('Financial Statements'!$11:$11,'Annual Financial Statements'!K$3,'Financial Statements'!150:150) -> 0 | L90: =SUMIF('Financial Statements'!$11:$11,'Annual Financial Statements'!L$3,'Financial Statements'!150:150) -> 0 | M90: =SUMIF('Financial Statements'!$11:$11,'Annual Financial Statements'!M$3,'Financial Statements'!150:150) -> 14982.80905 | N90: =SUMIF('Financial Statements'!$11:$11,'Annual Financial Statements'!N$3,'Financial Statements'!150:150) -> 22418.90767 | O90: =SUMIF('Financial Statements'!$11:$11,'Annual Financial Statements'!O$3,'Financial Statements'!150:150) -> 4191.767621 | P90: =SUMIF('Financial Statements'!$11:$11,'Annual Financial Statements'!P$3,'Financial Statements'!150:150) -> 3935.360717 | Q90: =SUMIF('Financial Statements'!$11:$11,'Annual Financial Statements'!Q$3,'Financial Statements'!150:150) -> 1494.285361 | R90: =SUMIF('Financial Statements'!$11:$11,'Annual Financial Statements'!R$3,'Financial Statements'!150:150) -> 0 | S90: =SUMIF('Financial Statements'!$11:$11,'Annual Financial Statements'!S$3,'Financial Statements'!150:150) -> 0 | T90: =SUMIF('Financial Statements'!$11:$11,'Annual Financial Statements'!T$3,'Financial Statements'!150:150) -> 0 | U90: =SUMIF('Financial Statements'!$11:$11,'Annual Financial Statements'!U$3,'Financial Statements'!150:150) -> 0 | V90: =SUMIF('Financial Statements'!$11:$11,'Annual Financial Statements'!V$3,'Financial Statements'!150:150) -> 0 | W90: =SUMIF('Financial Statements'!$11:$11,'Annual Financial Statements'!W$3,'Financial Statements'!150:150) -> 0 | X90: =SUMIF('Financial Statements'!$11:$11,'Annual Financial Statements'!X$3,'Financial Statements'!150:150) -> 0 | Y90: =SUMIF('Financial Statements'!$11:$11,'Annual Financial Statements'!Y$3,'Financial Statements'!150:150) -> 0 | Z90: =SUMIF('Financial Statements'!$11:$11,'Annual Financial Statements'!Z$3,'Financial Statements'!150:150) -> 0 | AA90: =SUMIF('Financial Statements'!$11:$11,'Annual Financial Statements'!AA$3,'Financial Statements'!150:150) -> 0 | AB90: =SUMIF('Financial Statements'!$11:$11,'Annual Financial Statements'!AB$3,'Financial Statements'!150:150) -> 0 | AC90: =SUMIF('Financial Statements'!$11:$11,'Annual Financial Statements'!AC$3,'Financial Statements'!150:150) -> 0 | AD90: =SUMIF('Financial Statements'!$11:$11,'Annual Financial Statements'!AD$3,'Financial Statements'!150:150) -> 0 | AE90: =SUMIF('Financial Statements'!$11:$11,'Annual Financial Statements'!AE$3,'Financial Statements'!150:150) -> 0 | AF90: =SUMIF('Financial Statements'!$11:$11,'Annual Financial Statements'!AF$3,'Financial Statements'!150:150) -> 0 | AG90: =SUMIF('Financial Statements'!$11:$11,'Annual Financial Statements'!AG$3,'Financial Statements'!150:150) -> 0 | AH90: =SUMIF('Financial Statements'!$11:$11,'Annual Financial Statements'!AH$3,'Financial Statements'!150:150) -> 0 | AI90: =SUMIF('Financial Statements'!$11:$11,'Annual Financial Statements'!AI$3,'Financial Statements'!150:150) -> 0
E91: Less: Use of NOL from Poaitive EBT | F91: $000's | G91: =SUMIF('Financial Statements'!$11:$11,'Annual Financial Statements'!G$3,'Financial Statements'!151:151) -> 0 | H91: =SUMIF('Financial Statements'!$11:$11,'Annual Financial Statements'!H$3,'Financial Statements'!151:151) -> 0 | I91: =SUMIF('Financial Statements'!$11:$11,'Annual Financial Statements'!I$3,'Financial Statements'!151:151) -> 884.3362659 | J91: =SUMIF('Financial Statements'!$11:$11,'Annual Financial Statements'!J$3,'Financial Statements'!151:151) -> 870.1801313 | K91: =SUMIF('Financial Statements'!$11:$11,'Annual Financial Statements'!K$3,'Financial Statements'!151:151) -> 931.7068495 | L91: =SUMIF('Financial Statements'!$11:$11,'Annual Financial Statements'!L$3,'Financial Statements'!151:151) -> 998.8043637 | M91: =SUMIF('Financial Statements'!$11:$11,'Annual Financial Statements'!M$3,'Financial Statements'!151:151) -> 0 | N91: =SUMIF('Financial Statements'!$11:$11,'Annual Financial Statements'!N$3,'Financial Statements'!151:151) -> 0 | O91: =SUMIF('Financial Statements'!$11:$11,'Annual Financial Statements'!O$3,'Financial Statements'!151:151) -> 0 | P91: =SUMIF('Financial Statements'!$11:$11,'Annual Financial Statements'!P$3,'Financial Statements'!151:151) -> 0 | Q91: =SUMIF('Financial Statements'!$11:$11,'Annual Financial Statements'!Q$3,'Financial Statements'!151:151) -> 0 | R91: =SUMIF('Financial Statements'!$11:$11,'Annual Financial Statements'!R$3,'Financial Statements'!151:151) -> 2525.264586 | S91: =SUMIF('Financial Statements'!$11:$11,'Annual Financial Statements'!S$3,'Financial Statements'!151:151) -> 2482.3224 | T91: =SUMIF('Financial Statements'!$11:$11,'Annual Financial Statements'!T$3,'Financial Statements'!151:151) -> 2211.852617 | U91: =SUMIF('Financial Statements'!$11:$11,'Annual Financial Statements'!U$3,'Financial Statements'!151:151) -> 2352.391318 | V91: =SUMIF('Financial Statements'!$11:$11,'Annual Financial Statements'!V$3,'Financial Statements'!151:151) -> 2508.924084 | W91: =SUMIF('Financial Statements'!$11:$11,'Annual Financial Statements'!W$3,'Financial Statements'!151:151) -> 2684.702267 | X91: =SUMIF('Financial Statements'!$11:$11,'Annual Financial Statements'!X$3,'Financial Statements'!151:151) -> 2881.093027 | Y91: =SUMIF('Financial Statements'!$11:$11,'Annual Financial Statements'!Y$3,'Financial Statements'!151:151) -> 3115.418891 | Z91: =SUMIF('Financial Statements'!$11:$11,'Annual Financial Statements'!Z$3,'Financial Statements'!151:151) -> 3336.483436 | AA91: =SUMIF('Financial Statements'!$11:$11,'Annual Financial Statements'!AA$3,'Financial Statements'!151:151) -> 3314.373014 | AB91: =SUMIF('Financial Statements'!$11:$11,'Annual Financial Statements'!AB$3,'Financial Statements'!151:151) -> 1862.683519 | AC91: =SUMIF('Financial Statements'!$11:$11,'Annual Financial Statements'!AC$3,'Financial Statements'!151:151) -> 1098.922283 | AD91: =SUMIF('Financial Statements'!$11:$11,'Annual Financial Statements'!AD$3,'Financial Statements'!151:151) -> 1113.916922 | AE91: =SUMIF('Financial Statements'!$11:$11,'Annual Financial Statements'!AE$3,'Financial Statements'!151:151) -> 1129.754574 | AF91: =SUMIF('Financial Statements'!$11:$11,'Annual Financial Statements'!AF$3,'Financial Statements'!151:151) -> 1145.717572 | AG91: =SUMIF('Financial Statements'!$11:$11,'Annual Financial Statements'!AG$3,'Financial Statements'!151:151) -> 1161.821882 | AH91: =SUMIF('Financial Statements'!$11:$11,'Annual Financial Statements'!AH$3,'Financial Statements'!151:151) -> 1178.236809 | AI91: =SUMIF('Financial Statements'!$11:$11,'Annual Financial Statements'!AI$3,'Financial Statements'!151:151) -> 1194.714482
E92: NOL Closing Balance | F92: $000's | G92: =SUMIF('Financial Statements'!$11:$11,'Annual Financial Statements'!G$3,'Financial Statements'!152:152) -> 0 | H92: =SUMIF('Financial Statements'!$11:$11,'Annual Financial Statements'!H$3,'Financial Statements'!152:152) -> 264.6785245 | I92: =SUMIF('Financial Statements'!$11:$11,'Annual Financial Statements'!I$3,'Financial Statements'!152:152) -> 666.6512215 | J92: =SUMIF('Financial Statements'!$11:$11,'Annual Financial Statements'!J$3,'Financial Statements'!152:152) -> 720.0993654 | K92: =SUMIF('Financial Statements'!$11:$11,'Annual Financial Statements'!K$3,'Financial Statements'!152:152) -> 730.8436181 | L92: =SUMIF('Financial Statements'!$11:$11,'Annual Financial Statements'!L$3,'Financial Statements'!152:152) -> 724.9261597 | M92: =SUMIF('Financial Statements'!$11:$11,'Annual Financial Statements'!M$3,'Financial Statements'!152:152) -> 16773.46969 | N92: =SUMIF('Financial Statements'!$11:$11,'Annual Financial Statements'!N$3,'Financial Statements'!152:152) -> 22418.90767 | O92: =SUMIF('Financial Statements'!$11:$11,'Annual Financial Statements'!O$3,'Financial Statements'!152:152) -> 4191.767621 | P92: =SUMIF('Financial Statements'!$11:$11,'Annual Financial Statements'!P$3,'Financial Statements'!152:152) -> 3935.360717 | Q92: =SUMIF('Financial Statements'!$11:$11,'Annual Financial Statements'!Q$3,'Financial Statements'!152:152) -> 1494.285361 | R92: =SUMIF('Financial Statements'!$11:$11,'Annual Financial Statements'!R$3,'Financial Statements'!152:152) -> 0 | S92: =SUMIF('Financial Statements'!$11:$11,'Annual Financial Statements'!S$3,'Financial Statements'!152:152) -> 209.9661638 | T92: =SUMIF('Financial Statements'!$11:$11,'Annual Financial Statements'!T$3,'Financial Statements'!152:152) -> 653.8012074 | U92: =SUMIF('Financial Statements'!$11:$11,'Annual Financial Statements'!U$3,'Financial Statements'!152:152) -> 655.0439564 | V92: =SUMIF('Financial Statements'!$11:$11,'Annual Financial Statements'!V$3,'Financial Statements'!152:152) -> 636.9269394 | W92: =SUMIF('Financial Statements'!$11:$11,'Annual Financial Statements'!W$3,'Financial Statements'!152:152) -> 629.080432 | X92: =SUMIF('Financial Statements'!$11:$11,'Annual Financial Statements'!X$3,'Financial Statements'!152:152) -> 614.6152894 | Y92: =SUMIF('Financial Statements'!$11:$11,'Annual Financial Statements'!Y$3,'Financial Statements'!152:152) -> 577.9505103 | Z92: =SUMIF('Financial Statements'!$11:$11,'Annual Financial Statements'!Z$3,'Financial Statements'!152:152) -> 595.7176956 | AA92: =SUMIF('Financial Statements'!$11:$11,'Annual Financial Statements'!AA$3,'Financial Statements'!152:152) -> 738.7386211 | AB92: =SUMIF('Financial Statements'!$11:$11,'Annual Financial Statements'!AB$3,'Financial Statements'!152:152) -> 2144.882602 | AC92: =SUMIF('Financial Statements'!$11:$11,'Annual Financial Statements'!AC$3,'Financial Statements'!152:152) -> 360.2474589 | AD92: =SUMIF('Financial Statements'!$11:$11,'Annual Financial Statements'!AD$3,'Financial Statements'!152:152) -> 365.698767 | AE92: =SUMIF('Financial Statements'!$11:$11,'Annual Financial Statements'!AE$3,'Financial Statements'!152:152) -> 372.6846877 | AF92: =SUMIF('Financial Statements'!$11:$11,'Annual Financial Statements'!AF$3,'Financial Statements'!152:152) -> 379.7669935 | AG92: =SUMIF('Financial Statements'!$11:$11,'Annual Financial Statements'!AG$3,'Financial Statements'!152:152) -> 386.9684175 | AH92: =SUMIF('Financial Statements'!$11:$11,'Annual Financial Statements'!AH$3,'Financial Statements'!152:152) -> 394.2405263 | AI92: =SUMIF('Financial Statements'!$11:$11,'Annual Financial Statements'!AI$3,'Financial Statements'!152:152) -> 401.7870659
E93: EBT Adjusted for NOL | F93: $000's | G93: =SUMIF('Financial Statements'!$11:$11,'Annual Financial Statements'!G$3,'Financial Statements'!153:153) -> 0 | H93: =SUMIF('Financial Statements'!$11:$11,'Annual Financial Statements'!H$3,'Financial Statements'!153:153) -> 69.86937809 | I93: =SUMIF('Financial Statements'!$11:$11,'Annual Financial Statements'!I$3,'Financial Statements'!153:153) -> 1481.118109 | J93: =SUMIF('Financial Statements'!$11:$11,'Annual Financial Statements'!J$3,'Financial Statements'!153:153) -> 1590.279497 | K93: =SUMIF('Financial Statements'!$11:$11,'Annual Financial Statements'!K$3,'Financial Statements'!153:153) -> 1662.550468 | L93: =SUMIF('Financial Statements'!$11:$11,'Annual Financial Statements'!L$3,'Financial Statements'!153:153) -> 1723.730523 | M93: =SUMIF('Financial Statements'!$11:$11,'Annual Financial Statements'!M$3,'Financial Statements'!153:153) -> 1790.660641 | N93: =SUMIF('Financial Statements'!$11:$11,'Annual Financial Statements'!N$3,'Financial Statements'!153:153) -> 0 | O93: =SUMIF('Financial Statements'!$11:$11,'Annual Financial Statements'!O$3,'Financial Statements'!153:153) -> 0 | P93: =SUMIF('Financial Statements'!$11:$11,'Annual Financial Statements'!P$3,'Financial Statements'!153:153) -> 0 | Q93: =SUMIF('Financial Statements'!$11:$11,'Annual Financial Statements'!Q$3,'Financial Statements'!153:153) -> 1082.872237 | R93: =SUMIF('Financial Statements'!$11:$11,'Annual Financial Statements'!R$3,'Financial Statements'!153:153) -> 1877.929802 | S93: =SUMIF('Financial Statements'!$11:$11,'Annual Financial Statements'!S$3,'Financial Statements'!153:153) -> 2256.75111 | T93: =SUMIF('Financial Statements'!$11:$11,'Annual Financial Statements'!T$3,'Financial Statements'!153:153) -> 2865.653825 | U93: =SUMIF('Financial Statements'!$11:$11,'Annual Financial Statements'!U$3,'Financial Statements'!153:153) -> 3007.435274 | V93: =SUMIF('Financial Statements'!$11:$11,'Annual Financial Statements'!V$3,'Financial Statements'!153:153) -> 3145.851023 | W93: =SUMIF('Financial Statements'!$11:$11,'Annual Financial Statements'!W$3,'Financial Statements'!153:153) -> 3313.782699 | X93: =SUMIF('Financial Statements'!$11:$11,'Annual Financial Statements'!X$3,'Financial Statements'!153:153) -> 3495.708317 | Y93: =SUMIF('Financial Statements'!$11:$11,'Annual Financial Statements'!Y$3,'Financial Statements'!153:153) -> 3693.369401 | Z93: =SUMIF('Financial Statements'!$11:$11,'Annual Financial Statements'!Z$3,'Financial Statements'!153:153) -> 3932.201131 | AA93: =SUMIF('Financial Statements'!$11:$11,'Annual Financial Statements'!AA$3,'Financial Statements'!153:153) -> 4053.111635 | AB93: =SUMIF('Financial Statements'!$11:$11,'Annual Financial Statements'!AB$3,'Financial Statements'!153:153) -> 4007.566121 | AC93: =SUMIF('Financial Statements'!$11:$11,'Annual Financial Statements'!AC$3,'Financial Statements'!153:153) -> 1459.169742 | AD93: =SUMIF('Financial Statements'!$11:$11,'Annual Financial Statements'!AD$3,'Financial Statements'!153:153) -> 1479.615689 | AE93: =SUMIF('Financial Statements'!$11:$11,'Annual Financial Statements'!AE$3,'Financial Statements'!153:153) -> 1502.439261 | AF93: =SUMIF('Financial Statements'!$11:$11,'Annual Financial Statements'!AF$3,'Financial Statements'!153:153) -> 1525.484566 | AG93: =SUMIF('Financial Statements'!$11:$11,'Annual Financial Statements'!AG$3,'Financial Statements'!153:153) -> 1548.7903 | AH93: =SUMIF('Financial Statements'!$11:$11,'Annual Financial Statements'!AH$3,'Financial Statements'!153:153) -> 1572.477335 | AI93: =SUMIF('Financial Statements'!$11:$11,'Annual Financial Statements'!AI$3,'Financial Statements'!153:153) -> 1596.501548
E94: Less: Taxes Paid | F94: $000's | G94: =SUMIF('Financial Statements'!$11:$11,'Annual Financial Statements'!G$3,'Financial Statements'!154:154) -> 0 | H94: =SUMIF('Financial Statements'!$11:$11,'Annual Financial Statements'!H$3,'Financial Statements'!154:154) -> 0 | I94: =SUMIF('Financial Statements'!$11:$11,'Annual Financial Statements'!I$3,'Financial Statements'!154:154) -> 0 | J94: =SUMIF('Financial Statements'!$11:$11,'Annual Financial Statements'!J$3,'Financial Statements'!154:154) -> 0 | K94: =SUMIF('Financial Statements'!$11:$11,'Annual Financial Statements'!K$3,'Financial Statements'!154:154) -> 0 | L94: =SUMIF('Financial Statements'!$11:$11,'Annual Financial Statements'!L$3,'Financial Statements'!154:154) -> 0 | M94: =SUMIF('Financial Statements'!$11:$11,'Annual Financial Statements'!M$3,'Financial Statements'!154:154) -> 0 | N94: =SUMIF('Financial Statements'!$11:$11,'Annual Financial Statements'!N$3,'Financial Statements'!154:154) -> 0 | O94: =SUMIF('Financial Statements'!$11:$11,'Annual Financial Statements'!O$3,'Financial Statements'!154:154) -> 0 | P94: =SUMIF('Financial Statements'!$11:$11,'Annual Financial Statements'!P$3,'Financial Statements'!154:154) -> 0 | Q94: =SUMIF('Financial Statements'!$11:$11,'Annual Financial Statements'!Q$3,'Financial Statements'!154:154) -> 0 | R94: =SUMIF('Financial Statements'!$11:$11,'Annual Financial Statements'!R$3,'Financial Statements'!154:154) -> 0 | S94: =SUMIF('Financial Statements'!$11:$11,'Annual Financial Statements'!S$3,'Financial Statements'!154:154) -> 0 | T94: =SUMIF('Financial Statements'!$11:$11,'Annual Financial Statements'!T$3,'Financial Statements'!154:154) -> 0 | U94: =SUMIF('Financial Statements'!$11:$11,'Annual Financial Statements'!U$3,'Financial Statements'!154:154) -> 0 | V94: =SUMIF('Financial Statements'!$11:$11,'Annual Financial Statements'!V$3,'Financial Statements'!154:154) -> 0 | W94: =SUMIF('Financial Statements'!$11:$11,'Annual Financial Statements'!W$3,'Financial Statements'!154:154) -> 0 | X94: =SUMIF('Financial Statements'!$11:$11,'Annual Financial Statements'!X$3,'Financial Statements'!154:154) -> 1210.150759 | Y94: =SUMIF('Financial Statements'!$11:$11,'Annual Financial Statements'!Y$3,'Financial Statements'!154:154) -> 2132.998189 | Z94: =SUMIF('Financial Statements'!$11:$11,'Annual Financial Statements'!Z$3,'Financial Statements'!154:154) -> 2389.549393 | AA94: =SUMIF('Financial Statements'!$11:$11,'Annual Financial Statements'!AA$3,'Financial Statements'!154:154) -> 2478.429469 | AB94: =SUMIF('Financial Statements'!$11:$11,'Annual Financial Statements'!AB$3,'Financial Statements'!154:154) -> 1969.671135 | AC94: =SUMIF('Financial Statements'!$11:$11,'Annual Financial Statements'!AC$3,'Financial Statements'!154:154) -> 860.0768802 | AD94: =SUMIF('Financial Statements'!$11:$11,'Annual Financial Statements'!AD$3,'Financial Statements'!154:154) -> 872.1487891 | AE94: =SUMIF('Financial Statements'!$11:$11,'Annual Financial Statements'!AE$3,'Financial Statements'!154:154) -> 885.1445093 | AF94: =SUMIF('Financial Statements'!$11:$11,'Annual Financial Statements'!AF$3,'Financial Statements'!154:154) -> 898.2567326 | AG94: =SUMIF('Financial Statements'!$11:$11,'Annual Financial Statements'!AG$3,'Financial Statements'!154:154) -> 911.5038457 | AH94: =SUMIF('Financial Statements'!$11:$11,'Annual Financial Statements'!AH$3,'Financial Statements'!154:154) -> 924.9842458 | AI94: =SUMIF('Financial Statements'!$11:$11,'Annual Financial Statements'!AI$3,'Financial Statements'!154:154) -> 938.5974868
E95: Net Income | F95: $000's | G95: =SUMIF('Financial Statements'!$11:$11,'Annual Financial Statements'!G$3,'Financial Statements'!155:155) -> 0 | H95: =SUMIF('Financial Statements'!$11:$11,'Annual Financial Statements'!H$3,'Financial Statements'!155:155) -> -194.8091464 | I95: =SUMIF('Financial Statements'!$11:$11,'Annual Financial Statements'!I$3,'Financial Statements'!155:155) -> 2365.454375 | J95: =SUMIF('Financial Statements'!$11:$11,'Annual Financial Statements'!J$3,'Financial Statements'!155:155) -> 2460.459628 | K95: =SUMIF('Financial Statements'!$11:$11,'Annual Financial Statements'!K$3,'Financial Statements'!155:155) -> 2594.257317 | L95: =SUMIF('Financial Statements'!$11:$11,'Annual Financial Statements'!L$3,'Financial Statements'!155:155) -> 2722.534887 | M95: =SUMIF('Financial Statements'!$11:$11,'Annual Financial Statements'!M$3,'Financial Statements'!155:155) -> -13192.14841 | N95: =SUMIF('Financial Statements'!$11:$11,'Annual Financial Statements'!N$3,'Financial Statements'!155:155) -> -22418.90767 | O95: =SUMIF('Financial Statements'!$11:$11,'Annual Financial Statements'!O$3,'Financial Statements'!155:155) -> -4191.767621 | P95: =SUMIF('Financial Statements'!$11:$11,'Annual Financial Statements'!P$3,'Financial Statements'!155:155) -> -3935.360717 | Q95: =SUMIF('Financial Statements'!$11:$11,'Annual Financial Statements'!Q$3,'Financial Statements'!155:155) -> -411.4131244 | R95: =SUMIF('Financial Statements'!$11:$11,'Annual Financial Statements'!R$3,'Financial Statements'!155:155) -> 4403.194388 | S95: =SUMIF('Financial Statements'!$11:$11,'Annual Financial Statements'!S$3,'Financial Statements'!155:155) -> 4739.073511 | T95: =SUMIF('Financial Statements'!$11:$11,'Annual Financial Statements'!T$3,'Financial Statements'!155:155) -> 5077.506442 | U95: =SUMIF('Financial Statements'!$11:$11,'Annual Financial Statements'!U$3,'Financial Statements'!155:155) -> 5359.826593 | V95: =SUMIF('Financial Statements'!$11:$11,'Annual Financial Statements'!V$3,'Financial Statements'!155:155) -> 5654.775108 | W95: =SUMIF('Financial Statements'!$11:$11,'Annual Financial Statements'!W$3,'Financial Statements'!155:155) -> 5998.484966 | X95: =SUMIF('Financial Statements'!$11:$11,'Annual Financial Statements'!X$3,'Financial Statements'!155:155) -> 5166.650585 | Y95: =SUMIF('Financial Statements'!$11:$11,'Annual Financial Statements'!Y$3,'Financial Statements'!155:155) -> 4675.790103 | Z95: =SUMIF('Financial Statements'!$11:$11,'Annual Financial Statements'!Z$3,'Financial Statements'!155:155) -> 4879.135174 | AA95: =SUMIF('Financial Statements'!$11:$11,'Annual Financial Statements'!AA$3,'Financial Statements'!155:155) -> 4889.055181 | AB95: =SUMIF('Financial Statements'!$11:$11,'Annual Financial Statements'!AB$3,'Financial Statements'!155:155) -> 3900.578506 | AC95: =SUMIF('Financial Statements'!$11:$11,'Annual Financial Statements'!AC$3,'Financial Statements'!155:155) -> 1698.015146 | AD95: =SUMIF('Financial Statements'!$11:$11,'Annual Financial Statements'!AD$3,'Financial Statements'!155:155) -> 1721.383823 | AE95: =SUMIF('Financial Statements'!$11:$11,'Annual Financial Statements'!AE$3,'Financial Statements'!155:155) -> 1747.049326 | AF95: =SUMIF('Financial Statements'!$11:$11,'Annual Financial Statements'!AF$3,'Financial Statements'!155:155) -> 1772.945406 | AG95: =SUMIF('Financial Statements'!$11:$11,'Annual Financial Statements'!AG$3,'Financial Statements'!155:155) -> 1799.108336 | AH95: =SUMIF('Financial Statements'!$11:$11,'Annual Financial Statements'!AH$3,'Financial Statements'!155:155) -> 1825.729898 | AI95: =SUMIF('Financial Statements'!$11:$11,'Annual Financial Statements'!AI$3,'Financial Statements'!155:155) -> 1852.618544
A97: Balance Sheet
C99: Assets
D100: Operating Reserve
D101: Mainenance Reserve
D102: Debt Service Account
D103: Gross Balance of Non-Financial Assets
D104: Accumulated Depreciation on Non-Financial Assets
D105: Gross Balance of Financial Assets
D106: Accumulated Depreciation of Financial Assets
E107: Total Assets
C109: Liabilities and Capital
D110: Senior Debt
D111: Common Equity Including Shareholder Loan
E112: Total Debt and Common Equity
A113: Graphs
B114: x-Axis | G114: =IF(G8,G3,NA()) ->  | H114: =IF(H8,H3,NA()) -> 2022 | I114: 2023 | J114: 2024 | K114: 2025 | L114: 2026 | M114: 2027 | N114: 2028 | O114: 2029 | P114: 2030 | Q114: 2031 | R114: 2032 | S114: 2033 | T114: 2034 | U114: 2035 | V114: 2036 | W114: 2037 | X114: 2038 | Y114: 2039 | Z114: 2040 | AA114: 2041 | AB114: 2042 | AC114: 2043 | AD114: 2044 | AE114: 2045 | AF114: 2046 | AG114: 2047 | AH114: 2048 | AI114: 2049
C115: CFADS | G115: =G24 -> 0 | H115: =H24 -> 1882.825414 | I115: 7548.039134 | J115: 7488.591759 | K115: 7427.953638 | L115: 7363.617244 | M115: 7298.804213 | N115: 7494.794352 | O115: 7478.289022 | P115: 7462.762944 | Q115: 7481.070925 | R115: 7486.730929 | S115: 7464.192342 | T115: 7443.870922 | U115: 7428.000993 | V115: 7415.896369 | W115: 7411.912881 | X115: 6203.304749 | Y115: 5289.325909 | Z115: 5047.45431 | AA115: 4897.533256 | AB115: 4310.792573 | AC115: 1694.973464 | AD115: 1718.018299 | AE115: 1743.601543 | AF115: 1769.461826 | AG115: 1795.583783 | AH115: 1822.134721 | AI115: 1848.998526
C116: Debt Service | G116: =G28+G25+G26+G27 -> 0 | H116: =H28+H25+H26+H27 -> 1315.255487 | I116: 5543.830414 | J116: 5540.145531 | K116: 5525.374427 | L116: 5511.316385 | M116: 5499.708938 | N116: 5489.10234 | O116: 5484.557024 | P116: 5482.194719 | Q116: 5483.762686 | R116: 5488.412264 | S116: 5500.426275 | T116: 5517.062629 | U116: 5540.070683 | V116: 5569.354284 | W116: 5604.964347 | X116: 5636.532905 | Y116: 5650.40945 | Z116: 2885.009251 | AA116: 7.723772048e-09 | AB116: 7.723772048e-09 | AC116: 7.723772048e-09 | AD116: 7.744933067e-09 | AE116: 7.723772048e-09 | AF116: 7.723772048e-09 | AG116: 7.723772048e-09 | AH116: 7.744933067e-09 | AI116: 7.723772048e-09
C118: DSCR | G118: =IF(G116>0.1,G115/G116) -> FALSE | H118: =IF(H116>0.1,H115/H116) -> 1.431528272 | I118: 1.361520568 | J118: 1.351695857 | K118: 1.344334893 | L118: 1.33609046 | M118: 1.327125543 | N118: 1.365395266 | O118: 1.363517416 | P118: 1.361272871 | Q118: 1.364222224 | R118: 1.36409777 | S118: 1.357020705 | T118: 1.349245318 | U118: 1.340777297 | V118: 1.331554071 | W118: 1.322383591 | X118: 1.100553275 | Y118: 0.9360960396 | Z118: 1.749545277 | AA118: FALSE | AB118: FALSE | AC118: FALSE | AD118: FALSE | AE118: FALSE | AF118: FALSE | AG118: FALSE | AH118: FALSE | AI118: FALSE

Sheet Input Constant
B1: =UPPER(RIGHT(CELL("filename",B1),LEN(CELL("filename",B1))-SEARCH("]",CELL("filename",B1)))) -> INPUT CONSTANT
B6: Timing Assumptions
D8: Months in Model Period
E9: Pre-COD | F9: Months | G9: 1
E10: Post-COD | F10: Months | G10: 6
D12: Project Phases
E13: Model Start | F13: Date | G13: 2020-01-01
E15: Development Start | F15: Date | G15: =G13 -> 2020-01-01
E16: Time lag between start of dev. works and financial close | F16: Mth(s) / Yr(s) | G16: 17
E17: Development End Date | F17: Date | G17: =EDATE(G15,G16)+MOD(G16,1)*365/12-1 -> 2021-05-31
E19: Financial Close | F19: Date | G19: =EOMONTH(G17,1) -> 2021-06-30
E21: Construction Start | F21: Date | G21: =G19+1 -> 2021-07-01
E22: Duration of Construction | F22: Mth(s) / Yr(s) | G22: 11
E23: End of Construction | F23: Date | G23: =EDATE(G21,G22)+MOD(G22,1)*365/12-1 -> 2022-05-31
E25: Delay Start Date | F25: Date | G25: =G23 -> 2022-05-31
E26: Delay Duration | F26: Mth(s) / Yr(s) | G26: 0
E27: End Delay Date | F27: Date | G27: =EOMONTH(G25,G26) -> 2022-05-31
E29: Pre-Operations | F29: Date | G29: =G27+1 -> 2022-06-01
E30: Pre-Operations Duration | F30: Mth(s) / Yr(s) | G30: 0
E31: Pre-Operatons Finish Date | F31: Date | G31: =EDATE(G29,G30)+MOD(G30,1)*30.5-1 -> 2022-05-31
E33: Operations Start Date | F33: Date | G33: =G31+1 -> 2022-06-01
E34: Operations Duration | F34: Mth(s) / Yr(s) | G34: 30
E35: Operations End | F35: Date | G35: =DATE(YEAR(G33)+G34,MONTH(G33),DAY(G33)) -> 2052-06-01
E37: Fiscal Month End | F37: Month | G37: 12
E39: Last Period for Actual Historic Expenditures | F39: Date | G39: 2018-01-01 | I39: 2019-08-30 | J39: 2018-11-30
B41: Macro Economic Variables | F41: Input Time Series'!B4
D42: Model Currencies
E43: Model Currency #1 | F43: CCY | G43: USD
E44: Model Currency #2 | F44: CCY | G44: NGN
E45: Model Currency #3 | F45: CCY | G45: Spare
E47: Model Presentation Currency | F47: CCY | G47: USD
D49: FX
E50: =$G$47&" to "&$G$43 -> USD to USD | F50: =$G$47&"/"&$G$43 -> USD/USD | G50: 1
E51: =$G$47&" to "&$G$44 -> USD to NGN | F51: =$G$47&"/"&$G$44 -> USD/NGN | G51: 350
E52: =$G$47&" to "&$G$45 -> USD to Spare | F52: =$G$47&"/"&$G$45 -> USD/Spare | G52: 1
E54: Inflation
E55: Use the switch to show outputs on a real or nominal basis
E56: Model Inflation | F56: Selection | G56: =1=1 -> TRUE
E58: Inflation Type | G58: Rate | H58: First Escalation
E59: Zero-Inflation | F59: % p.a. | G59: 0
E60: General Inflation USD | F60: % p.a. | G60: 0.025 | H60: =G33 -> 2022-06-01
E61: ="OpEx - "&G61 *100 &"% p.a" -> OpEx - 1% p.a | F61: % p.a. | G61: 0.01 | H61: =G33 -> 2022-06-01
E62: Spare | F62: % p.a.
B64: Physical Operating Variables | F64: Input Time Series'!b21
D65: Model Type | F65: Selection | G65: Solar
E66: P Value | F66: P # # | G66: P50 | H66: 1
E67: P50 | F67: FALSE
E68: P90 | F68: =NOT(F67) -> TRUE
E69: Code | F69: =F67*1 -> 0
D71: Capacity
E72: AC Capacity | F72: MW | G72: 52.5
E73: DC Capacity | F73: MW | G73: =Scenario!G18 -> 65.92
E74: Overbuild Ratio | F74: % | G74: =G73/G72 -> 1.255619048
C76: P-Values | G76: % P50
E77: P50 | G77: 1
E78: P75 | G78: 0.958
E79: P90 | G79: 0.936
E80: P95 | G80: 0.918
E81: 1-Yr P99 | G81: 0.884
C83: Annual Gross Generation
D84: In-Plane Irradiation Capacity Factor | I84: https://re.jrc.ec.europa.eu/pvg_tools/en/tools.html
E85: Capacity Factor - P50 | F85: % Annual | G85: =capfacApplied/1000 -> 0.317 | H85: 317
E86: Capacity Factor - P90 | F86: % Annual | G86: =G85*G79 -> 0.296712
E87: Capacity Factor - P99 | F87: % Annual | G87: =G85*G81 -> 0.280228
D89: Performance Ratio | F89: % | G89: 0.798 | I89: Resouce Analysis
D91: In-Plane Irradiation Capacity Factor
E92: Capacity Factor - P50 | F92: % Annual | G92: =G85*$G$89 -> 0.252966
E93: Capacity Factor - P90 | F93: % Annual | G93: =G86*$G$89 -> 0.236776176
E94: Capacity Factor - P99 | F94: % Annual | G94: =G87*$G$89 -> 0.223621944
E97: Annal Yield - P90 | F97: kWh/kWp | G97: =G92*8766 -> 2217.499956
E98: Annal Yield - P50 | F98: kWh/kWp | G98: =G93*8766 -> 2075.579959
E99: Annal Yield - P99 1-year | F99: kWh/kWp | G99: =G94*8766 -> 1960.269961
E101: P50 | F101: MWh | G101: =G97*G73 -> 146177.5971 | I101: Yield x DC Capacity
E102: P90 | F102: MWh | G102: =G98*G73 -> 136822.2309
E103: P90 | F103: MWh | G103: =G99*G73 -> 129220.9958
D105: Seasonality
E106: Apply Seasonaility | F106: Yes / No | G106: TRUE | I106: Input Time Series'!b21
E107: Simple Seasonal Factor | F107: Constant | G107: =1/12 -> 0.08333333333
B109: Revenues and Expenses | F109: Input Time Series'!A42
C110: Revenues
D111: PPA Tariff
E112: PPA Period | F112: Years | G112: 20
E113: PPA End Date | F113: Date | G113: =EOMONTH(G33,G112*12) -> 2042-06-30
E115: Tariff Invoice Currency | F115: CCY | G115: USD | H115: =IF(OR(G115="",G115="Spare"),1,IF(OR(G115=$G$43,G115=$G$44,G115=$G$45),0,1)) -> 0
E116: Tariff | F116: =G115&" / MWh" -> USD / MWh | G116: 75
E117: Apply Inflation | F117: flag | G117: FALSE
G118: Escalation | H118: Code
E119: Inflation Rate Code if Applied | F119: Code | G119: General Inflation USD | H119: =MATCH(G119,$E$59:$E$62,0) -> 2
D121: Post PPA Tariff
E122: Post PPA Tariff Begin | F122: Date | G122: =EOMONTH(G113,1) -> 2042-07-31
E123: Post PPA Tariff End | F123: Date | G123: =G35 -> 2052-06-01
E125: Post-PPA Price Real | F125: USD/MWH | G125: 25
E126: Inflation Applied to Post-PPA Price | F126: Flag | G126: TRUE
E127: Inflation Rate Applied to Post-PPA Price | F127: USD/MWH | G127: General Inflation USD | H127: =MATCH(G127,$E$59:$E$62,0) -> 2
C129: Operating Expenses
D130: Inflation
E131: Inflation Type | F131: Selection | G131: Zero-Inflation | H131: =MATCH(G131,E59:E62,0) -> 1
E132: Percentage of Tariff Inflated | F132: % | G132: 1
C134: Operational Expenditure
D135: Fixed Costs
E136: Description | G136: Escalation | H136: Code
E137: O&M | F137: =units -> $000's | G137: General Inflation USD | H137: =MATCH(G137,$E$59:$E$62,0) -> 2
E138: SPV Costs | F138: $000's | G138: General Inflation USD | H138: 2
E139: Insurance | F139: $000's | G139: General Inflation USD | H139: 2
E140: Land Lease | F140: $000's | G140: ='Input Constant'!E61 -> OpEx - 1% p.a | H140: 3
E141: Security | F141: $000's | G141: =E61 -> OpEx - 1% p.a | H141: 3
E142: Community Payment | F142: $000's | G142: Zero-Inflation | H142: 1
E143: Transmission line payment | F143: $000's | G143: =G140 -> OpEx - 1% p.a | H143: 3
B144: 0 | E144: Spare | F144: $000's | G144: Zero-Inflation | H144: 1
B145: 0 | E145: Spare | F145: $000's | G145: Zero-Inflation | H145: 1
B146: 0 | E146: Spare | F146: $000's | G146: Zero-Inflation | H146: 1
D149: Variable Costs
E150: Per MWh
E151: Description | G151: Escalation | H151: Code
B152: 0 | E152: Spare | F152: =IF(OR(H152="",H152="Spare"),"-",H152) -> 1 | G152: Zero-Inflation | H152: =MATCH(G152,$E$59:$E$62,0) -> 1
B153: 0 | E153: Spare | F153: =IF(OR(H153="",H153="Spare"),"-",H153) -> 1 | G153: Zero-Inflation | H153: =MATCH(G153,$E$59:$E$62,0) -> 1
B154: 0 | E154: Spare | F154: =IF(OR(H154="",H154="Spare"),"-",H154) -> 1 | G154: Zero-Inflation | H154: =MATCH(G154,$E$59:$E$62,0) -> 1
B155: 0 | E155: Spare | F155: =IF(OR(H155="",H155="Spare"),"-",H155) -> 1 | G155: Zero-Inflation | H155: =MATCH(G155,$E$59:$E$62,0) -> 1
B156: 0 | E156: Spare | F156: =IF(OR(H156="",H156="Spare"),"-",H156) -> 1 | G156: Zero-Inflation | H156: =MATCH(G156,$E$59:$E$62,0) -> 1
D158: As a Percentage of Revenue
E159: Description | G159: Escalation | H159: Amount
B160: 0 | E160: Spare | F160: =IF(E160="Spare","-","%") -> - | G160: Zero-Inflation | H160: =MATCH(G160,$E$59:$E$62,0) -> 1
B161: 0 | E161: Spare | F161: =IF(E161="Spare","-","%") -> - | G161: Zero-Inflation | H161: =MATCH(G161,$E$59:$E$62,0) -> 1
B162: 0 | E162: Spare | F162: =IF(E162="Spare","-","%") -> - | G162: Zero-Inflation | H162: =MATCH(G162,$E$59:$E$62,0) -> 1
B163: 0 | E163: Spare | F163: =IF(E163="Spare","-","%") -> - | G163: Zero-Inflation | H163: =MATCH(G163,$E$59:$E$62,0) -> 1
B164: 0 | E164: Spare | F164: =IF(E164="Spare","-","%") -> - | G164: Zero-Inflation | H164: =MATCH(G164,$E$59:$E$62,0) -> 1
B167: Working Capital and Future Capital Expenditures
D168: Initial Working Capital
E169: Quantum | F169: =$G$637 -> USD '000 | G169: 0
D171: Working Capital
E172: Period in Working Capital
E173: Debtors | F173: Mth(s) | G173: 1
